Workbook

Sheet Read
D3: Modified Blaney-Criddle for Excel
D6: This allocation program which calculates a maximum monthly supplemental crop requirement and an average annual supplemental requirement using the Modified Blaney-Criddle method.
D7: The District assumes no responsibility to the user for the accuracy of this program. The District advises the user that additional information is available in the Basis of Review Volume III.
D8: There may be discrepancies between the result obtained by the user(s) and those results obtained by the District.
D10: This program was updated on February, 2014
D13: Worksheet Developed by Jeffery Scott
D15: Questions Concerning the Worksheet:
D16: Please Contact Jeffery Scott at SFWMD West Palm Beach Office 1-800-432-2045 Ext. 6924 or E-mail jscott@sfwmd.gov

Sheet Part B
H4: PART B
H6: WATER USE MANAGEMENT SYSTEM
H7: DESIGN AND EVALUATION AIDS
H9: V. SUPPLEMENTAL CROP REQUIREMENT
H10: AND
H11: WITHDRAWAL CALCULATION
H13: SUPPLEMENTAL CROP REQUIREMENT AND
H14: WITHDRAWAL CALCULATION
A16: Introduction
A18: The Water Use Division of the South Florida Water Management District uses a modified Blaney-Criddle equation to
A19: determine evapotranspiration and the Soil Conservation Service method described below to determine supplemental
A20: irrigation needs.
A22: 1. The Modified Blaney-Criddle Equation
A24: 1.1. The Blaney-Criddle equation in its basic form is
A32: where:
B34: U | C34: = crop evapotranspiration for A given period
B36: k | C36: = an annual, seasonal, or monthly empirical consumptive use coefficient which varies according to the crop
C37: (see description below)
B39: p | C39: = percent of daytime hours of the year which occur during the period
B41: t | C41: = mean temperature for the period, In degrees Farenheit
B43: m | C43: = month
A45: 1.2 The following modification has been made to the above equation:
A47: (2) k = kt X kc
A49: where:
B51: kt = a climatic coefficient which is related to the mean air temperature; kt = 0.0173t - 0.314
B53: kc = a coefficient reflecting the growth stage of the crop; values are shown in Tables SCR-1"
A55: 2.0 The irrigation water use allocation is calculated as follows:
B57: (3) | C57: SUP = U – RE (d, s)
B59: (4) | C59: Q = SUP X ACM X A
A61: where:
B63: SUP = supplemental irrigation requirement for the growing period in inches
B65: RE = effective rainfall, which is normalized to the design drought (d), and the soil type (s)
B67: Q = allocation (acre inches)
B69: ACM = Allocation Coefficient Multiplier (BOR Table 2-1)
B71: A = irrigated acreage (acres)
A73: 2.1 Growth Coefficients
B75: 2.1.1 The crop growth coefficient used in the equations are determined as follows:
B77: 1) | C77: For perennial crops, twelve monthly coefficients are given in Table SCR-1.
B79: 2) | C79: For annual crops, monthly coefficients for growing seasons of three and four months are given in Table SCR-1.
A81: 2.2 Calculation of Monthly Supplemental Irrigation Requirement and Allocation
A83: 2.2.1 | B83: The Water Use Division uses a computer program to calculate the supplemental irrigation water
B84: requirement used in determining an irrigation water use allocation. The program approximates
B85: equations 1) and (2) as follows:
B87: (5) | C87: F(M) = (T(M) x P(M)) / 100
B89: (6) | C89: AKT(M) = (0.0173 x T(M)) - 0.314
B91: (7) | C91: AKTF(M) = F(M ) X AKT(M)
B93: (8) | C93: U(M)= AKTF(M) X AKC(M)
B95: (9) | C95: RT1(M) = (0.70917 x (RT(M) 0.82416) - 0.11556)
B97: (10) | C97: Ul(M)= 10 (0.02426 X U(M))
B99: (11) | C99: F1 = 0.531747 + 0.295154 X D - 0.057697 X D 2 + 0.003804 X D 3
B101: (12) | C101: RE(M) = RTI(M) X UI(M) X F1
B103: (13) | C103: RE2 = RE(M) X F2
A105: where:
B107: M = month of year
B109: U(M) = average monthly evapotranspiration
B111: RT(M) = average monthly rainfall (Table SCR-2)
B113: F(M) = monthly evapotranspiration factor
B115: T(M) = average monthly temperature (Table SCR-2 )
B117: P(M) = monthly percentage of annual daylight hours (Table SCR-2 )
B119: RE(M) = monthly effective rainfall
B121: RE2(M) = monthly effective rainfall normalized to level of certainty
B123: AKT(M) = kt
B125: AKC(M) = monthly crop growth coefficient (Table SCR-1)
B127: RT1(M) = average monthly effective rainfall factor considering average monthly rainfall
B129: Ul(M) = average monthly effective rainfall factor considering average monthly evapotranspiration
B131: D = net depth of application (see Figures SCR-1 through SCR-15) | C131: = net depth of application (see Figures SCR-1 through SCR-15)
B133: F1 = soil factor
B135: F2 = ratio of design drought growing-season effective rainfall to average annual rainfall (Table SCR-2)
A138: The locations of the geographical areas represented by the rainfall stations (Table SCR-2) used to determine the average
A139: monthly rainfall RT(M), average monthly temperature T(M), and monthly percentage of annual daylight hours P(M)
A140: are shown in Figures SCR-1 through SCR-15.
A142: 2.2.2 | B142: Equation (3) is solved for each month of the year for perennial crops, or for each month of the growing season
B143: for annual crops. The largest monthly difference between evapotranspiration and design drought effective rainfall
B144: is the basis of the maximum month allocation and the total of the monthly differences between evapotranspiration
B145: and design drought effective rainfall is the basis of the annual allocation. The maximum month and annual differences
B146: are multiplied by the Allocation Coefficient Multiplier (BOR Table 2-1) to determine the overall crop requirement
B147: then multiplied by the irrigated acreage to give an allocation, equation (4).
A149: 3.0 Additional information
A151: Additional detail on this method may be found in " Irrigation Water Requirements," Technical Release No. 21, USDA,
A152: Soil Conservation Service, Engineering Division, 1970.
A160: TABLE SCR-1: Growth Coefficients for Crops
A162: Monthly Coefficiencts for Perennial Crops
B164: Jan | C164: Feb | D164: Mar | E164: Apr | F164: May | G164: Jun | H164: Jul | I164: Aug | J164: Sep | K164: Oct | L164: Nov | M164: Dec
A165: AVOCADO | B165: 0.27 | C165: 0.42 | D165: 0.58 | E165: 0.70 | F165: 0.78 | G165: 0.81 | H165: 0.77 | I165: 0.71 | J165: 0.63 | K165: 0.54 | L165: 0.43 | M165: 0.30
A166: CITRUS | B166: 0.63 | C166: 0.66 | D166: 0.68 | E166: 0.70 | F166: 0.71 | G166: 0.71 | H166: 0.71 | I166: 0.71 | J166: 0.70 | K166: 0.68 | L166: 0.67 | M166: 0.64
A167: SUGARCANE | B167: 0.39 | C167: 0.30 | D167: 0.53 | E167: 0.61 | F167: 0.70 | G167: 0.79 | H167: 0.79 | I167: 0.84 | J167: 0.73 | K167: 0.88 | L167: 0.72 | M167: 0.69
A168: GRAPES | B168: 0.20 | C168: 0.24 | D168: 0.38 | E168: 0.60 | F168: 0.71 | G168: 0.80 | H168: 0.80 | I168: 0.76 | J168: 0.61 | K168: 0.50 | L168: 0.35 | M168: 0.23
A169: TURF GRASS | B169: 0.49 | C169: 0.57 | D169: 0.73 | E169: 0.85 | F169: 0.90 | G169: 0.92 | H169: 0.92 | I169: 0.91 | J169: 0.87 | K169: 0.79 | L169: 0.67 | M169: 0.55
A170: PASTURE | B170: 0.46 | C170: 0.60 | D170: 0.63 | E170: 0.68 | F170: 0.70 | G170: 0.53 | H170: 0.56 | I170: 0.58 | J170: 0.52 | K170: 0.53 | L170: 0.49 | M170: 0.44
A173: Monthly Coefficients for Annual Crops
C175: Three-Month Growing Season | H175: Four-Month
H176: Growing Season
C178: Month of Growing Season | H178: Month of Growing
H179: Season
C180: 1 | D180: 2 | E180: 3 | H180: 1 | I180: 2 | J180: 3 | K180: 4
A181: DRY BEANS | C181: 0.73 | D181: 1.08 | E181: 0.81 | H181: 0.66 | I181: 1.02 | J181: 1.06 | K181: 0.75
A182: WINTER WHEAT | C182: 0.40 | D182: 0.81 | E182: 1.18 | H182: 0.35 | I182: 0.65 | J182: 0.97 | K182: 1.22
A183: SURGHUM | C183: 0.54 | D183: 1.01 | E183: 0.70 | H183: 0.43 | I183: 0.99 | J183: 0.93 | K183: 0.65
A184: GREEN BEAN | C184: 0.61 | D184: 0.91 | E184: 1.10 | H184: 0.58 | I184: 0.79 | J184: 1.01 | K184: 1.11
A185: GRAIN CORN | C185: 0.59 | D185: 1.02 | E185: 0.96 | H185: 0.54 | I185: 0.90 | J185: 1.06 | K185: 0.93
A186: SILAGE CORN | C186: 0.55 | D186: 0.97 | E186: 1.03 | H186: 0.51 | I186: 0.81 | J186: 1.06 | K186: 1.02
A187: SWEET CORN | C187: 0.60 | D187: 1.02 | E187: 1.04 | H187: 0.55 | I187: 0.90 | J187: 1.07 | K187: 1.03
A188: MELONS | C188: 0.56 | D188: 0.79 | E188: 0.72 | H188: 0.52 | I188: 0.75 | J188: 0.79 | K188: 0.71
A189: PEAS | C189: 0.72 | D189: 1.09 | E189: 1.03 | H189: 0.66 | I189: 1.01 | J189: 1.11 | K189: 1.01
A190: POTATO | C190: 0.54 | D190: 1.18 | E190: 1.32 | H190: 0.46 | I190: 0.96 | J190: 1.33 | K190: 1.30
A191: SOYBEANS | C191: 0.33 | D191: 0.77 | E191: 0.84 | H191: 0.30 | I191: 0.56 | J191: 0.96 | K191: 0.79
A192: TOMATO | C192: 0.50 | D192: 0.93 | E192: 0.84 | H192: 0.47 | I192: 0.76 | J192: 1.00 | K192: 0.80
A193: SMALL VEGETABLES | C193: 0.54 | D193: 0.81 | E193: 0.62 | H193: 0.48 | I193: 0.77 | J193: 0.81 | K193: 0.57
A215: TABLE SCR-2: Rainfall Stations
A217: STATION: ARCHBOLD
B218: Jan | C218: Feb | D218: Mar | E218: Apr | F218: May | G218: Jun | H218: Jul | I218: Aug | J218: Sep | K218: Oct | L218: Nov | M218: Dec
A219: Mean Rainfall | B219: 1.91 | C219: 2.20 | D219: 3.11 | E219: 2.33 | F219: 4.27 | G219: 7.80 | H219: 6.94 | I219: 7.15 | J219: 6.80 | K219: 3.24 | L219: 1.63 | M219: 1.64
A220: Mean Temperature (F) | B220: 60.61 | C220: 61.97 | D220: 66.39 | E220: 70.40 | F220: 75.65 | G220: 79.37 | H220: 80.42 | I220: 80.94 | J220: 79.60 | K220: 74.37 | L220: 68.40 | M220: 62.65
A221: Annual Daylight (%) | B221: 7.43 | C221: 7.09 | D221: 8.38 | E221: 8.66 | F221: 9.42 | G221: 9.35 | H221: 9.54 | I221: 9.15 | J221: 8.32 | K221: 8.04 | L221: 7.31 | M221: 7.31
B222: Temperature based on 29 years of data, rainfall based on 68 years of data
B223: Factor for conversion of average rainfall to drought rainfall = 0.83
A225: STATION: AVON PARK
B226: Jan | C226: Feb | D226: Mar | E226: Apr | F226: May | G226: Jun | H226: Jul | I226: Aug | J226: Sep | K226: Oct | L226: Nov | M226: Dec
A227: Mean Rainfall | B227: 2.24 | C227: 2.51 | D227: 2.82 | E227: 2.52 | F227: 4.12 | G227: 8.27 | H227: 8.03 | I227: 7.50 | J227: 7.15 | K227: 3.59 | L227: 1.71 | M227: 1.76
A228: Mean Temperature (F) | B228: 61.74 | C228: 63.41 | D228: 67.61 | E228: 72.20 | F228: 77.06 | G228: 80.63 | H228: 81.90 | I228: 82.00 | J228: 80.47 | K228: 74.97 | L228: 68.17 | M228: 63.29
A229: Annual Daylight (%) | B229: 7.42 | C229: 7.08 | D229: 8.37 | E229: 8.67 | F229: 9.44 | G229: 9.37 | H229: 9.56 | I229: 9.16 | J229: 8.32 | K229: 8.03 | L229: 7.3 | M229: 7.29
B230: Temperature based on 67 years of data, rainfall based on 93 years of data
B231: Factor for conversion of average rainfall to drought rainfall = 0.84
A233: STATION: BELLE GLADE
B234: Jan | C234: Feb | D234: Mar | E234: Apr | F234: May | G234: Jun | H234: Jul | I234: Aug | J234: Sep | K234: Oct | L234: Nov | M234: Dec
A235: Mean Rainfall | B235: 2.20 | C235: 1.89 | D235: 3.02 | E235: 2.85 | F235: 4.85 | G235: 8.65 | H235: 7.81 | I235: 7.95 | J235: 7.98 | K235: 4.34 | L235: 2.22 | M235: 1.72
A236: Mean Temperature (F) | B236: 63.00 | C236: 63.83 | D236: 67.55 | E236: 70.60 | F236: 75.29 | G236: 78.93 | H236: 80.32 | I236: 80.68 | J236: 79.43 | K236: 74.94 | L236: 68.87 | M236: 64.32
A237: Annual Daylight (%) | B237: 7.46 | C237: 7.11 | D237: 8.38 | E237: 8.65 | F237: 9.4 | G237: 9.32 | H237: 9.52 | I237: 9.13 | J237: 8.32 | K237: 8.05 | L237: 7.33 | M237: 7.34
B238: Temperature based on 68 years of data, rainfall based on 72 years of data
B239: Factor for conversion of average rainfall to drought rainfall = 0.84
A241: STATION: CLEWISTON
B242: Jan | C242: Feb | D242: Mar | E242: Apr | F242: May | G242: Jun | H242: Jul | I242: Aug | J242: Sep | K242: Oct | L242: Nov | M242: Dec
A243: Mean Rainfall | B243: 2.08 | C243: 1.98 | D243: 2.37 | E243: 2.39 | F243: 4.27 | G243: 7.20 | H243: 6.28 | I243: 6.38 | J243: 5.92 | K243: 3.46 | L243: 1.93 | M243: 1.67
A244: Mean Temperature (F) | B244: 63.52 | C244: 65.00 | D244: 69.10 | E244: 73.20 | F244: 77.29 | G244: 80.43 | H244: 81.84 | I244: 82.00 | J244: 81.17 | K244: 76.58 | L244: 70.57 | M244: 65.26
A245: Annual Daylight (%) | B245: 7.45 | C245: 7.1 | D245: 8.38 | E245: 8.66 | F245: 9.4 | G245: 9.33 | H245: 9.52 | I245: 9.13 | J245: 8.32 | K245: 8.04 | L245: 7.33 | M245: 7.33
B246: Temperature based on 50 years of data, rainfall based on 46 years of data
B247: Factor for conversion of average rainfall to drought rainfall = 0.83
A249: STATION: EVERGLADES
B250: Jan | C250: Feb | D250: Mar | E250: Apr | F250: May | G250: Jun | H250: Jul | I250: Aug | J250: Sep | K250: Oct | L250: Nov | M250: Dec
A251: Mean Rainfall | B251: 1.69 | C251: 1.63 | D251: 0.95 | E251: 2.26 | F251: 4.41 | G251: 9.75 | H251: 8.21 | I251: 7.79 | J251: 9.07 | K251: 4.12 | L251: 1.46 | M251: 1.45
A252: Mean Temperature (F) | B252: 65.10 | C252: 66.03 | D252: 69.39 | E252: 73.17 | F252: 76.94 | G252: 80.30 | H252: 81.77 | I252: 82.00 | J252: 81.50 | K252: 77.29 | L252: 71.23 | M252: 66.74
A253: Annual Daylight (%) | B253: 7.49 | C253: 7.12 | D253: 8.38 | E253: 8.64 | F253: 9.37 | G253: 9.29 | H253: 9.49 | I253: 9.11 | J253: 8.32 | K253: 8.06 | L253: 7.36 | M253: 7.37
B254: Temperature based on 67 years of data, rainfall based on 57 years of data
B255: Factor for conversion of average rainfall to drought rainfall = 0.83
A257: STATION: FORT DRUM
B258: Jan | C258: Feb | D258: Mar | E258: Apr | F258: May | G258: Jun | H258: Jul | I258: Aug | J258: Sep | K258: Oct | L258: Nov | M258: Dec
A259: Mean Rainfall | B259: 2.05 | C259: 2.72 | D259: 3.39 | E259: 2.16 | F259: 4.67 | G259: 7.52 | H259: 7.46 | I259: 6.80 | J259: 6.48 | K259: 3.92 | L259: 1.79 | M259: 1.78
A260: Mean Temperature (F) | B260: 61.77 | C260: 62.90 | D260: 66.84 | E260: 70.77 | F260: 75.48 | G260: 79.23 | H260: 81.00 | I260: 81.00 | J260: 79.63 | K260: 74.61 | L260: 68.57 | M260: 63.00
A261: Annual Daylight (%) | B261: 7.41 | C261: 7.08 | D261: 8.37 | E261: 8.67 | F261: 9.44 | G261: 9.37 | H261: 9.56 | I261: 9.16 | J261: 8.32 | K261: 8.03 | L261: 7.29 | M261: 7.29
B262: Temperature based on 50 years of data, rainfall based on 50 years of data
B263: Factor for conversion of average rainfall to drought rainfall = 0.85
A270: TABLE SCR-2: Rainfall Stations
A272: STATION: FT. LAUDERDALE
B273: Jan | C273: Feb | D273: Mar | E273: Apr | F273: May | G273: Jun | H273: Jul | I273: Aug | J273: Sep | K273: Oct | L273: Nov | M273: Dec
A274: Mean Rainfall | B274: 2.86 | C274: 2.52 | D274: 2.90 | E274: 4.12 | F274: 6.28 | G274: 9.02 | H274: 6.39 | I274: 6.90 | J274: 8.21 | K274: 8.40 | L274: 3.96 | M274: 2.52
A275: Mean Temperature (F) | B275: 66.81 | C275: 67.62 | D275: 70.71 | E275: 74.27 | F275: 77.94 | G275: 80.90 | H275: 82.00 | I275: 82.26 | J275: 81.37 | K275: 77.77 | L275: 72.63 | M275: 68.42
A276: Annual Daylight (%) | B276: 7.49 | C276: 7.12 | D276: 8.38 | E276: 8.64 | F276: 9.37 | G276: 9.29 | H276: 9.49 | I276: 9.11 | J276: 8.32 | K276: 8.06 | L276: 7.36 | M276: 7.37
B277: Temperature based on 50 years of data, rainfall based on 83 years of data
B278: Factor for conversion of average rainfall to drought rainfall = 0.82
A280: STATION: FT. MYERS
B281: Jan | C281: Feb | D281: Mar | E281: Apr | F281: May | G281: Jun | H281: Jul | I281: Aug | J281: Sep | K281: Oct | L281: Nov | M281: Dec
A282: Mean Rainfall | B282: 1.90 | C282: 2.00 | D282: 1.50 | E282: 1.90 | F282: 4.10 | G282: 9.40 | H282: 8.70 | I282: 8.60 | J282: 8.40 | K282: 3.50 | L282: 1.50 | M282: 1.50
A283: Mean Temperature (F) | B283: 64.03 | C283: 65.10 | D283: 68.87 | E283: 73.13 | F283: 77.97 | G283: 81.23 | H283: 82.53 | I283: 82.90 | J283: 81.60 | K283: 76.58 | L283: 69.83 | M283: 65.29
A284: Annual Daylight (%) | B284: 7.46 | C284: 7.11 | D284: 8.38 | E284: 8.65 | F284: 9.4 | G284: 9.32 | H284: 9.52 | I284: 9.13 | J284: 8.32 | K284: 8.05 | L284: 7.33 | M284: 7.34
B285: Temperature based on 50 years of data, rainfall based on 57 years of data
B286: Factor for conversion of average rainfall to drought rainfall = 0.84
A288: STATION: FT. PIERCE
B289: Jan | C289: Feb | D289: Mar | E289: Apr | F289: May | G289: Jun | H289: Jul | I289: Aug | J289: Sep | K289: Oct | L289: Nov | M289: Dec
A290: Mean Rainfall | B290: 2.48 | C290: 2.77 | D290: 3.23 | E290: 3.08 | F290: 4.29 | G290: 5.98 | H290: 5.66 | I290: 5.82 | J290: 8.03 | K290: 6.72 | L290: 2.95 | M290: 2.07
A291: Mean Temperature (F) | B291: 63.29 | C291: 64.31 | D291: 67.94 | E291: 72.00 | F291: 76.42 | G291: 79.77 | H291: 81.00 | I291: 81.35 | J291: 80.30 | K291: 75.97 | L291: 69.80 | M291: 64.94
A292: Annual Daylight (%) | B292: 7.42 | C292: 7.09 | D292: 8.38 | E292: 8.66 | F292: 9.43 | G292: 9.36 | H292: 9.55 | I292: 9.15 | J292: 8.32 | K292: 8.03 | L292: 7.3 | M292: 7.3
B293: Temperature based on 67 years of data, rainfall based on 96 years of data
B294: Factor for conversion of average rainfall to drought rainfall = 0.83
A296: STATION: HIALEAH
B297: Jan | C297: Feb | D297: Mar | E297: Apr | F297: May | G297: Jun | H297: Jul | I297: Aug | J297: Sep | K297: Oct | L297: Nov | M297: Dec
A298: Mean Rainfall | B298: 2.28 | C298: 2.11 | D298: 2.70 | E298: 3.70 | F298: 6.37 | G298: 9.31 | H298: 7.07 | I298: 8.25 | J298: 8.98 | K298: 7.39 | L298: 3.52 | M298: 1.85
A299: Mean Temperature (F) | B299: 66.42 | C299: 67.55 | D299: 71.03 | E299: 74.30 | F299: 77.97 | G299: 80.80 | H299: 82.00 | I299: 82.16 | J299: 81.30 | K299: 77.39 | L299: 72.20 | M299: 67.77
A300: Annual Daylight (%) | B300: 7.49 | C300: 7.12 | D300: 8.38 | E300: 8.64 | F300: 9.37 | G300: 9.29 | H300: 9.49 | I300: 9.11 | J300: 8.32 | K300: 8.06 | L300: 7.36 | M300: 7.37
B301: Temperature based on 50 years of data, rainfall based on 56 years of data
B302: Factor for conversion of average rainfall to drought rainfall = 0.81
A304: STATION: HOMESTEAD
B305: Jan | C305: Feb | D305: Mar | E305: Apr | F305: May | G305: Jun | H305: Jul | I305: Aug | J305: Sep | K305: Oct | L305: Nov | M305: Dec
A306: Mean Rainfall | B306: 1.72 | C306: 1.86 | D306: 2.29 | E306: 3.18 | F306: 6.73 | G306: 9.39 | H306: 7.95 | I306: 8.27 | J306: 10.27 | K306: 7.18 | L306: 2.15 | M306: 1.35
A307: Mean Temperature (F) | B307: 65.77 | C307: 67.45 | D307: 69.81 | E307: 72.50 | F307: 76.52 | G307: 80.03 | H307: 81.45 | I307: 82.00 | J307: 81.07 | K307: 77.45 | L307: 71.93 | M307: 67.29
A308: Annual Daylight (%) | B308: 7.52 | C308: 7.13 | D308: 8.39 | E308: 8.63 | F308: 9.35 | G308: 9.26 | H308: 9.47 | I308: 9.09 | J308: 8.31 | K308: 8.07 | L308: 7.38 | M308: 7.4
B309: Temperature based on 72 years of data, rainfall based on 72 years of data
B310: Factor for conversion of average rainfall to drought rainfall = 0.84
A312: STATION: HYPOLUXO
B313: Jan | C313: Feb | D313: Mar | E313: Apr | F313: May | G313: Jun | H313: Jul | I313: Aug | J313: Sep | K313: Oct | L313: Nov | M313: Dec
A314: Mean Rainfall | B314: 3.10 | C314: 2.73 | D314: 3.46 | E314: 3.45 | F314: 5.26 | G314: 8.29 | H314: 5.75 | I314: 6.57 | J314: 7.78 | K314: 7.73 | L314: 3.81 | M314: 2.61
A315: Mean Temperature (F) | B315: 65.84 | C315: 66.69 | D315: 70.10 | E315: 73.63 | F315: 77.81 | G315: 80.77 | H315: 82.29 | I315: 82.55 | J315: 81.30 | K315: 77.45 | L315: 71.87 | M315: 67.35
A316: Annual Daylight (%) | B316: 7.46 | C316: 7.11 | D316: 8.38 | E316: 8.65 | F316: 9.4 | G316: 9.32 | H316: 9.52 | I316: 9.13 | J316: 8.32 | K316: 8.05 | L316: 7.33 | M316: 7.34
B317: Temperature and rainfall based on 97 years of data
B318: Factor for conversion of average rainfall to drought rainfall = 0.81
A325: TABLE SCR-2: Rainfall Stations
A327: STATION: IMMOKALEE
B328: Jan | C328: Feb | D328: Mar | E328: Apr | F328: May | G328: Jun | H328: Jul | I328: Aug | J328: Sep | K328: Oct | L328: Nov | M328: Dec
A329: Mean Rainfall | B329: 2.14 | C329: 2.26 | D329: 3.09 | E329: 2.23 | F329: 4.23 | G329: 8.61 | H329: 7.48 | I329: 7.35 | J329: 6.71 | K329: 2.90 | L329: 1.95 | M329: 1.51
A330: Mean Temperature (F) | B330: 64.03 | C330: 65.24 | D330: 68.77 | E330: 71.87 | F330: 76.74 | G330: 80.10 | H330: 81.26 | I330: 81.74 | J330: 80.67 | K330: 76.00 | L330: 67.20 | M330: 65.45
A331: Annual Daylight (%) | B331: 7.48 | C331: 7.12 | D331: 8.38 | E331: 8.64 | F331: 9.38 | G331: 9.30 | H331: 9.50 | I331: 9.12 | J331: 9.32 | K331: 8.06 | L331: 7.35 | M331: 7.36
... 102 more rows

Sheet Update Info
A3: Revisions to Spreadsheet
A4: 2014-01-01
A5: This revised Excel program for the Modified Blaney-Criddle equation was designed with a Macro button in order to allow the summation of multiple supplemental irrigation crop demands. The summation results are outputted into a new “Exhibit Totals” sheet. The “Exhibit” sheet is similar to the previous spreadsheet versions and should be used to print the results of each crop. This Exhibit has been updated to include planting information for annual crops, crop numbering for single and multiple planting within a parcel, parcel naming, and exhibit labeling. The “Input2” sheet has been revised to include inputs for the total number of parcels, parcel names, the number of multiple planting within a single parcel, and the exhibit numbering for both the “Exhibit” and “Exhibit Totals” sheets. In addition, a quick view calculation screen, an error notifying cell, a crop input button and a counter for the total number of crop parcels processed and multiple crops in a parcel processed. This revised spreadsheet also includes additional annual growing season lengths (1 to 12 months) and updated significant digit formatting of calculated output.
A6: 2014-02-01
A7: Four additional crops types were added (strawberries, peppers, sorghum, hay) to the existing annual crops (seasonal), a salt flush allocation option was included for citrus crops using micro-irrigation systems and added an irrigation system efficiency for flood/seepage systems in the Everglades Agricultural Area (E.A.A) .
A8: Macro Instruction:
A9: If the macro button does not work, you may need to change the existing setting in Excel. The following are brief instructions on how to active the use of macros within Excel:
A10: Go to the file tab in Excel and select options. Within the options window, select customize ribbon. Within the right column, select at the top main tabs and click to turn on the developer tab down below. Click OK in the lower right corner. Next, click on the Developer tab and in the upper left corner, click on Macro Security. Within Macro Settings, select disable all macros with notification. Re-enter the spreadsheet and select allow macro. Hopefully, this will now allow the macro to function.
A14: Instructions for Operation
A16: If the Project consists of different crops, these crops should be divided into separate parcels or fields. The spreadsheet currently allows the inputting of 20 different crops and the results are displayed on the “Exhibit Totals” sheet. On the “Input2” sheet, the total number of multiple parcels or fields within the Project should be inputted in (Row 2, Col P) first and not changed again until all parcels have been processed. Therefore, it is very important to enter the correct number of parcels or fields. The inputting of each crop is accomplished by clicking on the Input Crop macro button located in the lower right section on the “Input2” sheet. When calculating only one crop, the summarized results are shown in the “Exhibit” sheet and there is no need to use the Input Crop macro button on the “Input2” sheet. DO NOT DIRECTLY INPUT ANY INFORMATION ON THE “Exhibit” OR “Exhibit Totals” SHEETS. Remember to always print the “Exhibit” sheet prior to inputting the crop with the Input Crop macro button. The spreadsheet should identify most ERRORS and display the problem to be corrected. The specific number of crop parcels being processed is shown in (Row 6, Col J). When all parcels or fields have been completed, the adjacent cell will display “TOTAL CROP PARCELS COMPLETED” (Row 6, Col K). Print the “Exhibit Totals” sheet at this time.
A18: Multiple Annual Plantings within one Parcel
A20: The spreadsheet currently allows up to 5 crops being planted within one parcel. Remember, there can be no overlapping of plantings and no more than 12 months can be planted within one parcel. The typical growing season length for most annual crops is 90 to 120 days or 3 to 4 months. If the Project has multiple annual plantings within one parcel or field, consisting of different annual crops, prior to inputting the crop information for that parcel or field with the Input Crop macro button, remember to enter of the total number of the multiple plantings for that parcel (Row 4, Col P). This should only be used when there are multiple crop plantings on one parcel or field, otherwise, annuals should be inputted as separate crops on different parcels (discussed above). The count number of multiple plantings within one parcel is displayed in (Row 7, Col J). After the processing of that parcel has been completed, the adjacent cell will display “MULTIPLE CROPS IN THE PARCEL COMPLETED” (Row 7, Col K). Remember to change the number of multiple plantings within one parcel back to either 1 or “” or the number of multiple crop plantings within the next parcel.

Sheet Input2
C1: Drop Down Menus
B2: Rainfall Event | C2: 1-in-10 | J2: Total number of crop parcels (Fields) Must be > = 1 | P2: 1
B3: Rainfall Station Name | C3: Okeechobee 1-in-10 | J3: DO NOT CHANGE WHILE "TOTAL CROPS PARCELS" IS PROCESSING
B4: Crop Type | C4: Perennial-Nursery | J4: How many different annual crops will be planted on this parcel? (If there are no annuals being re-planted in the same area, Input = 1) | P4: 1
B5: Check each month crop is being planted (Multiple plantings of same crop) | J5: DO NOT CHANGE WHILE "MULTIPLE CROPS IN PARCEL" IS PROCESSING
B6: (Only Needed For Annual Crops) | J6: 0 | K6: TOTAL CROP PARCELS COMPLETED
B7: Required time from planting to last harvest of same planted crop | C7: 4 months | J7: 0 | K7: MULTIPLE CROPS IN PARCEL COMPLETED
B8: (Growing season length of crop type) | J8: Parcel Name
B9: (Only Needed For Annual Crops)
B10: Soil Type | C10: 0.8 | J10: Exhibit Number on "Exhibit" Sheet
B11: Irrigation System | C11: Drip | J11: Exhibit Number on "Exhibit Totals" Sheet
B12: SWM Permit | C12: Yes | J12: MONTHS PLANTED FOR MULTIPLE CROPS IN SINGLE PARCEL
B13: Irrigated Acreage | C13: 1 | J13: ='crop k''s'!A191 -> 
B14: Salt Flush for Micro-irrigated Citrus? (Yes or No Drop Down) | C14: No | E14: Salt Flush Depth (Inches, Citrus = 1) | G14: 1 | J14: PRINT "EXHIBIT" PRIOR TO INPUTTING (SEE "EXHIBIT" SHEET)
B15: ='crop k''s'!S63 ->  | C15: QUICK VIEW OF SUPPLEMENTAL CROP REQUIREMENTS | J15: REMEMBER TO INPUT CROP AFTER PRINTING "EXHIBIT"
B16: =IF(AND(InputControl!$B$57>50,'crop k''s'!S67<>""),'crop k''s'!S67,"") ->  | C16: =CONCATENATE(IF(InputControl!$B$12=2,"2-in-10 Annual = ","1-in-10 Annual= "),Exhibit!O25," inches") -> 1-in-10 Annual= 36.85 inches
B17: =IF(InputControl!$B$57>50,'crop k''s'!S64,'crop k''s'!S65) -> CALCULATION GOOD | C17: =CONCATENATE("1 -in-10 Annual = ",'Blaney Calc'!G31," ",'Blaney Calc'!G32) -> 1 -in-10 Annual = 1.18 MG
B18: ='crop k''s'!S69 ->  | C18: =CONCATENATE("1-in-10 Annual Average Daily = ",IF('Blaney Calc'!K19<100000,'Blaney Calc'!K19,'Blaney Calc'!K20)," ",IF('Blaney Calc'!K19<100000,'Blaney Calc'!L19,'Blaney Calc'!L20) ) -> 1-in-10 Annual Average Daily = 3234.42 GPD
B19: ='crop k''s'!S70 ->  | C19: =CONCATENATE(IF(InputControl!$B$12=2,"2-in-10 Maximum Monthly = ","1-in-10 Maximum Monthly = "),IF((InputControl!$B$57=13)*AND(InputControl!$A$160<>0),InputControl!A160,MAX(,Exhibit!C25:N25))," inches") -> 1-in-10 Maximum Monthly = 4.86 inches | O19: ,
B20: ='crop k''s'!S71 ->  | C20: =CONCATENATE("1-in-10 Maximum Month = ",'Blaney Calc'!G33," ",'Blaney Calc'!G34) -> 1-in-10 Maximum Month = 156,000 gallons
B21: ='crop k''s'!S72 ->  | C21: ='crop k''s'!C165 -> 1-in-10 Annual Average Day < 10,000 Gallons
T75: TOTAL NUMBER OF CROP PARCELS NEED TO BE > 1 AND < 20

Sheet Exhibit
B3: Calculations of Irrigation Requirements | M3: =IF(InputControl!$B$12=2,"(2-in-10)","(1-in-10)") -> (1-in-10)
B6: Rainfall Station: | C6: =Input2!C3 -> Okeechobee 1-in-10 | I6: Crop No.: | K6: 1 | O6: 1
B7: Irrigation System: | C7: =IF(InputControl!$B$12=2,VLOOKUP(InputControl!B89,'Irr System'!$A$3:$E$24,3,FALSE),VLOOKUP(InputControl!B89,'Irr System'!$A$28:$E$49,3,FALSE)) -> Drip | I7: Parcel Name: | K7: =IF(Input2!N8<>"",Input2!N8, "") -> 
B8: Irrigated Acreage: | C8: =Input2!C13 -> 1 | H8: Crop No. in Parcel: | K8: 1
B9: Crop: | C9: =IF(InputControl!$B$57<50,VLOOKUP("b",'crop k''s'!$A$2:$Q$3,'crop k''s'!$D$104,FALSE),VLOOKUP("b",'crop k''s'!$A$18:$U$19,'crop k''s'!$D$104,FALSE)) -> Nursery
B10: Soil Type: | C10: =InputControl!$B$127 -> 0.8
B11: Multiplier | C11: =IF(InputControl!$B$12=2,IF(Input2!$C$12="YES",VLOOKUP(InputControl!B89,'Irr System'!$A$3:$E$24,4,FALSE),VLOOKUP(InputControl!B89,'Irr System'!$A$3:$E$24,5,FALSE)),IF(Input2!$C$12="YES",VLOOKUP(InputControl!B89,'Irr System'!$A$28:$E$49,4,FALSE),VLOOKUP(InputControl!B89,'Irr System'!$A$28:$E$49,5,FALSE))) -> 1.18
B12: Efficiency | C12: =1/C11 -> 0.85
B14: =IF(InputControl!$B$57>50,'crop k''s'!G144,"") -> 
B16: =IF(InputControl!$B$57>50,'crop k''s'!G146,"") ->  | C16: =IF(InputControl!$B$57>50,'crop k''s'!G147,"") -> 
B18: =IF(InputControl!$B$57>50,'crop k''s'!G145,"") ->  | D18: =IF(InputControl!$B$57>50,'crop k''s'!G148,"") -> 
B19: Calculations | C19: Jan | D19: Feb | E19: Mar | F19: Apr | G19: May | H19: Jun | I19: Jul | J19: Aug | K19: Sep | L19: Oct | M19: Nov | N19: Dec | O19: Total
B20: Average Rainfall (inches) | C20: ='Blaney Calc'!$A$4 -> 1.76 | D20: ='Blaney Calc'!$A$5 -> 2.19 | E20: ='Blaney Calc'!$A$6 -> 2.89 | F20: ='Blaney Calc'!$A$7 -> 2.78 | G20: ='Blaney Calc'!$A$8 -> 4.29 | H20: ='Blaney Calc'!$A$9 -> 7.35 | I20: ='Blaney Calc'!$A$10 -> 6.55 | J20: ='Blaney Calc'!$A$11 -> 6.65 | K20: ='Blaney Calc'!$A$12 -> 6.37 | L20: ='Blaney Calc'!$A$13 -> 4.1 | M20: ='Blaney Calc'!$A$14 -> 1.91 | N20: ='Blaney Calc'!$A$15 -> 1.58 | O20: =SUM(C20:N20) -> 48.42
B21: Evapotranspiration (inches) | C21: =ROUND('Blaney Calc'!$J$4,2) -> 1.71 | D21: =ROUND('Blaney Calc'!$J$5,2) -> 2.05 | E21: =ROUND('Blaney Calc'!$J$6,2) -> 3.57 | F21: =ROUND('Blaney Calc'!$J$7,2) -> 4.96 | G21: =ROUND('Blaney Calc'!$J$8,2) -> 6.61 | H21: =ROUND('Blaney Calc'!$J$9,2) -> 7.4 | I21: =ROUND('Blaney Calc'!$J$10,2) -> 7.86 | J21: =ROUND('Blaney Calc'!$J$11,2) -> 7.48 | K21: =ROUND('Blaney Calc'!$J$12,2) -> 6.28 | L21: =ROUND('Blaney Calc'!$J$13,2) -> 4.74 | M21: =ROUND('Blaney Calc'!$J$14,2) -> 2.99 | N21: =ROUND('Blaney Calc'!$J$15,2) -> 2.01 | O21: =ROUND(SUM(C21:N21),2) -> 57.66
B22: Average Effective Rainfall (inches) | C22: =IF((C21)=0,(0),ROUND('Blaney Calc'!$N$4,2)) -> 0.82 | D22: =IF((D21)=0,(0),ROUND('Blaney Calc'!$N$5,2)) -> 1.02 | E22: =IF((E21)=0,(0),ROUND('Blaney Calc'!$N$6,2)) -> 1.42 | F22: =IF((F21)=0,(0),ROUND('Blaney Calc'!$N$7,2)) -> 1.48 | G22: =IF((G21)=0,(0),ROUND('Blaney Calc'!$N$8,2)) -> 2.37 | H22: =IF((H21)=0,(0),ROUND('Blaney Calc'!$N$9,2)) -> 3.94 | I22: =IF((I21)=0,(0),ROUND('Blaney Calc'!$N$10,2)) -> 3.66 | J22: =IF((J21)=0,(0),ROUND('Blaney Calc'!$N$11,2)) -> 3.63 | K22: =IF((K21)=0,(0),ROUND('Blaney Calc'!$N$12,2)) -> 3.28 | L22: =IF((L21)=0,(0),ROUND('Blaney Calc'!$N$13,2)) -> 2.06 | M22: =IF((M21)=0,(0),ROUND('Blaney Calc'!$N$14,2)) -> 0.95 | N22: =IF((N21)=0,(0),ROUND('Blaney Calc'!$N$15,2)) -> 0.75 | O22: =ROUND(SUM(C22:N22),2) -> 25.38
B23: =IF(InputControl!$B$12=2,"2-in-10 Effective Rainfall (inches)","1-in-10 Effective Rainfall (inches)") -> 1-in-10 Effective Rainfall (inches) | C23: =IF((C21)=0,(0),ROUND('Blaney Calc'!$P$4,2)) -> 0.67 | D23: =IF((D21)=0,(0),ROUND('Blaney Calc'!$P$5,2)) -> 0.83 | E23: =IF((E21)=0,(0),ROUND('Blaney Calc'!$P$6,2)) -> 1.16 | F23: =IF((F21)=0,(0),ROUND('Blaney Calc'!$P$7,2)) -> 1.21 | G23: =IF((G21)=0,(0),ROUND('Blaney Calc'!$P$8,2)) -> 1.95 | H23: =IF((H21)=0,(0),ROUND('Blaney Calc'!$P$9,2)) -> 3.23 | I23: =IF((I21)=0,(0),ROUND('Blaney Calc'!$P$10,2)) -> 3 | J23: =IF((J21)=0,(0),ROUND('Blaney Calc'!$P$11,2)) -> 2.98 | K23: =IF((K21)=0,(0),ROUND('Blaney Calc'!$P$12,2)) -> 2.69 | L23: =IF((L21)=0,(0),ROUND('Blaney Calc'!$P$13,2)) -> 1.69 | M23: =IF((M21)=0,(0),ROUND('Blaney Calc'!$P$14,2)) -> 0.78 | N23: =IF((N21)=0,(0),ROUND('Blaney Calc'!$P$15,2)) -> 0.62 | O23: =ROUND(SUM(C23:N23),2) -> 20.81
B24: Average Irrigation (inches) | C24: =IF((C21-C22)>=0,(C21-C22),0) -> 0.89 | D24: =IF((D21-D22)>=0,(D21-D22),0) -> 1.03 | E24: 2.15 | F24: 3.48 | G24: 4.24 | H24: 3.46 | I24: 4.2 | J24: 3.85 | K24: 3 | L24: 2.68 | M24: 2.04 | N24: 1.26 | O24: 32.28
B25: =IF(InputControl!$B$12=2,"2-in-10 Irrigation (inches)","1-in-10 Irrigation (inches)") -> 1-in-10 Irrigation (inches) | C25: =IF((C21-C23)>=0,(C21-C23),0) -> 1.04 | D25: =IF((D21-D23)>=0,(D21-D23),0) -> 1.22 | E25: 2.41 | F25: 3.75 | G25: 4.66 | H25: 4.17 | I25: 4.86 | J25: 4.5 | K25: 3.59 | L25: 3.05 | M25: 2.21 | N25: 1.39 | O25: 36.85
B29: =CONCATENATE(IF(InputControl!$B$12=2,"2-in-10 Annual Supplemental Crop Requirement = ","1-in-10 Annual Supplemental Crop Requirement = "),O25," inches") -> 1-in-10 Annual Supplemental Crop Requirement = 36.85 inches
B31: Annual Supplemental Crop Water Use:
E33: =CONCATENATE(O25," inches X ",Input2!$C$13," Acres X ",IF(InputControl!$B$12=2,IF(Input2!$C$12="YES",VLOOKUP(InputControl!B89,'Irr System'!$A$3:$E$24,4,FALSE),VLOOKUP(InputControl!B89,'Irr System'!$A$3:$E$24,5,FALSE)),IF(Input2!$C$12="YES",VLOOKUP(InputControl!B89,'Irr System'!$A$28:$E$49,4,FALSE),VLOOKUP(InputControl!B89,'Irr System'!$A$28:$E$49,5,FALSE)))," X 0.02715 MG/AC-IN = ",'Blaney Calc'!G31,'Blaney Calc'!G32) -> 36.85 inches X 1 Acres X 1.18 X 0.02715 MG/AC-IN = 1.18 MG
B36: =CONCATENATE(IF(InputControl!$B$12=2,"2-in-10 Maximum Monthly Supplemental Crop Requirement = ","1-in-10 Maximum Monthly Supplemental Crop Requirement = "),IF((InputControl!$B$57=13)*AND(InputControl!$A$160<>0),InputControl!A160,MAX(C25:N25))," inches") -> 1-in-10 Maximum Monthly Supplemental Crop Requirement = 4.86 inches
B38: Maximum Monthly Supplemental Crop Water Use:
E40: =CONCATENATE(IF((InputControl!$B$57=13)*AND(InputControl!$A$160<>0),InputControl!A160,MAX(C25:N25))," inches X ",Input2!$C$13," Acres X ",IF(InputControl!$B$12=2,IF(Input2!$C$12="YES",VLOOKUP(InputControl!B89,'Irr System'!$A$3:$E$24,4,FALSE),VLOOKUP(InputControl!B89,'Irr System'!$A$3:$E$24,5,FALSE)),IF(Input2!$C$12="YES",VLOOKUP(InputControl!B89,'Irr System'!$A$28:$E$49,4,FALSE),VLOOKUP(InputControl!B89,'Irr System'!$A$28:$E$49,5,FALSE)))," X 0.02715 MG/AC-IN = ",'Blaney Calc'!G33,'Blaney Calc'!G34) -> 4.86 inches X 1 Acres X 1.18 X 0.02715 MG/AC-IN = 156,000 gallons
B42: =CONCATENATE(IF('Blaney Calc'!D20<>0,"Salt Flush Demand:",""),IF('Blaney Calc'!D20<>0," Salt Flush Depth of ",""),IF('Blaney Calc'!D20<>0,Input2!G14,""),IF('Blaney Calc'!D20<>0," inches X ",""),IF('Blaney Calc'!D20<>0,Input2!$C$13,""),IF('Blaney Calc'!D20<>0," Acres = ",""),IF('Blaney Calc'!D20<>0,'Blaney Calc'!E33,""),IF('Blaney Calc'!D20<>0,'Blaney Calc'!E34,"")) -> 
B44: =CONCATENATE(IF('Blaney Calc'!D20<>0,"Maximum Monthly Supplemental Crop Water Use (Including Salt Flush): ",""),IF('Blaney Calc'!D20<>0,'Blaney Calc'!H33,""),IF('Blaney Calc'!D20<>0,'Blaney Calc'!H34,"")) -> 
B46: Notes:
B47: Evapotranspiration was calculated using a modified Blaney-Criddle method.
B48: Average effective rainfall is the amount that is useful to crops in an average year
B49: =CONCATENATE(IF((InputControl!$B$12=1),"Drought rainfall is the rainfall minimum representative of a 1-in-10 year","2-in-10 drought rainfall is the rainfall minimum expected with a")," drought") -> Drought rainfall is the rainfall minimum representative of a 1-in-10 year drought
B50: =CONCATENATE(IF((InputControl!$B$12=1),"Drought effective rainfall is the amount that is useful to crops in a","2-in-10 effective rainfall is the amount that is useful to crops in a"),IF((InputControl!$B$12=1)," 1-in-10 year","2-in-10")) -> Drought effective rainfall is the amount that is useful to crops in a 1-in-10 year
B51: =IF((InputControl!$B$12=1),"drought event.","drought rainfall.") -> drought event.
B52: Average irrigation is the net amount that should be required for maximum yields during an
B53: average year.
B54: =IF((InputControl!$B$12=1),"Drought irrigation is the net amount that should be required for maximum yields during","2-in-10 irrigation is the net amount that should be required for maximum yields during") -> Drought irrigation is the net amount that should be required for maximum yields during
B55: =IF((InputControl!$B$12=1),"a 1-in-10 year drought.","a 2-in-10 drought year.") -> a 1-in-10 year drought.
N56: =CONCATENATE("EXHIBIT ",Input2!N10) -> EXHIBIT

Sheet Exhibit Totals
D3: Summation of All Irrigation Requirements | O3: =IF(InputControl!$B$12=2,"(2-in-10)","(1-in-10)") -> (1-in-10)
B5: No. | C5: Parcel Name | H5: Crop | K5: acres | M5: Plant No. in Parcel | O5: Multiple Plantings in Parcel | P5: Salt Flush
B6: Inches | C6: Jan | D6: Feb | E6: Mar | F6: Apr | G6: May | H6: Jun | I6: Jul | J6: Aug | K6: Sep | L6: Oct | M6: Nov | N6: Dec | O6: Mx Mon | P6: Annual
B8: =IF('Crop Count'!A10<>"",'Crop Count'!A10,"") -> 1 | C8: =IF('Crop Count'!A10<>"",'Crop Count'!E10,"") ->  | H8: =IF('Crop Count'!A10<>"",'Crop Count'!G10,"") -> Pasture | K8: =IF('Crop Count'!A10<>"",'Crop Count'!H10,"") -> 217 | M8: =IF('Crop Count'!A10<>"",'Crop Count'!B10,"") -> 1 | O8: =IF('Crop Count'!A10<>"",'Crop Count'!C10,"") -> NO | P8: =IF('Crop Count'!A10<>"",'Crop Count'!D10,"") -> NO
C9: =IF('Crop Count'!$A10<>"",'Crop Count'!N55,"") -> 0.95 | D9: =IF('Crop Count'!$A10<>"",'Crop Count'!O55,"") -> 1.35 | E9: =IF('Crop Count'!$A10<>"",'Crop Count'!P55,"") -> 2.29 | F9: =IF('Crop Count'!$A10<>"",'Crop Count'!Q55,"") -> 2.92 | G9: =IF('Crop Count'!$A10<>"",'Crop Count'!R55,"") -> 3.26 | H9: =IF('Crop Count'!$A10<>"",'Crop Count'!S55,"") -> 1.43 | I9: =IF('Crop Count'!$A10<>"",'Crop Count'!T55,"") -> 2.02 | J9: =IF('Crop Count'!$A10<>"",'Crop Count'!U55,"") -> 2.14 | K9: =IF('Crop Count'!$A10<>"",'Crop Count'!V55,"") -> 1.21 | L9: =IF('Crop Count'!$A10<>"",'Crop Count'!W55,"") -> 1.85 | M9: =IF('Crop Count'!$A10<>"",'Crop Count'!X55,"") -> 1.49 | N9: =IF('Crop Count'!$A10<>"",'Crop Count'!Y55,"") -> 1.02 | O9: =IF(AND('Crop Count'!$A10<>"",'Crop Count'!AC55<>""),'Crop Count'!AC55,IF('Crop Count'!$A10<>"",'Crop Count'!AA55,"")) -> 3.26 | P9: =IF('Crop Count'!$A10<>"",'Crop Count'!Z55,"") -> 21.93
B10: =IF('Crop Count'!A11<>"",'Crop Count'!A11,"") -> 2 | C10: =IF('Crop Count'!A11<>"",'Crop Count'!E11,"") ->  | H10: =IF('Crop Count'!A11<>"",'Crop Count'!G11,"") -> Sugarcane | K10: =IF('Crop Count'!A11<>"",'Crop Count'!H11,"") -> 156 | M10: =IF('Crop Count'!A11<>"",'Crop Count'!B11,"") -> 1 | O10: =IF('Crop Count'!A11<>"",'Crop Count'!C11,"") -> NO | P10: =IF('Crop Count'!A11<>"",'Crop Count'!D11,"") -> NO
C11: =IF('Crop Count'!$A11<>"",'Crop Count'!N56,"") -> 0.71 | D11: =IF('Crop Count'!$A11<>"",'Crop Count'!O56,"") -> 0.33 | E11: =IF('Crop Count'!$A11<>"",'Crop Count'!P56,"") -> 1.83 | F11: =IF('Crop Count'!$A11<>"",'Crop Count'!Q56,"") -> 2.54 | G11: =IF('Crop Count'!$A11<>"",'Crop Count'!R56,"") -> 3.26 | H11: =IF('Crop Count'!$A11<>"",'Crop Count'!S56,"") -> 3.16 | I11: =IF('Crop Count'!$A11<>"",'Crop Count'!T56,"") -> 3.66 | J11: =IF('Crop Count'!$A11<>"",'Crop Count'!U56,"") -> 3.95 | K11: =IF('Crop Count'!$A11<>"",'Crop Count'!V56,"") -> 2.5 | L11: =IF('Crop Count'!$A11<>"",'Crop Count'!W56,"") -> 3.8 | M11: =IF('Crop Count'!$A11<>"",'Crop Count'!X56,"") -> 2.47 | N11: =IF('Crop Count'!$A11<>"",'Crop Count'!Y56,"") -> 1.93 | O11: =IF(AND('Crop Count'!$A11<>"",'Crop Count'!AC56<>""),'Crop Count'!AC56,IF('Crop Count'!$A11<>"",'Crop Count'!AA56,"")) -> 3.95 | P11: =IF('Crop Count'!$A11<>"",'Crop Count'!Z56,"") -> 30.14
B12: =IF('Crop Count'!A12<>"",'Crop Count'!A12,"") -> 3 | C12: =IF('Crop Count'!A12<>"",'Crop Count'!E12,"") ->  | H12: =IF('Crop Count'!A12<>"",'Crop Count'!G12,"") -> Citrus | K12: =IF('Crop Count'!A12<>"",'Crop Count'!H12,"") -> 1810 | M12: =IF('Crop Count'!A12<>"",'Crop Count'!B12,"") -> 1 | O12: =IF('Crop Count'!A12<>"",'Crop Count'!C12,"") -> NO | P12: =IF('Crop Count'!A12<>"",'Crop Count'!D12,"") -> NO
C13: =IF('Crop Count'!$A12<>"",'Crop Count'!N57,"") -> 1.55 | D13: =IF('Crop Count'!$A12<>"",'Crop Count'!O57,"") -> 1.56 | E13: =IF('Crop Count'!$A12<>"",'Crop Count'!P57,"") -> 2.52 | F13: =IF('Crop Count'!$A12<>"",'Crop Count'!Q57,"") -> 3.03 | G13: =IF('Crop Count'!$A12<>"",'Crop Count'!R57,"") -> 3.33 | H13: =IF('Crop Count'!$A12<>"",'Crop Count'!S57,"") -> 2.64 | I13: =IF('Crop Count'!$A12<>"",'Crop Count'!T57,"") -> 3.09 | J13: =IF('Crop Count'!$A12<>"",'Crop Count'!U57,"") -> 3.05 | K13: =IF('Crop Count'!$A12<>"",'Crop Count'!V57,"") -> 2.32 | L13: =IF('Crop Count'!$A12<>"",'Crop Count'!W57,"") -> 2.69 | M13: =IF('Crop Count'!$A12<>"",'Crop Count'!X57,"") -> 2.26 | N13: =IF('Crop Count'!$A12<>"",'Crop Count'!Y57,"") -> 1.75 | O13: =IF(AND('Crop Count'!$A12<>"",'Crop Count'!AC57<>""),'Crop Count'!AC57,IF('Crop Count'!$A12<>"",'Crop Count'!AA57,"")) -> 5.16 | P13: =IF('Crop Count'!$A12<>"",'Crop Count'!Z57,"") -> 29.79
B14: =IF('Crop Count'!A13<>"",'Crop Count'!A13,"") ->  | C14: =IF('Crop Count'!A13<>"",'Crop Count'!E13,IF(OR(AND(C10="Total Maximum Monthly Demand = ",C12="Total Annual Demand = "),AND(C10="",C12="")),"",IF(AND(C10="",C12="Total Maximum Monthly Demand = "),"Total Annual Demand = ",IF(OR(C10="Total Annual Demand = ",C10="",C12<>""),"","Total Maximum Monthly Demand = ")))) ->  | H14: =IF('Crop Count'!A13<>"",'Crop Count'!G13,IF(C14="Total Maximum Monthly Demand = ",CONCATENATE('Crop Count'!$AI$30,'Crop Count'!$AI$31), IF(C14="Total Annual Demand = ",CONCATENATE('Crop Count'!$AJ$30,'Crop Count'!$AJ$31),""))) ->  | K14: =IF('Crop Count'!A13<>"",'Crop Count'!H13,"") ->  | M14: =IF('Crop Count'!A13<>"",'Crop Count'!B13,"") ->  | O14: =IF('Crop Count'!A13<>"",'Crop Count'!C13,"") ->  | P14: =IF('Crop Count'!A13<>"",'Crop Count'!D13,"") -> 
C15: =IF('Crop Count'!$A13<>"",'Crop Count'!N58,"") ->  | D15: =IF('Crop Count'!$A13<>"",'Crop Count'!O58,"") ->  | E15: =IF('Crop Count'!$A13<>"",'Crop Count'!P58,"") ->  | F15: =IF('Crop Count'!$A13<>"",'Crop Count'!Q58,"") ->  | G15: =IF('Crop Count'!$A13<>"",'Crop Count'!R58,"") ->  | H15: =IF('Crop Count'!$A13<>"",'Crop Count'!S58,"") ->  | I15: =IF('Crop Count'!$A13<>"",'Crop Count'!T58,"") ->  | J15: =IF('Crop Count'!$A13<>"",'Crop Count'!U58,"") ->  | K15: =IF('Crop Count'!$A13<>"",'Crop Count'!V58,"") ->  | L15: =IF('Crop Count'!$A13<>"",'Crop Count'!W58,"") ->  | M15: =IF('Crop Count'!$A13<>"",'Crop Count'!X58,"") ->  | N15: =IF('Crop Count'!$A13<>"",'Crop Count'!Y58,"") ->  | O15: =IF(AND('Crop Count'!$A13<>"",'Crop Count'!AC58<>""),'Crop Count'!AC58,IF('Crop Count'!$A13<>"",'Crop Count'!AA58,"")) ->  | P15: =IF('Crop Count'!$A13<>"",'Crop Count'!Z58,"") -> 
B16: =IF('Crop Count'!A14<>"",'Crop Count'!A14,"") ->  | C16: =IF('Crop Count'!A14<>"",'Crop Count'!E14,IF(OR(AND(C12="Total Maximum Monthly Demand = ",C14="Total Annual Demand = "),AND(C12="",C14="")),"",IF(AND(C12="",C14="Total Maximum Monthly Demand = "),"Total Annual Demand = ",IF(OR(C12="Total Annual Demand = ",C12="",C14<>""),"","Total Maximum Monthly Demand = ")))) -> Total Maximum Monthly Demand = | H16: =IF('Crop Count'!A14<>"",'Crop Count'!G14,IF(C16="Total Maximum Monthly Demand = ",CONCATENATE('Crop Count'!$AI$30,'Crop Count'!$AI$31), IF(C16="Total Annual Demand = ",CONCATENATE('Crop Count'!$AJ$30,'Crop Count'!$AJ$31),""))) -> 365.24 MG | K16: =IF('Crop Count'!A14<>"",'Crop Count'!H14,"") ->  | M16: =IF('Crop Count'!A14<>"",'Crop Count'!B14,"") ->  | O16: =IF('Crop Count'!A14<>"",'Crop Count'!C14,"") ->  | P16: =IF('Crop Count'!A14<>"",'Crop Count'!D14,"") -> 
C17: =IF('Crop Count'!$A14<>"",'Crop Count'!N59,"") ->  | D17: =IF('Crop Count'!$A14<>"",'Crop Count'!O59,"") ->  | E17: =IF('Crop Count'!$A14<>"",'Crop Count'!P59,"") ->  | F17: =IF('Crop Count'!$A14<>"",'Crop Count'!Q59,"") ->  | G17: =IF('Crop Count'!$A14<>"",'Crop Count'!R59,"") ->  | H17: =IF('Crop Count'!$A14<>"",'Crop Count'!S59,"") ->  | I17: =IF('Crop Count'!$A14<>"",'Crop Count'!T59,"") ->  | J17: =IF('Crop Count'!$A14<>"",'Crop Count'!U59,"") ->  | K17: =IF('Crop Count'!$A14<>"",'Crop Count'!V59,"") ->  | L17: =IF('Crop Count'!$A14<>"",'Crop Count'!W59,"") ->  | M17: =IF('Crop Count'!$A14<>"",'Crop Count'!X59,"") ->  | N17: =IF('Crop Count'!$A14<>"",'Crop Count'!Y59,"") ->  | O17: =IF(AND('Crop Count'!$A14<>"",'Crop Count'!AC59<>""),'Crop Count'!AC59,IF('Crop Count'!$A14<>"",'Crop Count'!AA59,"")) ->  | P17: =IF('Crop Count'!$A14<>"",'Crop Count'!Z59,"") -> 
B18: =IF('Crop Count'!A15<>"",'Crop Count'!A15,"") ->  | C18: =IF('Crop Count'!A15<>"",'Crop Count'!E15,IF(OR(AND(C14="Total Maximum Monthly Demand = ",C16="Total Annual Demand = "),AND(C14="",C16="")),"",IF(AND(C14="",C16="Total Maximum Monthly Demand = "),"Total Annual Demand = ",IF(OR(C14="Total Annual Demand = ",C14="",C16<>""),"","Total Maximum Monthly Demand = ")))) -> Total Annual Demand = | H18: =IF('Crop Count'!A15<>"",'Crop Count'!G15,IF(C18="Total Maximum Monthly Demand = ",CONCATENATE('Crop Count'!$AI$30,'Crop Count'!$AI$31), IF(C18="Total Annual Demand = ",CONCATENATE('Crop Count'!$AJ$30,'Crop Count'!$AJ$31),""))) -> 2,241.15 MG | K18: =IF('Crop Count'!A15<>"",'Crop Count'!H15,"") ->  | M18: =IF('Crop Count'!A15<>"",'Crop Count'!B15,"") ->  | O18: =IF('Crop Count'!A15<>"",'Crop Count'!C15,"") ->  | P18: =IF('Crop Count'!A15<>"",'Crop Count'!D15,"") -> 
C19: =IF('Crop Count'!$A15<>"",'Crop Count'!N60,"") ->  | D19: =IF('Crop Count'!$A15<>"",'Crop Count'!O60,"") ->  | E19: =IF('Crop Count'!$A15<>"",'Crop Count'!P60,"") ->  | F19: =IF('Crop Count'!$A15<>"",'Crop Count'!Q60,"") ->  | G19: =IF('Crop Count'!$A15<>"",'Crop Count'!R60,"") ->  | H19: =IF('Crop Count'!$A15<>"",'Crop Count'!S60,"") ->  | I19: =IF('Crop Count'!$A15<>"",'Crop Count'!T60,"") ->  | J19: =IF('Crop Count'!$A15<>"",'Crop Count'!U60,"") ->  | K19: =IF('Crop Count'!$A15<>"",'Crop Count'!V60,"") ->  | L19: =IF('Crop Count'!$A15<>"",'Crop Count'!W60,"") ->  | M19: =IF('Crop Count'!$A15<>"",'Crop Count'!X60,"") ->  | N19: =IF('Crop Count'!$A15<>"",'Crop Count'!Y60,"") ->  | O19: =IF(AND('Crop Count'!$A15<>"",'Crop Count'!AC60<>""),'Crop Count'!AC60,IF('Crop Count'!$A15<>"",'Crop Count'!AA60,"")) ->  | P19: =IF('Crop Count'!$A15<>"",'Crop Count'!Z60,"") -> 
B20: =IF('Crop Count'!A16<>"",'Crop Count'!A16,"") ->  | C20: =IF('Crop Count'!A16<>"",'Crop Count'!E16,IF(OR(AND(C16="Total Maximum Monthly Demand = ",C18="Total Annual Demand = "),AND(C16="",C18="")),"",IF(AND(C16="",C18="Total Maximum Monthly Demand = "),"Total Annual Demand = ",IF(OR(C16="Total Annual Demand = ",C16="",C18<>""),"","Total Maximum Monthly Demand = ")))) ->  | H20: =IF('Crop Count'!A16<>"",'Crop Count'!G16,IF(C20="Total Maximum Monthly Demand = ",CONCATENATE('Crop Count'!$AI$30,'Crop Count'!$AI$31), IF(C20="Total Annual Demand = ",CONCATENATE('Crop Count'!$AJ$30,'Crop Count'!$AJ$31),""))) ->  | K20: =IF('Crop Count'!A16<>"",'Crop Count'!H16,"") ->  | M20: =IF('Crop Count'!A16<>"",'Crop Count'!B16,"") ->  | O20: =IF('Crop Count'!A16<>"",'Crop Count'!C16,"") ->  | P20: =IF('Crop Count'!A16<>"",'Crop Count'!D16,"") -> 
C21: =IF('Crop Count'!$A16<>"",'Crop Count'!N61,"") ->  | D21: =IF('Crop Count'!$A16<>"",'Crop Count'!O61,"") ->  | E21: =IF('Crop Count'!$A16<>"",'Crop Count'!P61,"") ->  | F21: =IF('Crop Count'!$A16<>"",'Crop Count'!Q61,"") ->  | G21: =IF('Crop Count'!$A16<>"",'Crop Count'!R61,"") ->  | H21: =IF('Crop Count'!$A16<>"",'Crop Count'!S61,"") ->  | I21: =IF('Crop Count'!$A16<>"",'Crop Count'!T61,"") ->  | J21: =IF('Crop Count'!$A16<>"",'Crop Count'!U61,"") ->  | K21: =IF('Crop Count'!$A16<>"",'Crop Count'!V61,"") ->  | L21: =IF('Crop Count'!$A16<>"",'Crop Count'!W61,"") ->  | M21: =IF('Crop Count'!$A16<>"",'Crop Count'!X61,"") ->  | N21: =IF('Crop Count'!$A16<>"",'Crop Count'!Y61,"") ->  | O21: =IF(AND('Crop Count'!$A16<>"",'Crop Count'!AC61<>""),'Crop Count'!AC61,IF('Crop Count'!$A16<>"",'Crop Count'!AA61,"")) ->  | P21: =IF('Crop Count'!$A16<>"",'Crop Count'!Z61,"") -> 
B22: =IF('Crop Count'!A17<>"",'Crop Count'!A17,"") ->  | C22: =IF('Crop Count'!A17<>"",'Crop Count'!E17,IF(OR(AND(C18="Total Maximum Monthly Demand = ",C20="Total Annual Demand = "),AND(C18="",C20="")),"",IF(AND(C18="",C20="Total Maximum Monthly Demand = "),"Total Annual Demand = ",IF(OR(C18="Total Annual Demand = ",C18="",C20<>""),"","Total Maximum Monthly Demand = ")))) ->  | H22: =IF('Crop Count'!A17<>"",'Crop Count'!G17,IF(C22="Total Maximum Monthly Demand = ",CONCATENATE('Crop Count'!$AI$30,'Crop Count'!$AI$31), IF(C22="Total Annual Demand = ",CONCATENATE('Crop Count'!$AJ$30,'Crop Count'!$AJ$31),""))) ->  | K22: =IF('Crop Count'!A17<>"",'Crop Count'!H17,"") ->  | M22: =IF('Crop Count'!A17<>"",'Crop Count'!B17,"") ->  | O22: =IF('Crop Count'!A17<>"",'Crop Count'!C17,"") ->  | P22: =IF('Crop Count'!A17<>"",'Crop Count'!D17,"") -> 
C23: =IF('Crop Count'!$A17<>"",'Crop Count'!N62,"") ->  | D23: =IF('Crop Count'!$A17<>"",'Crop Count'!O62,"") ->  | E23: =IF('Crop Count'!$A17<>"",'Crop Count'!P62,"") ->  | F23: =IF('Crop Count'!$A17<>"",'Crop Count'!Q62,"") ->  | G23: =IF('Crop Count'!$A17<>"",'Crop Count'!R62,"") ->  | H23: =IF('Crop Count'!$A17<>"",'Crop Count'!S62,"") ->  | I23: =IF('Crop Count'!$A17<>"",'Crop Count'!T62,"") ->  | J23: =IF('Crop Count'!$A17<>"",'Crop Count'!U62,"") ->  | K23: =IF('Crop Count'!$A17<>"",'Crop Count'!V62,"") ->  | L23: =IF('Crop Count'!$A17<>"",'Crop Count'!W62,"") ->  | M23: =IF('Crop Count'!$A17<>"",'Crop Count'!X62,"") ->  | N23: =IF('Crop Count'!$A17<>"",'Crop Count'!Y62,"") ->  | O23: =IF(AND('Crop Count'!$A17<>"",'Crop Count'!AC62<>""),'Crop Count'!AC62,IF('Crop Count'!$A17<>"",'Crop Count'!AA62,"")) ->  | P23: =IF('Crop Count'!$A17<>"",'Crop Count'!Z62,"") -> 
B24: =IF('Crop Count'!A18<>"",'Crop Count'!A18,"") ->  | C24: =IF('Crop Count'!A18<>"",'Crop Count'!E18,IF(OR(AND(C20="Total Maximum Monthly Demand = ",C22="Total Annual Demand = "),AND(C20="",C22="")),"",IF(AND(C20="",C22="Total Maximum Monthly Demand = "),"Total Annual Demand = ",IF(OR(C20="Total Annual Demand = ",C20="",C22<>""),"","Total Maximum Monthly Demand = ")))) ->  | H24: =IF('Crop Count'!A18<>"",'Crop Count'!G18,IF(C24="Total Maximum Monthly Demand = ",CONCATENATE('Crop Count'!$AI$30,'Crop Count'!$AI$31), IF(C24="Total Annual Demand = ",CONCATENATE('Crop Count'!$AJ$30,'Crop Count'!$AJ$31),""))) ->  | K24: =IF('Crop Count'!A18<>"",'Crop Count'!H18,"") ->  | M24: =IF('Crop Count'!A18<>"",'Crop Count'!B18,"") ->  | O24: =IF('Crop Count'!A18<>"",'Crop Count'!C18,"") ->  | P24: =IF('Crop Count'!A18<>"",'Crop Count'!D18,"") -> 
C25: =IF('Crop Count'!$A18<>"",'Crop Count'!N63,"") ->  | D25: =IF('Crop Count'!$A18<>"",'Crop Count'!O63,"") ->  | E25: =IF('Crop Count'!$A18<>"",'Crop Count'!P63,"") ->  | F25: =IF('Crop Count'!$A18<>"",'Crop Count'!Q63,"") ->  | G25: =IF('Crop Count'!$A18<>"",'Crop Count'!R63,"") ->  | H25: =IF('Crop Count'!$A18<>"",'Crop Count'!S63,"") ->  | I25: =IF('Crop Count'!$A18<>"",'Crop Count'!T63,"") ->  | J25: =IF('Crop Count'!$A18<>"",'Crop Count'!U63,"") ->  | K25: =IF('Crop Count'!$A18<>"",'Crop Count'!V63,"") ->  | L25: =IF('Crop Count'!$A18<>"",'Crop Count'!W63,"") ->  | M25: =IF('Crop Count'!$A18<>"",'Crop Count'!X63,"") ->  | N25: =IF('Crop Count'!$A18<>"",'Crop Count'!Y63,"") ->  | O25: =IF(AND('Crop Count'!$A18<>"",'Crop Count'!AC63<>""),'Crop Count'!AC63,IF('Crop Count'!$A18<>"",'Crop Count'!AA63,"")) ->  | P25: =IF('Crop Count'!$A18<>"",'Crop Count'!Z63,"") -> 
B26: =IF('Crop Count'!A19<>"",'Crop Count'!A19,"") ->  | C26: =IF('Crop Count'!A19<>"",'Crop Count'!E19,IF(OR(AND(C22="Total Maximum Monthly Demand = ",C24="Total Annual Demand = "),AND(C22="",C24="")),"",IF(AND(C22="",C24="Total Maximum Monthly Demand = "),"Total Annual Demand = ",IF(OR(C22="Total Annual Demand = ",C22="",C24<>""),"","Total Maximum Monthly Demand = ")))) ->  | H26: =IF('Crop Count'!A19<>"",'Crop Count'!G19,IF(C26="Total Maximum Monthly Demand = ",CONCATENATE('Crop Count'!$AI$30,'Crop Count'!$AI$31), IF(C26="Total Annual Demand = ",CONCATENATE('Crop Count'!$AJ$30,'Crop Count'!$AJ$31),""))) ->  | K26: =IF('Crop Count'!A19<>"",'Crop Count'!H19,"") ->  | M26: =IF('Crop Count'!A19<>"",'Crop Count'!B19,"") ->  | O26: =IF('Crop Count'!A19<>"",'Crop Count'!C19,"") ->  | P26: =IF('Crop Count'!A19<>"",'Crop Count'!D19,"") -> 
C27: =IF('Crop Count'!$A19<>"",'Crop Count'!N64,"") ->  | D27: =IF('Crop Count'!$A19<>"",'Crop Count'!O64,"") ->  | E27: =IF('Crop Count'!$A19<>"",'Crop Count'!P64,"") ->  | F27: =IF('Crop Count'!$A19<>"",'Crop Count'!Q64,"") ->  | G27: =IF('Crop Count'!$A19<>"",'Crop Count'!R64,"") ->  | H27: =IF('Crop Count'!$A19<>"",'Crop Count'!S64,"") ->  | I27: =IF('Crop Count'!$A19<>"",'Crop Count'!T64,"") ->  | J27: =IF('Crop Count'!$A19<>"",'Crop Count'!U64,"") ->  | K27: =IF('Crop Count'!$A19<>"",'Crop Count'!V64,"") ->  | L27: =IF('Crop Count'!$A19<>"",'Crop Count'!W64,"") ->  | M27: =IF('Crop Count'!$A19<>"",'Crop Count'!X64,"") ->  | N27: =IF('Crop Count'!$A19<>"",'Crop Count'!Y64,"") ->  | O27: =IF(AND('Crop Count'!$A19<>"",'Crop Count'!AC64<>""),'Crop Count'!AC64,IF('Crop Count'!$A19<>"",'Crop Count'!AA64,"")) ->  | P27: =IF('Crop Count'!$A19<>"",'Crop Count'!Z64,"") -> 
B28: =IF('Crop Count'!A20<>"",'Crop Count'!A20,"") ->  | C28: =IF('Crop Count'!A20<>"",'Crop Count'!E20,IF(OR(AND(C24="Total Maximum Monthly Demand = ",C26="Total Annual Demand = "),AND(C24="",C26="")),"",IF(AND(C24="",C26="Total Maximum Monthly Demand = "),"Total Annual Demand = ",IF(OR(C24="Total Annual Demand = ",C24="",C26<>""),"","Total Maximum Monthly Demand = ")))) ->  | H28: =IF('Crop Count'!A20<>"",'Crop Count'!G20,IF(C28="Total Maximum Monthly Demand = ",CONCATENATE('Crop Count'!$AI$30,'Crop Count'!$AI$31), IF(C28="Total Annual Demand = ",CONCATENATE('Crop Count'!$AJ$30,'Crop Count'!$AJ$31),""))) ->  | K28: =IF('Crop Count'!A20<>"",'Crop Count'!H20,"") ->  | M28: =IF('Crop Count'!A20<>"",'Crop Count'!B20,"") ->  | O28: =IF('Crop Count'!A20<>"",'Crop Count'!C20,"") ->  | P28: =IF('Crop Count'!A20<>"",'Crop Count'!D20,"") -> 
C29: =IF('Crop Count'!$A20<>"",'Crop Count'!N65,"") ->  | D29: =IF('Crop Count'!$A20<>"",'Crop Count'!O65,"") ->  | E29: =IF('Crop Count'!$A20<>"",'Crop Count'!P65,"") ->  | F29: =IF('Crop Count'!$A20<>"",'Crop Count'!Q65,"") ->  | G29: =IF('Crop Count'!$A20<>"",'Crop Count'!R65,"") ->  | H29: =IF('Crop Count'!$A20<>"",'Crop Count'!S65,"") ->  | I29: =IF('Crop Count'!$A20<>"",'Crop Count'!T65,"") ->  | J29: =IF('Crop Count'!$A20<>"",'Crop Count'!U65,"") ->  | K29: =IF('Crop Count'!$A20<>"",'Crop Count'!V65,"") ->  | L29: =IF('Crop Count'!$A20<>"",'Crop Count'!W65,"") ->  | M29: =IF('Crop Count'!$A20<>"",'Crop Count'!X65,"") ->  | N29: =IF('Crop Count'!$A20<>"",'Crop Count'!Y65,"") ->  | O29: =IF(AND('Crop Count'!$A20<>"",'Crop Count'!AC65<>""),'Crop Count'!AC65,IF('Crop Count'!$A20<>"",'Crop Count'!AA65,"")) ->  | P29: =IF('Crop Count'!$A20<>"",'Crop Count'!Z65,"") -> 
B30: =IF('Crop Count'!A21<>"",'Crop Count'!A21,"") ->  | C30: =IF('Crop Count'!A21<>"",'Crop Count'!E21,IF(OR(AND(C26="Total Maximum Monthly Demand = ",C28="Total Annual Demand = "),AND(C26="",C28="")),"",IF(AND(C26="",C28="Total Maximum Monthly Demand = "),"Total Annual Demand = ",IF(OR(C26="Total Annual Demand = ",C26="",C28<>""),"","Total Maximum Monthly Demand = ")))) ->  | H30: =IF('Crop Count'!A21<>"",'Crop Count'!G21,IF(C30="Total Maximum Monthly Demand = ",CONCATENATE('Crop Count'!$AI$30,'Crop Count'!$AI$31), IF(C30="Total Annual Demand = ",CONCATENATE('Crop Count'!$AJ$30,'Crop Count'!$AJ$31),""))) ->  | K30: =IF('Crop Count'!A21<>"",'Crop Count'!H21,"") ->  | M30: =IF('Crop Count'!A21<>"",'Crop Count'!B21,"") ->  | O30: =IF('Crop Count'!A21<>"",'Crop Count'!C21,"") ->  | P30: =IF('Crop Count'!A21<>"",'Crop Count'!D21,"") -> 
C31: =IF('Crop Count'!$A21<>"",'Crop Count'!N66,"") ->  | D31: =IF('Crop Count'!$A21<>"",'Crop Count'!O66,"") ->  | E31: =IF('Crop Count'!$A21<>"",'Crop Count'!P66,"") ->  | F31: =IF('Crop Count'!$A21<>"",'Crop Count'!Q66,"") ->  | G31: =IF('Crop Count'!$A21<>"",'Crop Count'!R66,"") ->  | H31: =IF('Crop Count'!$A21<>"",'Crop Count'!S66,"") ->  | I31: =IF('Crop Count'!$A21<>"",'Crop Count'!T66,"") ->  | J31: =IF('Crop Count'!$A21<>"",'Crop Count'!U66,"") ->  | K31: =IF('Crop Count'!$A21<>"",'Crop Count'!V66,"") ->  | L31: =IF('Crop Count'!$A21<>"",'Crop Count'!W66,"") ->  | M31: =IF('Crop Count'!$A21<>"",'Crop Count'!X66,"") ->  | N31: =IF('Crop Count'!$A21<>"",'Crop Count'!Y66,"") ->  | O31: =IF(AND('Crop Count'!$A21<>"",'Crop Count'!AC66<>""),'Crop Count'!AC66,IF('Crop Count'!$A21<>"",'Crop Count'!AA66,"")) ->  | P31: =IF('Crop Count'!$A21<>"",'Crop Count'!Z66,"") -> 
B32: =IF('Crop Count'!A22<>"",'Crop Count'!A22,"") ->  | C32: =IF('Crop Count'!A22<>"",'Crop Count'!E22,IF(OR(AND(C28="Total Maximum Monthly Demand = ",C30="Total Annual Demand = "),AND(C28="",C30="")),"",IF(AND(C28="",C30="Total Maximum Monthly Demand = "),"Total Annual Demand = ",IF(OR(C28="Total Annual Demand = ",C28="",C30<>""),"","Total Maximum Monthly Demand = ")))) ->  | H32: =IF('Crop Count'!A22<>"",'Crop Count'!G22,IF(C32="Total Maximum Monthly Demand = ",CONCATENATE('Crop Count'!$AI$30,'Crop Count'!$AI$31), IF(C32="Total Annual Demand = ",CONCATENATE('Crop Count'!$AJ$30,'Crop Count'!$AJ$31),""))) ->  | K32: =IF('Crop Count'!A22<>"",'Crop Count'!H22,"") ->  | M32: =IF('Crop Count'!A22<>"",'Crop Count'!B22,"") ->  | O32: =IF('Crop Count'!A22<>"",'Crop Count'!C22,"") ->  | P32: =IF('Crop Count'!A22<>"",'Crop Count'!D22,"") -> 
C33: =IF('Crop Count'!$A22<>"",'Crop Count'!N67,"") ->  | D33: =IF('Crop Count'!$A22<>"",'Crop Count'!O67,"") ->  | E33: =IF('Crop Count'!$A22<>"",'Crop Count'!P67,"") ->  | F33: =IF('Crop Count'!$A22<>"",'Crop Count'!Q67,"") ->  | G33: =IF('Crop Count'!$A22<>"",'Crop Count'!R67,"") ->  | H33: =IF('Crop Count'!$A22<>"",'Crop Count'!S67,"") ->  | I33: =IF('Crop Count'!$A22<>"",'Crop Count'!T67,"") ->  | J33: =IF('Crop Count'!$A22<>"",'Crop Count'!U67,"") ->  | K33: =IF('Crop Count'!$A22<>"",'Crop Count'!V67,"") ->  | L33: =IF('Crop Count'!$A22<>"",'Crop Count'!W67,"") ->  | M33: =IF('Crop Count'!$A22<>"",'Crop Count'!X67,"") ->  | N33: =IF('Crop Count'!$A22<>"",'Crop Count'!Y67,"") ->  | O33: =IF(AND('Crop Count'!$A22<>"",'Crop Count'!AC67<>""),'Crop Count'!AC67,IF('Crop Count'!$A22<>"",'Crop Count'!AA67,"")) ->  | P33: =IF('Crop Count'!$A22<>"",'Crop Count'!Z67,"") -> 
B34: =IF('Crop Count'!A23<>"",'Crop Count'!A23,"") ->  | C34: =IF('Crop Count'!A23<>"",'Crop Count'!E23,IF(OR(AND(C30="Total Maximum Monthly Demand = ",C32="Total Annual Demand = "),AND(C30="",C32="")),"",IF(AND(C30="",C32="Total Maximum Monthly Demand = "),"Total Annual Demand = ",IF(OR(C30="Total Annual Demand = ",C30="",C32<>""),"","Total Maximum Monthly Demand = ")))) ->  | H34: =IF('Crop Count'!A23<>"",'Crop Count'!G23,IF(C34="Total Maximum Monthly Demand = ",CONCATENATE('Crop Count'!$AI$30,'Crop Count'!$AI$31), IF(C34="Total Annual Demand = ",CONCATENATE('Crop Count'!$AJ$30,'Crop Count'!$AJ$31),""))) ->  | K34: =IF('Crop Count'!A23<>"",'Crop Count'!H23,"") ->  | M34: =IF('Crop Count'!A23<>"",'Crop Count'!B23,"") ->  | O34: =IF('Crop Count'!A23<>"",'Crop Count'!C23,"") ->  | P34: =IF('Crop Count'!A23<>"",'Crop Count'!D23,"") -> 
C35: =IF('Crop Count'!$A23<>"",'Crop Count'!N68,"") ->  | D35: =IF('Crop Count'!$A23<>"",'Crop Count'!O68,"") ->  | E35: =IF('Crop Count'!$A23<>"",'Crop Count'!P68,"") ->  | F35: =IF('Crop Count'!$A23<>"",'Crop Count'!Q68,"") ->  | G35: =IF('Crop Count'!$A23<>"",'Crop Count'!R68,"") ->  | H35: =IF('Crop Count'!$A23<>"",'Crop Count'!S68,"") ->  | I35: =IF('Crop Count'!$A23<>"",'Crop Count'!T68,"") ->  | J35: =IF('Crop Count'!$A23<>"",'Crop Count'!U68,"") ->  | K35: =IF('Crop Count'!$A23<>"",'Crop Count'!V68,"") ->  | L35: =IF('Crop Count'!$A23<>"",'Crop Count'!W68,"") ->  | M35: =IF('Crop Count'!$A23<>"",'Crop Count'!X68,"") ->  | N35: =IF('Crop Count'!$A23<>"",'Crop Count'!Y68,"") ->  | O35: =IF(AND('Crop Count'!$A23<>"",'Crop Count'!AC68<>""),'Crop Count'!AC68,IF('Crop Count'!$A23<>"",'Crop Count'!AA68,"")) ->  | P35: =IF('Crop Count'!$A23<>"",'Crop Count'!Z68,"") -> 
B36: =IF('Crop Count'!A24<>"",'Crop Count'!A24,"") ->  | C36: =IF('Crop Count'!A24<>"",'Crop Count'!E24,IF(OR(AND(C32="Total Maximum Monthly Demand = ",C34="Total Annual Demand = "),AND(C32="",C34="")),"",IF(AND(C32="",C34="Total Maximum Monthly Demand = "),"Total Annual Demand = ",IF(OR(C32="Total Annual Demand = ",C32="",C34<>""),"","Total Maximum Monthly Demand = ")))) ->  | H36: =IF('Crop Count'!A24<>"",'Crop Count'!G24,IF(C36="Total Maximum Monthly Demand = ",CONCATENATE('Crop Count'!$AI$30,'Crop Count'!$AI$31), IF(C36="Total Annual Demand = ",CONCATENATE('Crop Count'!$AJ$30,'Crop Count'!$AJ$31),""))) ->  | K36: =IF('Crop Count'!A24<>"",'Crop Count'!H24,"") ->  | M36: =IF('Crop Count'!A24<>"",'Crop Count'!B24,"") ->  | O36: =IF('Crop Count'!A24<>"",'Crop Count'!C24,"") ->  | P36: =IF('Crop Count'!A24<>"",'Crop Count'!D24,"") -> 
C37: =IF('Crop Count'!$A24<>"",'Crop Count'!N69,"") ->  | D37: =IF('Crop Count'!$A24<>"",'Crop Count'!O69,"") ->  | E37: =IF('Crop Count'!$A24<>"",'Crop Count'!P69,"") ->  | F37: =IF('Crop Count'!$A24<>"",'Crop Count'!Q69,"") ->  | G37: =IF('Crop Count'!$A24<>"",'Crop Count'!R69,"") ->  | H37: =IF('Crop Count'!$A24<>"",'Crop Count'!S69,"") ->  | I37: =IF('Crop Count'!$A24<>"",'Crop Count'!T69,"") ->  | J37: =IF('Crop Count'!$A24<>"",'Crop Count'!U69,"") ->  | K37: =IF('Crop Count'!$A24<>"",'Crop Count'!V69,"") ->  | L37: =IF('Crop Count'!$A24<>"",'Crop Count'!W69,"") ->  | M37: =IF('Crop Count'!$A24<>"",'Crop Count'!X69,"") ->  | N37: =IF('Crop Count'!$A24<>"",'Crop Count'!Y69,"") ->  | O37: =IF(AND('Crop Count'!$A24<>"",'Crop Count'!AC69<>""),'Crop Count'!AC69,IF('Crop Count'!$A24<>"",'Crop Count'!AA69,"")) ->  | P37: =IF('Crop Count'!$A24<>"",'Crop Count'!Z69,"") -> 
B38: =IF('Crop Count'!A25<>"",'Crop Count'!A25,"") ->  | C38: =IF('Crop Count'!A25<>"",'Crop Count'!E25,IF(OR(AND(C34="Total Maximum Monthly Demand = ",C36="Total Annual Demand = "),AND(C34="",C36="")),"",IF(AND(C34="",C36="Total Maximum Monthly Demand = "),"Total Annual Demand = ",IF(OR(C34="Total Annual Demand = ",C34="",C36<>""),"","Total Maximum Monthly Demand = ")))) ->  | H38: =IF('Crop Count'!A25<>"",'Crop Count'!G25,IF(C38="Total Maximum Monthly Demand = ",CONCATENATE('Crop Count'!$AI$30,'Crop Count'!$AI$31), IF(C38="Total Annual Demand = ",CONCATENATE('Crop Count'!$AJ$30,'Crop Count'!$AJ$31),""))) ->  | K38: =IF('Crop Count'!A25<>"",'Crop Count'!H25,"") ->  | M38: =IF('Crop Count'!A25<>"",'Crop Count'!B25,"") ->  | O38: =IF('Crop Count'!A25<>"",'Crop Count'!C25,"") ->  | P38: =IF('Crop Count'!A25<>"",'Crop Count'!D25,"") -> 
C39: =IF('Crop Count'!$A25<>"",'Crop Count'!N70,"") ->  | D39: =IF('Crop Count'!$A25<>"",'Crop Count'!O70,"") ->  | E39: =IF('Crop Count'!$A25<>"",'Crop Count'!P70,"") ->  | F39: =IF('Crop Count'!$A25<>"",'Crop Count'!Q70,"") ->  | G39: =IF('Crop Count'!$A25<>"",'Crop Count'!R70,"") ->  | H39: =IF('Crop Count'!$A25<>"",'Crop Count'!S70,"") ->  | I39: =IF('Crop Count'!$A25<>"",'Crop Count'!T70,"") ->  | J39: =IF('Crop Count'!$A25<>"",'Crop Count'!U70,"") ->  | K39: =IF('Crop Count'!$A25<>"",'Crop Count'!V70,"") ->  | L39: =IF('Crop Count'!$A25<>"",'Crop Count'!W70,"") ->  | M39: =IF('Crop Count'!$A25<>"",'Crop Count'!X70,"") ->  | N39: =IF('Crop Count'!$A25<>"",'Crop Count'!Y70,"") ->  | O39: =IF(AND('Crop Count'!$A25<>"",'Crop Count'!AC70<>""),'Crop Count'!AC70,IF('Crop Count'!$A25<>"",'Crop Count'!AA70,"")) ->  | P39: =IF('Crop Count'!$A25<>"",'Crop Count'!Z70,"") -> 
B40: =IF('Crop Count'!A26<>"",'Crop Count'!A26,"") ->  | C40: =IF('Crop Count'!A26<>"",'Crop Count'!E26,IF(OR(AND(C36="Total Maximum Monthly Demand = ",C38="Total Annual Demand = "),AND(C36="",C38="")),"",IF(AND(C36="",C38="Total Maximum Monthly Demand = "),"Total Annual Demand = ",IF(OR(C36="Total Annual Demand = ",C36="",C38<>""),"","Total Maximum Monthly Demand = ")))) ->  | H40: =IF('Crop Count'!A26<>"",'Crop Count'!G26,IF(C40="Total Maximum Monthly Demand = ",CONCATENATE('Crop Count'!$AI$30,'Crop Count'!$AI$31), IF(C40="Total Annual Demand = ",CONCATENATE('Crop Count'!$AJ$30,'Crop Count'!$AJ$31),""))) ->  | K40: =IF('Crop Count'!A26<>"",'Crop Count'!H26,"") ->  | M40: =IF('Crop Count'!A26<>"",'Crop Count'!B26,"") ->  | O40: =IF('Crop Count'!A26<>"",'Crop Count'!C26,"") ->  | P40: =IF('Crop Count'!A26<>"",'Crop Count'!D26,"") -> 
C41: =IF('Crop Count'!$A26<>"",'Crop Count'!N71,"") ->  | D41: =IF('Crop Count'!$A26<>"",'Crop Count'!O71,"") ->  | E41: =IF('Crop Count'!$A26<>"",'Crop Count'!P71,"") ->  | F41: =IF('Crop Count'!$A26<>"",'Crop Count'!Q71,"") ->  | G41: =IF('Crop Count'!$A26<>"",'Crop Count'!R71,"") ->  | H41: =IF('Crop Count'!$A26<>"",'Crop Count'!S71,"") ->  | I41: =IF('Crop Count'!$A26<>"",'Crop Count'!T71,"") ->  | J41: =IF('Crop Count'!$A26<>"",'Crop Count'!U71,"") ->  | K41: =IF('Crop Count'!$A26<>"",'Crop Count'!V71,"") ->  | L41: =IF('Crop Count'!$A26<>"",'Crop Count'!W71,"") ->  | M41: =IF('Crop Count'!$A26<>"",'Crop Count'!X71,"") ->  | N41: =IF('Crop Count'!$A26<>"",'Crop Count'!Y71,"") ->  | O41: =IF(AND('Crop Count'!$A26<>"",'Crop Count'!AC71<>""),'Crop Count'!AC71,IF('Crop Count'!$A26<>"",'Crop Count'!AA71,"")) ->  | P41: =IF('Crop Count'!$A26<>"",'Crop Count'!Z71,"") -> 
B42: =IF('Crop Count'!A27<>"",'Crop Count'!A27,"") ->  | C42: =IF('Crop Count'!A27<>"",'Crop Count'!E27,IF(OR(AND(C38="Total Maximum Monthly Demand = ",C40="Total Annual Demand = "),AND(C38="",C40="")),"",IF(AND(C38="",C40="Total Maximum Monthly Demand = "),"Total Annual Demand = ",IF(OR(C38="Total Annual Demand = ",C38="",C40<>""),"","Total Maximum Monthly Demand = ")))) ->  | H42: =IF('Crop Count'!A27<>"",'Crop Count'!G27,IF(C42="Total Maximum Monthly Demand = ",CONCATENATE('Crop Count'!$AI$30,'Crop Count'!$AI$31), IF(C42="Total Annual Demand = ",CONCATENATE('Crop Count'!$AJ$30,'Crop Count'!$AJ$31),""))) ->  | K42: =IF('Crop Count'!A27<>"",'Crop Count'!H27,"") ->  | M42: =IF('Crop Count'!A27<>"",'Crop Count'!B27,"") ->  | O42: =IF('Crop Count'!A27<>"",'Crop Count'!C27,"") ->  | P42: =IF('Crop Count'!A27<>"",'Crop Count'!D27,"") -> 
C43: =IF('Crop Count'!$A27<>"",'Crop Count'!N72,"") ->  | D43: =IF('Crop Count'!$A27<>"",'Crop Count'!O72,"") ->  | E43: =IF('Crop Count'!$A27<>"",'Crop Count'!P72,"") ->  | F43: =IF('Crop Count'!$A27<>"",'Crop Count'!Q72,"") ->  | G43: =IF('Crop Count'!$A27<>"",'Crop Count'!R72,"") ->  | H43: =IF('Crop Count'!$A27<>"",'Crop Count'!S72,"") ->  | I43: =IF('Crop Count'!$A27<>"",'Crop Count'!T72,"") ->  | J43: =IF('Crop Count'!$A27<>"",'Crop Count'!U72,"") ->  | K43: =IF('Crop Count'!$A27<>"",'Crop Count'!V72,"") ->  | L43: =IF('Crop Count'!$A27<>"",'Crop Count'!W72,"") ->  | M43: =IF('Crop Count'!$A27<>"",'Crop Count'!X72,"") ->  | N43: =IF('Crop Count'!$A27<>"",'Crop Count'!Y72,"") ->  | O43: =IF(AND('Crop Count'!$A27<>"",'Crop Count'!AC72<>""),'Crop Count'!AC72,IF('Crop Count'!$A27<>"",'Crop Count'!AA72,"")) ->  | P43: =IF('Crop Count'!$A27<>"",'Crop Count'!Z72,"") -> 
B44: =IF('Crop Count'!A28<>"",'Crop Count'!A28,"") ->  | C44: =IF('Crop Count'!A28<>"",'Crop Count'!E28,IF(OR(AND(C40="Total Maximum Monthly Demand = ",C42="Total Annual Demand = "),AND(C40="",C42="")),"",IF(AND(C40="",C42="Total Maximum Monthly Demand = "),"Total Annual Demand = ",IF(OR(C40="Total Annual Demand = ",C40="",C42<>""),"","Total Maximum Monthly Demand = ")))) ->  | H44: =IF('Crop Count'!A28<>"",'Crop Count'!G28,IF(C44="Total Maximum Monthly Demand = ",CONCATENATE('Crop Count'!$AI$30,'Crop Count'!$AI$31), IF(C44="Total Annual Demand = ",CONCATENATE('Crop Count'!$AJ$30,'Crop Count'!$AJ$31),""))) ->  | K44: =IF('Crop Count'!A28<>"",'Crop Count'!H28,"") ->  | M44: =IF('Crop Count'!A28<>"",'Crop Count'!B28,"") ->  | O44: =IF('Crop Count'!A28<>"",'Crop Count'!C28,"") ->  | P44: =IF('Crop Count'!A28<>"",'Crop Count'!D28,"") -> 
C45: =IF('Crop Count'!$A28<>"",'Crop Count'!N73,"") ->  | D45: =IF('Crop Count'!$A28<>"",'Crop Count'!O73,"") ->  | E45: =IF('Crop Count'!$A28<>"",'Crop Count'!P73,"") ->  | F45: =IF('Crop Count'!$A28<>"",'Crop Count'!Q73,"") ->  | G45: =IF('Crop Count'!$A28<>"",'Crop Count'!R73,"") ->  | H45: =IF('Crop Count'!$A28<>"",'Crop Count'!S73,"") ->  | I45: =IF('Crop Count'!$A28<>"",'Crop Count'!T73,"") ->  | J45: =IF('Crop Count'!$A28<>"",'Crop Count'!U73,"") ->  | K45: =IF('Crop Count'!$A28<>"",'Crop Count'!V73,"") ->  | L45: =IF('Crop Count'!$A28<>"",'Crop Count'!W73,"") ->  | M45: =IF('Crop Count'!$A28<>"",'Crop Count'!X73,"") ->  | N45: =IF('Crop Count'!$A28<>"",'Crop Count'!Y73,"") ->  | O45: =IF(AND('Crop Count'!$A28<>"",'Crop Count'!AC73<>""),'Crop Count'!AC73,IF('Crop Count'!$A28<>"",'Crop Count'!AA73,"")) ->  | P45: =IF('Crop Count'!$A28<>"",'Crop Count'!Z73,"") -> 
B46: =IF('Crop Count'!A29<>"",'Crop Count'!A29,"") ->  | C46: =IF('Crop Count'!A29<>"",'Crop Count'!E29,IF(OR(AND(C40="Total Maximum Monthly Demand = ",C42="Total Annual Demand = "),AND(C40="",C42="")),"",IF(AND(C40="",C42="Total Maximum Monthly Demand = "),"Total Annual Demand = ",IF(OR(C42="Total Annual Demand = ",C42="",C44<>""),"","Total Maximum Monthly Demand = ")))) ->  | H46: =IF('Crop Count'!A29<>"",'Crop Count'!G29,IF(C46="Total Maximum Monthly Demand = ",CONCATENATE('Crop Count'!$AI$30,'Crop Count'!$AI$31), IF(C46="Total Annual Demand = ",CONCATENATE('Crop Count'!$AJ$30,'Crop Count'!$AJ$31),""))) ->  | K46: =IF('Crop Count'!A29<>"",'Crop Count'!H29,"") ->  | M46: =IF('Crop Count'!A29<>"",'Crop Count'!B29,"") ->  | O46: =IF('Crop Count'!A29<>"",'Crop Count'!C29,"") ->  | P46: =IF('Crop Count'!A29<>"",'Crop Count'!D29,"") -> 
C47: =IF('Crop Count'!$A29<>"",'Crop Count'!N74,"") ->  | D47: =IF('Crop Count'!$A29<>"",'Crop Count'!O74,"") ->  | E47: =IF('Crop Count'!$A29<>"",'Crop Count'!P74,"") ->  | F47: =IF('Crop Count'!$A29<>"",'Crop Count'!Q74,"") ->  | G47: =IF('Crop Count'!$A29<>"",'Crop Count'!R74,"") ->  | H47: =IF('Crop Count'!$A29<>"",'Crop Count'!S74,"") ->  | I47: =IF('Crop Count'!$A29<>"",'Crop Count'!T74,"") ->  | J47: =IF('Crop Count'!$A29<>"",'Crop Count'!U74,"") ->  | K47: =IF('Crop Count'!$A29<>"",'Crop Count'!V74,"") ->  | L47: =IF('Crop Count'!$A29<>"",'Crop Count'!W74,"") ->  | M47: =IF('Crop Count'!$A29<>"",'Crop Count'!X74,"") ->  | N47: =IF('Crop Count'!$A29<>"",'Crop Count'!Y74,"") ->  | O47: =IF(AND('Crop Count'!$A29<>"",'Crop Count'!AC74<>""),'Crop Count'!AC74,IF('Crop Count'!$A29<>"",'Crop Count'!AA74,"")) ->  | P47: =IF('Crop Count'!$A29<>"",'Crop Count'!Z74,"") -> 
C50: =IF('Crop Count'!A29<>"","Total Maximum Monthly Demand = ","") ->  | H50: =IF('Crop Count'!A29<>"",CONCATENATE('Crop Count'!$AI$30,'Crop Count'!$AI$31),"") -> 
C52: =IF('Crop Count'!A29<>"","Total Annual Demand = ","") ->  | H52: =IF('Crop Count'!A29<>"",CONCATENATE('Crop Count'!$AJ$30,'Crop Count'!$AJ$31),"") -> 
M53: =CONCATENATE("EXHIBIT ",Input2!N11) -> EXHIBIT

Sheet Blaney Calc (hidden)
A1: =IF(InputControl!$B$12=2,"2-in-10 Data Input","1-in-10 Data Input") -> 1-in-10 Data Input | C1: =IF(InputControl!$B$12=2,OFFSET('climo data'!$A$2,0,(InputControl!$B$17*4)-4),OFFSET('climo data'!$A$21,0,(InputControl!$B$17*4)-4)) -> Okeechobee | F1: =IF(InputControl!$B$57<50,VLOOKUP("b",'crop k''s'!$A$2:$Q$3,'crop k''s'!D104,FALSE),VLOOKUP("b",'crop k''s'!$A$18:$U$19,'crop k''s'!D104,FALSE)) -> Nursery | G1: Calculate et and effective average rain
A2: rain | B2: =IF(InputControl!$B$12=2,"2-in-10 Rainfall (inches)","1-in-10 Rainfall (inches)") -> 1-in-10 Rainfall (inches) | C2: Temp | D2: sun | E2: Soil | F2: coeff | G2: F(M) (5) | H2: AKT(M)(6) | I2: AKTF(M)(7) | J2: U(M) (8) | K2: RT1(M)(9) | L2: U1(M) (10) | M2: F1 (11) | N2: RE(M) (12) | O2: =IF(InputControl!$B$12=2,"(7) 2-in-10","(7) 1-in-10") -> (7) 1-in-10 | P2: =IF(InputControl!$B$12=2,"(10) 2-in-10","(10) 1-in-10") -> (10) 1-in-10
A4: =IF(InputControl!$B$12=2,OFFSET('climo data'!A4,0,(InputControl!$B$17*4)-4),OFFSET('climo data'!A23,0,(InputControl!$B$17*4)-4)) -> 1.76 | B4: =IF(InputControl!$B$12=2,ROUND((OFFSET('climo data'!A4,0,(InputControl!$B$17*4)-4)*OFFSET('climo data'!$A$17,0,(InputControl!$B$17*4)-2)),2),ROUND((OFFSET('climo data'!A23,0,(InputControl!$B$17*4)-4)*OFFSET('climo data'!$A$36,0,(InputControl!$B$17*4)-2)),2)) -> 1.44 | C4: =IF(InputControl!$B$12=2,OFFSET('climo data'!A4,0,(InputControl!$B$17*4)-2),OFFSET('climo data'!A23,0,(InputControl!$B$17*4)-2)) -> 62.03 | D4: =IF(InputControl!$B$12=2,OFFSET('climo data'!A4,0,(InputControl!$B$17*4)-1),OFFSET('climo data'!A23,0,(InputControl!$B$17*4)-1)) -> 7.43 | E4: =InputControl!$B$127 -> 0.8 | F4: =IF(InputControl!$B$57<50,VLOOKUP("a",'crop k''s'!$A$4:$Q$15,'crop k''s'!$D$104,FALSE),'crop k''s'!P69) -> 0.49 | G4: =(C4*D4)/100 -> 4.608829 | H4: =(0.0173*C4)-0.314 -> 0.759119 | I4: =(G4*H4) -> 3.49865 | J4: =(I4*F4) -> 1.714339 | K4: =(0.70917*(A4^0.82416)-0.11556) -> 1.014475 | L4: =10^(0.02426*J4) -> 1.1005 | M4: =0.531747+(0.295154*$E$4)-(0.057697*$E$4^2)+(0.003804*$E$4^3) -> 0.732892 | N4: =(K4*L4*M4) -> 0.818222 | O4: =IF(InputControl!$B$12=2,(0.70917*(A4^0.82416)-0.11556),(0.70917*(A4^0.82416)-0.11556)) -> 1.014475 | P4: =IF(InputControl!$B$12=2,(O4*L4*M4)*OFFSET('climo data'!$C$17,0,(InputControl!$B$17*4)-4),(O4*L4*M4)*OFFSET('climo data'!$C$36,0,(InputControl!$B$17*4)-4)) -> 0.670942
A5: =IF(InputControl!$B$12=2,OFFSET('climo data'!A5,0,(InputControl!$B$17*4)-4),OFFSET('climo data'!A24,0,(InputControl!$B$17*4)-4)) -> 2.19 | B5: =IF(InputControl!$B$12=2,ROUND((OFFSET('climo data'!A5,0,(InputControl!$B$17*4)-4)*OFFSET('climo data'!$A$17,0,(InputControl!$B$17*4)-2)),2),ROUND((OFFSET('climo data'!A24,0,(InputControl!$B$17*4)-4)*OFFSET('climo data'!$A$36,0,(InputControl!$B$17*4)-2)),2)) -> 1.8 | C5: =IF(InputControl!$B$12=2,OFFSET('climo data'!A5,0,(InputControl!$B$17*4)-2),OFFSET('climo data'!A24,0,(InputControl!$B$17*4)-2)) -> 63.93 | D5: =IF(InputControl!$B$12=2,OFFSET('climo data'!A5,0,(InputControl!$B$17*4)-1),OFFSET('climo data'!A24,0,(InputControl!$B$17*4)-1)) -> 7.09 | F5: =IF(InputControl!$B$57<50,VLOOKUP("b",'crop k''s'!$A$4:$Q$15,'crop k''s'!$D$104,FALSE),'crop k''s'!P70) -> 0.57 | G5: 4.532637 | H5: 0.791989 | I5: 3.589799 | J5: 2.046185 | K5: 1.237543 | L5: 1.12109 | M5: =0.531747+(0.295154*$E$4)-(0.057697*$E$4^2)+(0.003804*$E$4^3) -> 0.732892 | N5: 1.016812 | O5: =IF(InputControl!$B$12=2,(0.70917*(A5^0.82416)-0.11556),(0.70917*(A5^0.82416)-0.11556)) -> 1.237543 | P5: =IF(InputControl!$B$12=2,(O5*L5*M5)*OFFSET('climo data'!$C$17,0,(InputControl!$B$17*4)-4),(O5*L5*M5)*OFFSET('climo data'!$C$36,0,(InputControl!$B$17*4)-4)) -> 0.833786
A6: =IF(InputControl!$B$12=2,OFFSET('climo data'!A6,0,(InputControl!$B$17*4)-4),OFFSET('climo data'!A25,0,(InputControl!$B$17*4)-4)) -> 2.89 | B6: =IF(InputControl!$B$12=2,ROUND((OFFSET('climo data'!A6,0,(InputControl!$B$17*4)-4)*OFFSET('climo data'!$A$17,0,(InputControl!$B$17*4)-2)),2),ROUND((OFFSET('climo data'!A25,0,(InputControl!$B$17*4)-4)*OFFSET('climo data'!$A$36,0,(InputControl!$B$17*4)-2)),2)) -> 2.37 | C6: =IF(InputControl!$B$12=2,OFFSET('climo data'!A6,0,(InputControl!$B$17*4)-2),OFFSET('climo data'!A25,0,(InputControl!$B$17*4)-2)) -> 67.84 | D6: =IF(InputControl!$B$12=2,OFFSET('climo data'!A6,0,(InputControl!$B$17*4)-1),OFFSET('climo data'!A25,0,(InputControl!$B$17*4)-1)) -> 8.38 | F6: =IF(InputControl!$B$57<50,VLOOKUP("c",'crop k''s'!$A$4:$Q$15,'crop k''s'!$D$104,FALSE),'crop k''s'!P71) -> 0.73 | G6: 5.684992 | H6: 0.859632 | I6: 4.887001 | J6: 3.567511 | K6: 1.585047 | L6: 1.220528 | M6: 0.732892 | N6: 1.417849 | O6: =IF(InputControl!$B$12=2,(0.70917*(A6^0.82416)-0.11556),(0.70917*(A6^0.82416)-0.11556)) -> 1.585047 | P6: =IF(InputControl!$B$12=2,(O6*L6*M6)*OFFSET('climo data'!$C$17,0,(InputControl!$B$17*4)-4),(O6*L6*M6)*OFFSET('climo data'!$C$36,0,(InputControl!$B$17*4)-4)) -> 1.162636
A7: =IF(InputControl!$B$12=2,OFFSET('climo data'!A7,0,(InputControl!$B$17*4)-4),OFFSET('climo data'!A26,0,(InputControl!$B$17*4)-4)) -> 2.78 | B7: =IF(InputControl!$B$12=2,ROUND((OFFSET('climo data'!A7,0,(InputControl!$B$17*4)-4)*OFFSET('climo data'!$A$17,0,(InputControl!$B$17*4)-2)),2),ROUND((OFFSET('climo data'!A26,0,(InputControl!$B$17*4)-4)*OFFSET('climo data'!$A$36,0,(InputControl!$B$17*4)-2)),2)) -> 2.28 | C7: =IF(InputControl!$B$12=2,OFFSET('climo data'!A7,0,(InputControl!$B$17*4)-2),OFFSET('climo data'!A26,0,(InputControl!$B$17*4)-2)) -> 72.13 | D7: =IF(InputControl!$B$12=2,OFFSET('climo data'!A7,0,(InputControl!$B$17*4)-1),OFFSET('climo data'!A26,0,(InputControl!$B$17*4)-1)) -> 8.66 | F7: =IF(InputControl!$B$57<50,VLOOKUP("d",'crop k''s'!$A$4:$Q$15,'crop k''s'!$D$104,FALSE),'crop k''s'!P72) -> 0.85 | G7: 6.246458 | H7: 0.933849 | I7: 5.833249 | J7: 4.958262 | K7: 1.531519 | L7: 1.31913 | M7: 0.732892 | N7: 1.480642 | O7: =IF(InputControl!$B$12=2,(0.70917*(A7^0.82416)-0.11556),(0.70917*(A7^0.82416)-0.11556)) -> 1.531519 | P7: =IF(InputControl!$B$12=2,(O7*L7*M7)*OFFSET('climo data'!$C$17,0,(InputControl!$B$17*4)-4),(O7*L7*M7)*OFFSET('climo data'!$C$36,0,(InputControl!$B$17*4)-4)) -> 1.214126
A8: =IF(InputControl!$B$12=2,OFFSET('climo data'!A8,0,(InputControl!$B$17*4)-4),OFFSET('climo data'!A27,0,(InputControl!$B$17*4)-4)) -> 4.29 | B8: =IF(InputControl!$B$12=2,ROUND((OFFSET('climo data'!A8,0,(InputControl!$B$17*4)-4)*OFFSET('climo data'!$A$17,0,(InputControl!$B$17*4)-2)),2),ROUND((OFFSET('climo data'!A27,0,(InputControl!$B$17*4)-4)*OFFSET('climo data'!$A$36,0,(InputControl!$B$17*4)-2)),2)) -> 3.52 | C8: =IF(InputControl!$B$12=2,OFFSET('climo data'!A8,0,(InputControl!$B$17*4)-2),OFFSET('climo data'!A27,0,(InputControl!$B$17*4)-2)) -> 76.81 | D8: =IF(InputControl!$B$12=2,OFFSET('climo data'!A8,0,(InputControl!$B$17*4)-1),OFFSET('climo data'!A27,0,(InputControl!$B$17*4)-1)) -> 9.42 | F8: =IF(InputControl!$B$57<50,VLOOKUP("e",'crop k''s'!$A$4:$Q$15,'crop k''s'!$D$104,FALSE),'crop k''s'!P73) -> 0.9 | G8: 7.235502 | H8: 1.014813 | I8: 7.342681 | J8: 6.608413 | K8: 2.23947 | L8: 1.446506 | M8: 0.732892 | N8: 2.374135 | O8: =IF(InputControl!$B$12=2,(0.70917*(A8^0.82416)-0.11556),(0.70917*(A8^0.82416)-0.11556)) -> 2.23947 | P8: =IF(InputControl!$B$12=2,(O8*L8*M8)*OFFSET('climo data'!$C$17,0,(InputControl!$B$17*4)-4),(O8*L8*M8)*OFFSET('climo data'!$C$36,0,(InputControl!$B$17*4)-4)) -> 1.946791
A9: =IF(InputControl!$B$12=2,OFFSET('climo data'!A9,0,(InputControl!$B$17*4)-4),OFFSET('climo data'!A28,0,(InputControl!$B$17*4)-4)) -> 7.35 | B9: =IF(InputControl!$B$12=2,ROUND((OFFSET('climo data'!A9,0,(InputControl!$B$17*4)-4)*OFFSET('climo data'!$A$17,0,(InputControl!$B$17*4)-2)),2),ROUND((OFFSET('climo data'!A28,0,(InputControl!$B$17*4)-4)*OFFSET('climo data'!$A$36,0,(InputControl!$B$17*4)-2)),2)) -> 6.03 | C9: =IF(InputControl!$B$12=2,OFFSET('climo data'!A9,0,(InputControl!$B$17*4)-2),OFFSET('climo data'!A28,0,(InputControl!$B$17*4)-2)) -> 80.17 | D9: =IF(InputControl!$B$12=2,OFFSET('climo data'!A9,0,(InputControl!$B$17*4)-1),OFFSET('climo data'!A28,0,(InputControl!$B$17*4)-1)) -> 9.35 | F9: =IF(InputControl!$B$57<50,VLOOKUP("f",'crop k''s'!$A$4:$Q$15,'crop k''s'!$D$104,FALSE),'crop k''s'!P74) -> 0.92 | G9: 7.495895 | H9: 1.072941 | I9: 8.042653 | J9: 7.399241 | K9: 3.554809 | L9: 1.511839 | M9: 0.732892 | N9: 3.938781 | O9: =IF(InputControl!$B$12=2,(0.70917*(A9^0.82416)-0.11556),(0.70917*(A9^0.82416)-0.11556)) -> 3.554809 | P9: =IF(InputControl!$B$12=2,(O9*L9*M9)*OFFSET('climo data'!$C$17,0,(InputControl!$B$17*4)-4),(O9*L9*M9)*OFFSET('climo data'!$C$36,0,(InputControl!$B$17*4)-4)) -> 3.2298
A10: =IF(InputControl!$B$12=2,OFFSET('climo data'!A10,0,(InputControl!$B$17*4)-4),OFFSET('climo data'!A29,0,(InputControl!$B$17*4)-4)) -> 6.55 | B10: =IF(InputControl!$B$12=2,ROUND((OFFSET('climo data'!A10,0,(InputControl!$B$17*4)-4)*OFFSET('climo data'!$A$17,0,(InputControl!$B$17*4)-2)),2),ROUND((OFFSET('climo data'!A29,0,(InputControl!$B$17*4)-4)*OFFSET('climo data'!$A$36,0,(InputControl!$B$17*4)-2)),2)) -> 5.37 | C10: =IF(InputControl!$B$12=2,OFFSET('climo data'!A10,0,(InputControl!$B$17*4)-2),OFFSET('climo data'!A29,0,(InputControl!$B$17*4)-2)) -> 81.61 | D10: =IF(InputControl!$B$12=2,OFFSET('climo data'!A10,0,(InputControl!$B$17*4)-1),OFFSET('climo data'!A29,0,(InputControl!$B$17*4)-1)) -> 9.54 | F10: =IF(InputControl!$B$57<50,VLOOKUP("g",'crop k''s'!$A$4:$Q$15,'crop k''s'!$D$104,FALSE),'crop k''s'!P75) -> 0.92 | G10: 7.785594 | H10: 1.097853 | I10: 8.547438 | J10: 7.863643 | K10: 3.222267 | L10: 1.551572 | M10: 0.732892 | N10: 3.664152 | O10: =IF(InputControl!$B$12=2,(0.70917*(A10^0.82416)-0.11556),(0.70917*(A10^0.82416)-0.11556)) -> 3.222267 | P10: =IF(InputControl!$B$12=2,(O10*L10*M10)*OFFSET('climo data'!$C$17,0,(InputControl!$B$17*4)-4),(O10*L10*M10)*OFFSET('climo data'!$C$36,0,(InputControl!$B$17*4)-4)) -> 3.004604
A11: =IF(InputControl!$B$12=2,OFFSET('climo data'!A11,0,(InputControl!$B$17*4)-4),OFFSET('climo data'!A30,0,(InputControl!$B$17*4)-4)) -> 6.65 | B11: =IF(InputControl!$B$12=2,ROUND((OFFSET('climo data'!A11,0,(InputControl!$B$17*4)-4)*OFFSET('climo data'!$A$17,0,(InputControl!$B$17*4)-2)),2),ROUND((OFFSET('climo data'!A30,0,(InputControl!$B$17*4)-4)*OFFSET('climo data'!$A$36,0,(InputControl!$B$17*4)-2)),2)) -> 5.45 | C11: =IF(InputControl!$B$12=2,OFFSET('climo data'!A11,0,(InputControl!$B$17*4)-2),OFFSET('climo data'!A30,0,(InputControl!$B$17*4)-2)) -> 81.71 | D11: =IF(InputControl!$B$12=2,OFFSET('climo data'!A11,0,(InputControl!$B$17*4)-1),OFFSET('climo data'!A30,0,(InputControl!$B$17*4)-1)) -> 9.15 | F11: =IF(InputControl!$B$57<50,VLOOKUP("h",'crop k''s'!$A$4:$Q$15,'crop k''s'!$D$104,FALSE),'crop k''s'!P76) -> 0.91 | G11: 7.476465 | H11: 1.099583 | I11: 8.220994 | J11: 7.481105 | K11: 3.264209 | L11: 1.518769 | M11: 0.732892 | N11: 3.63337 | O11: =IF(InputControl!$B$12=2,(0.70917*(A11^0.82416)-0.11556),(0.70917*(A11^0.82416)-0.11556)) -> 3.264209 | P11: =IF(InputControl!$B$12=2,(O11*L11*M11)*OFFSET('climo data'!$C$17,0,(InputControl!$B$17*4)-4),(O11*L11*M11)*OFFSET('climo data'!$C$36,0,(InputControl!$B$17*4)-4)) -> 2.979364
A12: =IF(InputControl!$B$12=2,OFFSET('climo data'!A12,0,(InputControl!$B$17*4)-4),OFFSET('climo data'!A31,0,(InputControl!$B$17*4)-4)) -> 6.37 | B12: =IF(InputControl!$B$12=2,ROUND((OFFSET('climo data'!A12,0,(InputControl!$B$17*4)-4)*OFFSET('climo data'!$A$17,0,(InputControl!$B$17*4)-2)),2),ROUND((OFFSET('climo data'!A31,0,(InputControl!$B$17*4)-4)*OFFSET('climo data'!$A$36,0,(InputControl!$B$17*4)-2)),2)) -> 5.22 | C12: =IF(InputControl!$B$12=2,OFFSET('climo data'!A12,0,(InputControl!$B$17*4)-2),OFFSET('climo data'!A31,0,(InputControl!$B$17*4)-2)) -> 80.47 | D12: =IF(InputControl!$B$12=2,OFFSET('climo data'!A12,0,(InputControl!$B$17*4)-1),OFFSET('climo data'!A31,0,(InputControl!$B$17*4)-1)) -> 8.32 | F12: =IF(InputControl!$B$57<50,VLOOKUP("i",'crop k''s'!$A$4:$Q$15,'crop k''s'!$D$104,FALSE),'crop k''s'!P77) -> 0.87 | G12: 6.695104 | H12: 1.078131 | I12: 7.218199 | J12: 6.279833 | K12: 3.146485 | L12: 1.420198 | M12: 0.732892 | N12: 3.275024 | O12: =IF(InputControl!$B$12=2,(0.70917*(A12^0.82416)-0.11556),(0.70917*(A12^0.82416)-0.11556)) -> 3.146485 | P12: =IF(InputControl!$B$12=2,(O12*L12*M12)*OFFSET('climo data'!$C$17,0,(InputControl!$B$17*4)-4),(O12*L12*M12)*OFFSET('climo data'!$C$36,0,(InputControl!$B$17*4)-4)) -> 2.68552
A13: =IF(InputControl!$B$12=2,OFFSET('climo data'!A13,0,(InputControl!$B$17*4)-4),OFFSET('climo data'!A32,0,(InputControl!$B$17*4)-4)) -> 4.1 | B13: =IF(InputControl!$B$12=2,ROUND((OFFSET('climo data'!A13,0,(InputControl!$B$17*4)-4)*OFFSET('climo data'!$A$17,0,(InputControl!$B$17*4)-2)),2),ROUND((OFFSET('climo data'!A32,0,(InputControl!$B$17*4)-4)*OFFSET('climo data'!$A$36,0,(InputControl!$B$17*4)-2)),2)) -> 3.36 | C13: =IF(InputControl!$B$12=2,OFFSET('climo data'!A13,0,(InputControl!$B$17*4)-2),OFFSET('climo data'!A32,0,(InputControl!$B$17*4)-2)) -> 75.35 | D13: =IF(InputControl!$B$12=2,OFFSET('climo data'!A13,0,(InputControl!$B$17*4)-1),OFFSET('climo data'!A32,0,(InputControl!$B$17*4)-1)) -> 8.04 | F13: =IF(InputControl!$B$57<50,VLOOKUP("j",'crop k''s'!$A$4:$Q$15,'crop k''s'!$D$104,FALSE),'crop k''s'!P78) -> 0.79 | G13: 6.05814 | H13: 0.989555 | I13: 5.994863 | J13: 4.735942 | K13: 2.153167 | L13: 1.302849 | M13: 0.732892 | N13: 2.055946 | O13: =IF(InputControl!$B$12=2,(0.70917*(A13^0.82416)-0.11556),(0.70917*(A13^0.82416)-0.11556)) -> 2.153167 | P13: =IF(InputControl!$B$12=2,(O13*L13*M13)*OFFSET('climo data'!$C$17,0,(InputControl!$B$17*4)-4),(O13*L13*M13)*OFFSET('climo data'!$C$36,0,(InputControl!$B$17*4)-4)) -> 1.685876
A14: =IF(InputControl!$B$12=2,OFFSET('climo data'!A14,0,(InputControl!$B$17*4)-4),OFFSET('climo data'!A33,0,(InputControl!$B$17*4)-4)) -> 1.91 | B14: =IF(InputControl!$B$12=2,ROUND((OFFSET('climo data'!A14,0,(InputControl!$B$17*4)-4)*OFFSET('climo data'!$A$17,0,(InputControl!$B$17*4)-2)),2),ROUND((OFFSET('climo data'!A33,0,(InputControl!$B$17*4)-4)*OFFSET('climo data'!$A$36,0,(InputControl!$B$17*4)-2)),2)) -> 1.57 | C14: =IF(InputControl!$B$12=2,OFFSET('climo data'!A14,0,(InputControl!$B$17*4)-2),OFFSET('climo data'!A33,0,(InputControl!$B$17*4)-2)) -> 69.13 | D14: =IF(InputControl!$B$12=2,OFFSET('climo data'!A14,0,(InputControl!$B$17*4)-1),OFFSET('climo data'!A33,0,(InputControl!$B$17*4)-1)) -> 7.31 | F14: =IF(InputControl!$B$57<50,VLOOKUP("k",'crop k''s'!$A$4:$Q$15,'crop k''s'!$D$104,FALSE),'crop k''s'!P79) -> 0.67 | G14: 5.053403 | H14: 0.881949 | I14: 4.456844 | J14: 2.986085 | K14: 1.093274 | L14: 1.181524 | M14: 0.732892 | N14: 0.946698 | O14: =IF(InputControl!$B$12=2,(0.70917*(A14^0.82416)-0.11556),(0.70917*(A14^0.82416)-0.11556)) -> 1.093274 | P14: =IF(InputControl!$B$12=2,(O14*L14*M14)*OFFSET('climo data'!$C$17,0,(InputControl!$B$17*4)-4),(O14*L14*M14)*OFFSET('climo data'!$C$36,0,(InputControl!$B$17*4)-4)) -> 0.776293
A15: =IF(InputControl!$B$12=2,OFFSET('climo data'!A15,0,(InputControl!$B$17*4)-4),OFFSET('climo data'!A34,0,(InputControl!$B$17*4)-4)) -> 1.58 | B15: =IF(InputControl!$B$12=2,ROUND((OFFSET('climo data'!A15,0,(InputControl!$B$17*4)-4)*OFFSET('climo data'!$A$17,0,(InputControl!$B$17*4)-2)),2),ROUND((OFFSET('climo data'!A34,0,(InputControl!$B$17*4)-4)*OFFSET('climo data'!$A$36,0,(InputControl!$B$17*4)-2)),2)) -> 1.3 | C15: =IF(InputControl!$B$12=2,OFFSET('climo data'!A15,0,(InputControl!$B$17*4)-2),OFFSET('climo data'!A34,0,(InputControl!$B$17*4)-2)) -> 63.65 | D15: =IF(InputControl!$B$12=2,OFFSET('climo data'!A15,0,(InputControl!$B$17*4)-1),OFFSET('climo data'!A34,0,(InputControl!$B$17*4)-1)) -> 7.31 | F15: =IF(InputControl!$B$57<50,VLOOKUP("l",'crop k''s'!$A$4:$Q$15,'crop k''s'!$D$104,FALSE),'crop k''s'!P80) -> 0.55 | G15: 4.652815 | H15: 0.787145 | I15: 3.66244 | J15: 2.014342 | K15: 0.918333 | L15: 1.119098 | M15: 0.732892 | N15: 0.753196 | O15: =IF(InputControl!$B$12=2,(0.70917*(A15^0.82416)-0.11556),(0.70917*(A15^0.82416)-0.11556)) -> 0.918333 | P15: =IF(InputControl!$B$12=2,(O15*L15*M15)*OFFSET('climo data'!$C$17,0,(InputControl!$B$17*4)-4),(O15*L15*M15)*OFFSET('climo data'!$C$36,0,(InputControl!$B$17*4)-4)) -> 0.617621
G19: =(Exhibit!O25*Input2!$C$13*Exhibit!C11*0.02715) -> 1.180563 | H19: Average Annual | K19: =SUM(G19)*1000000/365 -> 3234.42 | L19: GPD | M19: Max Day (Gallons)
B20: Salt Flush | D20: =IF((InputControl!$B$57=13)*AND(InputControl!$A$160<>0)*AND(Input2!C14="YES"), Input2!$C$13*Input2!G14*0.02715,0) -> 0 | K20: =SUM(G19)/365 -> 0 | L20: MGD | M20: Max Day (MG)
G21: With Salt
D22: Maximum Month Inches | E22: =IF((InputControl!$B$57=13)*AND(InputControl!$A$160<>0),InputControl!A160,MAX(,Exhibit!C25:N25)) -> 4.86 | F22: =(E22*Input2!$C$13*Exhibit!C11*0.02715) -> 0.1557 | G22: =(F22+D20) -> 0.1557 | H22: Maximum Monthly
E24: Round Salt Flush | F24: Round Max Month | G24: With Salt | J24: Round Annual
D25: >1 | E25: =IF(D20>=1,TEXT(ROUND(D20,2),"#,###.##"),"") ->  | F25: =IF(F22>=1,TEXT(ROUND(F22,2),"#,###.##"),"") ->  | G25: =IF(G22>=1,TEXT(ROUND(G22,2),"#,###.##"),"") ->  | H25: MG | I25: >1 | J25: =IF(G19>=1,TEXT(ROUND(G19,2),"#,###.##"),"") -> 1.18 | K25: MG
D26: >.1<1 | E26: =IF(AND(D20<1,D20>=0.1),TEXT(ROUND(D20*1000000,-3),"#,###"),"") ->  | F26: =IF(AND(F22<1,F22>=0.1),TEXT(ROUND(F22*1000000,-3),"#,###"),"") -> 156,000 | G26: =IF(AND(G22<1,G22>=0.1),TEXT(ROUND(G22*1000000,-3),"#,###"),"") -> 156,000 | H26: gallons | I26: >.1<1 | J26: =IF(AND(G19<1,G19>=0.1),TEXT(ROUND(G19*1000000,-3),"#,###"),"") ->  | K26: gallons
D27: .1< | E27: =IF(AND(D20<0.1,D20>=0.01),TEXT(ROUND(D20*1000000,-2),"#,###"),"") ->  | F27: =IF(AND(F22<0.1,F22>=0.01),TEXT(ROUND(F22*1000000,-2),"#,###"),"") ->  | G27: =IF(AND(G22<0.1,G22>=0.01),TEXT(ROUND(G22*1000000,-2),"#,###"),"") ->  | H27: gallons | I27: .1< | J27: =IF(AND(G19<0.1,G19>=0.01),TEXT(ROUND(G19*1000000,-2),"#,###"),"") ->  | K27: gallons
D28: .01< | E28: =IF(D20<0.01,TEXT(ROUND(D20*1000000,-1),"#,###"),"") ->  | F28: =IF(F22<0.01,TEXT(ROUND(F22*1000000,-1),"#,###"),"") ->  | G28: =IF(G22<0.01,TEXT(ROUND(G22*1000000,-1),"#,###"),"") ->  | H28: gallons | I28: .01< | J28: =IF(G19<0.01,TEXT(ROUND(G19*1000000,-1),"#,###"),"") ->  | K28: gallons
H30: With Salt
F31: Annual | G31: =IF(G19>=1,J25,IF(AND(G19<1,G19>=0.1),J26,IF(AND(G19<0.1,G19>=0.01),J27,IF(G19<0.01,J28,"")))) -> 1.18 | H31: =IF(G19>=1,J25,IF(AND(G19<1,G19>=0.1),J26,IF(AND(G19<0.1,G19>=0.01),J27,IF(G19<0.01,J28,"")))) -> 1.18
E32: Salt Flush | F32: Annual | G32: =IF(G19>1," MG", " gallons") -> MG | H32: =IF(G19>1," MG", " gallons") -> MG
E33: =IF(D20>=1,E25,IF(AND(D20<1,D20>=0.1),E26,IF(AND(D20<0.1,D20>=0.01),E27,IF(D20<0.01,E28,"")))) ->  | F33: Month | G33: =IF(F22>=1,F25,IF(AND(F22<1,F22>=0.1),F26,IF(AND(F22<0.1,F22>=0.01),F27,IF(F22<0.01,F28,"")))) -> 156,000 | H33: =IF(G22>=1,G25,IF(AND(G22<1,G22>=0.1),G26,IF(AND(G22<0.1,G22>=0.01),G27,IF(G22<0.01,G28,"")))) -> 156,000
E34: =IF(D20>1," MG",IF(D20=0,""," gallons")) ->  | F34: Month | G34: =IF(F22>1," MG", " gallons") -> gallons | H34: =IF(G22>1," MG", " gallons") -> gallons

Sheet Crop Count
B1: Total Count of Crops
B2: 0
E4: SINGLE REVIEW INPUT | P4: CITRUS SALT FLUSH | Q4: CITRUS SALT FLUSH | R4: CITRUS SALT FLUSH
A5: Crop No. | B5: Plant No. in Parcel | C5: Multiple Plantings in Parcel | D5: Salt Flush | E5: Parcel Name | F5: Crop No. | G5: Crop | H5: Acreage | I5: Rainfall Station | J5: Irrigation System | K5: Irrigation System Multiplier | L5: Soil | M5: Calculations | N5: =Exhibit!$C$19 -> Jan | O5: =Exhibit!$D$19 -> Feb | P5: =Exhibit!$E$19 -> Mar | Q5: =Exhibit!$F$19 -> Apr | R5: =Exhibit!$G$19 -> May | S5: =Exhibit!$H$19 -> Jun | T5: =Exhibit!$I$19 -> Jul | U5: =Exhibit!$J$19 -> Aug | V5: =Exhibit!$K$19 -> Sep | W5: =Exhibit!$L$19 -> Oct | X5: =Exhibit!$M$19 -> Nov | Y5: =Exhibit!$N$19 -> Dec | Z5: =Exhibit!$O$19 -> Total | AA5: Max Month (Value) | AB5: Max Month (Month) | AC5: Max Month (Citrus Value) | AD5: Max Month (Citrus Month) | AE5: Multiple Plantings in Parcel (Max Month) | AF5: Annual | AG5: Max Month (MG) | AH5: ANNUAL (MG) | AI5: SALT FLUSH (MG)
D6: =IF((InputControl!$B$57=13)*AND(InputControl!$A$160<>0)*AND(Input2!$C$14="YES"),"YES","NO") -> NO | E6: =IF(Input2!N8<>"",Input2!N8," ") ->  | F6: =InputControl!B57 -> 5 | G6: =Exhibit!C9 -> Nursery | H6: =Exhibit!C8 -> 1 | I6: =Exhibit!C6 -> Okeechobee 1-in-10 | J6: =Exhibit!C7 -> Drip | K6: =Exhibit!C11 -> 1.18 | L6: =Exhibit!C10 -> 0.8 | M6: =Exhibit!B25 -> 1-in-10 Irrigation (inches) | N6: =Exhibit!C25 -> 1.04 | O6: =Exhibit!D25 -> 1.22 | P6: =IF((InputControl!$B$57=13)*AND(InputControl!$A$160<>0)*AND(InputControl!$B$156=1),InputControl!A160,Exhibit!E25) -> 2.41 | Q6: =IF((InputControl!$B$57=13)*AND(InputControl!$A$160<>0)*AND(InputControl!$B$156=2),InputControl!A160,Exhibit!F25) -> 3.75 | R6: =IF((InputControl!$B$57=13)*AND(InputControl!$A$160<>0)*AND(InputControl!$B$156=3),InputControl!A160,Exhibit!G25) -> 4.66 | S6: =Exhibit!H25 -> 4.17 | T6: =Exhibit!I25 -> 4.86 | U6: =Exhibit!J25 -> 4.5 | V6: =Exhibit!K25 -> 3.59 | W6: =Exhibit!L25 -> 3.05 | X6: =Exhibit!M25 -> 2.21 | Y6: =Exhibit!N25 -> 1.39 | Z6: =SUM(N6:Y6) -> 36.85 | AA6: =MAX(N6:Y6) -> 4.86 | AB6: MAY | AC6: =IF((InputControl!$B$57=13)*AND(InputControl!$A$160<>0),InputControl!A160,"") ->  | AD6: =IF((InputControl!$B$57=13)*AND(InputControl!$A$160<>0),InputControl!C156,"") ->  | AF6: =Exhibit!O25 -> 36.85 | AG6: =IF((InputControl!$B$57=13)*AND(InputControl!$A$160<>0),AC6*H6*K6*0.02715,AA6*H6*K6*0.02715) -> 0.1557 | AH6: =AF6*H6*K6*0.02715 -> 1.180563 | AI6: WITHOUT SALT FLUSH
N7: =N$6*$H$6*$K$6*0.02715 -> 0.033318 | O7: =O$6*$H$6*$K$6*0.02715 -> 0.039085 | P7: =IF((InputControl!$B$57=13)*AND(InputControl!$A$160<>0)*AND(InputControl!$B$156=1),P$6*$H$6*$K$6*0.02715+'Blaney Calc'!D20,P$6*$H$6*$K$6*0.02715) -> 0.077209 | Q7: =IF((InputControl!$B$57=13)*AND(InputControl!$A$160<>0)*AND(InputControl!$B$156=2),Q$6*$H$6*$K$6*0.02715+'Blaney Calc'!D20,Q$6*$H$6*$K$6*0.02715) -> 0.120139 | R7: =IF((InputControl!$B$57=13)*AND(InputControl!$A$160<>0)*AND(InputControl!$B$156=3),R$6*$H$6*$K$6*0.02715+'Blaney Calc'!D20,R$6*$H$6*$K$6*0.02715) -> 0.149292 | S7: 0.133594 | T7: 0.1557 | U7: 0.144167 | V7: 0.115013 | W7: 0.097713 | X7: 0.070802 | Y7: 0.044531 | Z7: 1.180563 | AA7: =MAX(N6:Y6)*$H$6*$K$6*0.02715 -> 0.1557 | AC7: =IF((InputControl!$B$57=13)*AND(InputControl!$A$160<>0),InputControl!A160*$H$6*$K$6*0.02715,"") ->  | AF7: =Exhibit!O25*$H$6*$K$6*0.02715 -> 1.180563 | AG7: =IF((InputControl!$B$57=13)*AND(InputControl!$A$160<>0),AC6*H6*K6*0.02715+AI7,AA6*H6*K6*0.02715) -> 0.1557 | AH7: =SUM(N7:Y7) -> 1.180563 | AI7: ='Blaney Calc'!D20 -> 0
A8: ROW | B8: 12 | E8: ALL CROP PLANTINGS IN MG | O8: WITHOUT SALT FLUSH | P8: =IF((InputControl!$B$57=13)*AND(InputControl!$A$160<>0)*AND(InputControl!$B$156=1),P$6*$H$6*$K$6,P$6*$H$6*$K$6*0.02715) -> 0.077209 | Q8: =IF((InputControl!$B$57=13)*AND(InputControl!$A$160<>0)*AND(InputControl!$B$156=3),Q$6*$H$6*$K$6*0.02715,Q$6*$H$6*$K$6*0.02715) -> 0.120139 | R8: =IF((InputControl!$B$57=13)*AND(InputControl!$A$160<>0)*AND(InputControl!$B$156=3),R$6*$H$6*$K$6*0.02715,R$6*$H$6*$K$6*0.02715) -> 0.149292 | AB8: =MATCH(MAX(N6:Y6),N6:Y6,0) -> 7
A9: Crop No. | B9: Plant No. in Parcel | C9: Multiple Plantings in Parcel | D9: Salt Flush | E9: Parcel Name | F9: Crop No. | G9: Crop | H9: Acreage | I9: Rainfall Station | J9: Irrigation System | K9: Irrigation System Multiplier | L9: Soil | M9: Calculations | N9: =Exhibit!$C$19 -> Jan | O9: =Exhibit!$D$19 -> Feb | P9: =Exhibit!$E$19 -> Mar | Q9: =Exhibit!$F$19 -> Apr | R9: =Exhibit!$G$19 -> May | S9: =Exhibit!$H$19 -> Jun | T9: =Exhibit!$I$19 -> Jul | U9: =Exhibit!$J$19 -> Aug | V9: =Exhibit!$K$19 -> Sep | W9: =Exhibit!$L$19 -> Oct | X9: =Exhibit!$M$19 -> Nov | Y9: =Exhibit!$N$19 -> Dec | Z9: =Exhibit!$O$19 -> Total | AA9: Max Month | AB9: Max Month (Month) | AC9: Max Month (Citrus) | AD9: Max Month (Citrus Month) | AE9: Multiple Plantings in Parcel (Max Month) | AF9: Annual | AG9: Max Month (MG) | AH9: ANNUAL (MG)
A10: 1 | B10: 1 | C10: NO | D10: NO | F10: 20 | G10: Pasture | H10: 217 | I10: Moore Haven 1-in-10 | J10: Flood/Seepage | K10: 2 | L10: 0.8 | M10: 1-in-10 Irrigation (inches) | N10: 11.193945 | O10: 15.907185 | P10: 26.983299 | Q10: 34.406652 | R10: 38.412906 | S10: 16.849833 | T10: 23.801862 | U10: 25.215834 | V10: 14.257551 | W10: 21.798735 | X10: 17.556819 | Y10: 12.018762 | Z10: 258.403383 | AA10: 38.412906 | AF10: 258.403383 | AG10: 38.412906 | AH10: 258.403383
A11: 2 | B11: 1 | C11: NO | D11: NO | F11: 10 | G11: Sugarcane | H11: 156 | I11: Moore Haven 1-in-10 | J11: Flood/Seepage | K11: 2 | L11: 0.8 | M11: 1-in-10 Irrigation (inches) | N11: 6.014268 | O11: 2.795364 | P11: 15.501564 | Q11: 21.515832 | R11: 27.614808 | S11: 26.767728 | T11: 31.003128 | U11: 33.45966 | V11: 21.177 | W11: 32.18904 | X11: 20.922876 | Y11: 16.348644 | Z11: 255.309912 | AA11: 33.45966 | AF11: 255.309912 | AG11: 33.45966 | AH11: 255.309912
A12: 3 | B12: 1 | C12: NO | D12: NO | F12: 13 | G12: Citrus | H12: 1810 | I12: Moore Haven 1-in-10 | J12: Micro-sprinkler | K12: 1.18 | L12: 0.8 | M12: 1-in-10 Irrigation (inches) | N12: 89.879804 | O12: 90.459673 | P12: 146.127164 | Q12: 175.700519 | R12: 299.212765 | S12: 153.085601 | T12: 179.179737 | U12: 176.860259 | V12: 134.52977 | W12: 155.984949 | X12: 131.050552 | Y12: 101.477198 | Z12: 1833.547991 | AA12: 299.212765 | AC12: 299.212765 | AF12: 1727.431836 | AG12: 299.212765 | AH12: 1833.547991
AK21: Round Max Month | AO21: Round Annual
AK22: >1 | AL22: =IF(AE30>=1,TEXT(ROUND(AE30,2),"#,###.##"),"") -> 365.24 | AM22: MG | AN22: >1 | AO22: =IF(AF30>=1,TEXT(ROUND(AF30,2),"#,###.##"),"") -> 2,241.15 | AP22: MG
AK23: >.1<1 | AL23: =IF(AND(AE30<1,AE30>=0.1),TEXT(ROUND(AE30*1000000,-3),"#,###"),"") ->  | AM23: gallons | AN23: >.1<1 | AO23: =IF(AND(AF30<1,AF30>=0.1),TEXT(ROUND(AF30*1000000,-3),"#,###"),"") ->  | AP23: gallons
AK24: .1< | AL24: =IF(AND(AE30<0.1,AE30>=0.01),TEXT(ROUND(AE30*1000000,-2),"#,###"),"") ->  | AM24: gallons | AN24: .1< | AO24: =IF(AND(AF30<0.1,AF30>=0.01),TEXT(ROUND(AF30*1000000,-2),"#,###"),"") ->  | AP24: gallons
AK25: .01< | AL25: =IF(AE30<0.01,TEXT(ROUND(AE30*1000000,-1),"#,###"),"") ->  | AM25: gallons | AN25: .01< | AO25: =IF(AF30<0.01,TEXT(ROUND(AF30*1000000,-1),"#,###"),"") ->  | AP25: gallons
AI29: Formatted | AJ29: Formatted
A30: ROW | B30: 0 | E30: CALCULATIONS FOR MULTIPLE ANNUAL PLANTINGS IN PARCEL IN MG | N30: =SUM(N10:N29) -> 107.088017 | O30: =SUM(O10:O29) -> 109.162222 | P30: 188.612027 | Q30: 231.623003 | R30: 365.240479 | S30: 196.703162 | T30: 233.984727 | U30: 235.535753 | V30: 169.964321 | W30: 209.972724 | X30: 169.530247 | Y30: 129.844604 | AE30: =MAX(N30:Y30) -> 365.240479 | AF30: =SUM(AF10:AF29) -> 2241.145131 | AG30: =SUM(AG10:AG29) -> 371.085331 | AH30: =SUM(AH10:AH29) -> 2347.261286 | AI30: =IF(AE30>=1,AL22,IF(AND(AE30<1,AE30>=0.1),AL23,IF(AND(AE30<0.1,AE30>=0.01),AL24,IF(AE30<0.01,AL25,"")))) -> 365.24 | AJ30: =IF(AF30>=1,AO22,IF(AND(AF30<1,AF30>=0.1),AO23,IF(AND(AF30<0.1,AF30>=0.01),AO24,IF(AF30<0.01,AO25,"")))) -> 2,241.15
A31: Crop No. | B31: Plant No. in Parcel | C31: Multiple Plantings in Parcel | D31: Salt Flush | E31: Parcel Name | F31: Crop No. | G31: Crop | H31: Acreage | I31: Rainfall Station | J31: Irrigation System | K31: Irrigation System Multiplier | L31: Soil | M31: Calculations | N31: =Exhibit!$C$19 -> Jan | O31: =Exhibit!$D$19 -> Feb | P31: =Exhibit!$E$19 -> Mar | Q31: =Exhibit!$F$19 -> Apr | R31: =Exhibit!$G$19 -> May | S31: =Exhibit!$H$19 -> Jun | T31: =Exhibit!$I$19 -> Jul | U31: =Exhibit!$J$19 -> Aug | V31: =Exhibit!$K$19 -> Sep | W31: =Exhibit!$L$19 -> Oct | X31: =Exhibit!$M$19 -> Nov | Y31: =Exhibit!$N$19 -> Dec | Z31: =Exhibit!$O$19 -> Total | AA31: Max Month | AB31: Max Month (month) | AC31: Max Month (Citrus) | AD31: Max Month (Citrus Month) | AE31: Multiple Plantings in Parcel (Max Month) | AF31: Annual | AG31: Max Month (MG) | AH31: ANNUAL (MG) | AI31: =IF(AE30>1," MG", " gallons") -> MG | AJ31: =IF(AF30>1," MG", " gallons") -> MG
N43: =SUM(N32:N41) -> 0 | O43: 0 | P43: 0 | Q43: 0 | R43: 0 | S43: 0 | T43: 0 | U43: 0 | V43: 0 | W43: 0 | X43: 0 | Y43: 0 | AF43: =SUM(AF32:AF41) -> 0 | AG43: =MAX(N43:Y43) -> 0 | AH43: =SUM(AH32:AH41) -> 0
A44: =COLUMN(A43) -> 1 | B44: 2 | C44: 3 | E44: 5 | F44: 6 | G44: 7 | H44: 8 | I44: 9 | J44: 10 | K44: 11 | L44: 12 | M44: 13 | N44: =COLUMN(N43) -> 14 | O44: =COLUMN(O43) -> 15 | P44: 16 | Q44: 17 | R44: 18 | S44: 19 | T44: 20 | U44: 21 | V44: 22 | W44: 23 | X44: 24 | Y44: 25 | Z44: =COLUMN(Z43) -> 26 | AA44: 27 | AB44: 28 | AC44: 29 | AD44: 30 | AE44: 31 | AF44: 32 | AG44: =MATCH(MAX(N43:Y43),N43:Y43,0) -> 1 | AH44: =COLUMN(AH43) -> 34
A46: ROW | B46: 3 | E46: CITRUS REVIEW INPUT WITHOUT FULL ET
A47: Crop No. | B47: Plant No. in Parcel | C47: Multiple Plantings in Parcel | D47: Salt Flush | E47: Parcel Name | F47: Crop No. | G47: Crop | H47: Acreage | I47: Rainfall Station | J47: Irrigation System | K47: Irrigation System Multiplier | L47: Soil | M47: Calculations | N47: =Exhibit!$C$19 -> Jan | O47: =Exhibit!$D$19 -> Feb | P47: =Exhibit!$E$19 -> Mar | Q47: =Exhibit!$F$19 -> Apr | R47: =Exhibit!$G$19 -> May | S47: =Exhibit!$H$19 -> Jun | T47: =Exhibit!$I$19 -> Jul | U47: =Exhibit!$J$19 -> Aug | V47: =Exhibit!$K$19 -> Sep | W47: =Exhibit!$L$19 -> Oct | X47: =Exhibit!$M$19 -> Nov | Y47: =Exhibit!$N$19 -> Dec | Z47: =Exhibit!$O$19 -> Total | AA47: Max Month (Value) | AB47: Max Month (Month) | AC47: Max Month (Citrus Value) | AD47: Max Month (Citrus Month) | AE47: Multiple Plantings in Parcel (Max Month) | AF47: Annual | AG47: Max Month (MG) | AH47: ANNUAL (MG)
E48: =IF(Input2!N8<>"",Input2!N8," ") ->  | F48: =InputControl!B57 -> 5 | G48: =Exhibit!C9 -> Nursery | H48: =Exhibit!C8 -> 1 | I48: =Exhibit!C6 -> Okeechobee 1-in-10 | J48: =Exhibit!C7 -> Drip | K48: =Exhibit!C11 -> 1.18 | L48: =Exhibit!C10 -> 0.8 | M48: =Exhibit!B25 -> 1-in-10 Irrigation (inches) | N48: =Exhibit!C25 -> 1.04 | O48: =Exhibit!D25 -> 1.22 | P48: =Exhibit!E25 -> 2.41 | Q48: =Exhibit!F25 -> 3.75 | R48: =Exhibit!G25 -> 4.66 | S48: =Exhibit!H25 -> 4.17 | T48: =Exhibit!I25 -> 4.86 | U48: =Exhibit!J25 -> 4.5 | V48: =Exhibit!K25 -> 3.59 | W48: =Exhibit!L25 -> 3.05 | X48: =Exhibit!M25 -> 2.21 | Y48: =Exhibit!N25 -> 1.39 | Z48: =SUM(N48:Y48) -> 36.85 | AA48: =MAX(N48:Y48) -> 4.86 | AB48: MAY | AC48: =IF((InputControl!$B$57=13)*AND(InputControl!$A$160<>0),InputControl!A160,"") ->  | AD48: =IF((InputControl!$B$57=13)*AND(InputControl!$A$160<>0),InputControl!C156,"") ->  | AF48: =Exhibit!O25 -> 36.85 | AG48: =IF((InputControl!$B$57=13)*AND(InputControl!$A$160<>0),AC48*H48*K48*0.02715,AA48*H48*K48*0.02715) -> 0.1557 | AH48: =AF48*H48*K48*0.02715 -> 1.180563
N49: =N$48*$H$6*$K$6*0.02715 -> 0.033318 | O49: =O$48*$H$6*$K$6*0.02715 -> 0.039085 | P49: 0.077209 | Q49: 0.120139 | R49: 0.149292 | S49: 0.133594 | T49: 0.1557 | U49: 0.144167 | V49: 0.115013 | W49: 0.097713 | X49: 0.070802 | Y49: 0.044531 | Z49: =Z$48*$H$6*$K$6*0.02715 -> 1.180563 | AA49: =MAX(N48:Y48)*$H$6*$K$6*0.02715 -> 0.1557 | AC49: =IF((InputControl!$B$57=13)*AND(InputControl!$A$160<>0),InputControl!A160*$H$6*$K$6*0.02715,"") ->  | AF49: =Exhibit!O25*$H$6*$K$6*0.02715 -> 1.18056345 | AG49: =IF((InputControl!$B$57=13)*AND(InputControl!$A$160<>0),AC48*H48*K48*0.02715,AA48*H48*K48*0.02715) -> 0.1557 | AH49: =SUM(N49:Y49) -> 1.180563
AB50: =MATCH(MAX(N48:Y48),N48:Y48,0) -> 7
A53: ROW | B53: 57 | E53: ALL CROP PLANTINGS IN INCHES
A54: Crop No. | B54: Plant No. in Parcel | C54: Multiple Plantings in Parcel | D54: Salt Flush | E54: Parcel Name | F54: Crop No. | G54: Crop | H54: Acreage | I54: Rainfall Station | J54: Irrigation System | K54: Irrigation System Multiplier | L54: Soil | M54: Calculations | N54: =Exhibit!$C$19 -> Jan | O54: =Exhibit!$D$19 -> Feb | P54: =Exhibit!$E$19 -> Mar | Q54: =Exhibit!$F$19 -> Apr | R54: =Exhibit!$G$19 -> May | S54: =Exhibit!$H$19 -> Jun | T54: =Exhibit!$I$19 -> Jul | U54: =Exhibit!$J$19 -> Aug | V54: =Exhibit!$K$19 -> Sep | W54: =Exhibit!$L$19 -> Oct | X54: =Exhibit!$M$19 -> Nov | Y54: =Exhibit!$N$19 -> Dec | Z54: =Exhibit!$O$19 -> Total | AA54: Max Month (Value) | AB54: Max Month (Month) | AC54: Max Month (Citrus Value) | AD54: Max Month (Citrus Month) | AE54: Multiple Plantings in Parcel (Max Month) | AF54: Annual | AG54: Max Month (MG) | AH54: ANNUAL (MG)
A55: 1 | B55: 1 | C55: NO | D55: NO | F55: 20 | G55: Pasture | H55: 217 | I55: Moore Haven 1-in-10 | J55: Flood/Seepage | K55: 2 | L55: 0.8 | M55: 1-in-10 Irrigation (inches) | N55: 0.95 | O55: 1.35 | P55: 2.29 | Q55: 2.92 | R55: 3.26 | S55: 1.43 | T55: 2.02 | U55: 2.14 | V55: 1.21 | W55: 1.85 | X55: 1.49 | Y55: 1.02 | Z55: 21.93 | AA55: 3.26 | AB55: MAY
A56: 2 | B56: 1 | C56: NO | D56: NO | F56: 10 | G56: Sugarcane | H56: 156 | I56: Moore Haven 1-in-10 | J56: Flood/Seepage | K56: 2 | L56: 0.8 | M56: 1-in-10 Irrigation (inches) | N56: 0.71 | O56: 0.33 | P56: 1.83 | Q56: 2.54 | R56: 3.26 | S56: 3.16 | T56: 3.66 | U56: 3.95 | V56: 2.5 | W56: 3.8 | X56: 2.47 | Y56: 1.93 | Z56: 30.14 | AA56: 3.95 | AB56: AUG
A57: 3 | F57: 13 | G57: Citrus | H57: 1810 | I57: Moore Haven 1-in-10 | J57: Micro-sprinkler | K57: 1.18 | L57: 0.8 | M57: 1-in-10 Irrigation (inches) | N57: 1.55 | O57: 1.56 | P57: 2.52 | Q57: 3.03 | R57: 3.33 | S57: 2.64 | T57: 3.09 | U57: 3.05 | V57: 2.32 | W57: 2.69 | X57: 2.26 | Y57: 1.75 | Z57: 29.79 | AA57: 3.33 | AB57: MAY | AC57: 5.16 | AD57: MAY

Sheet climo data (hidden)
A1: 2-in-10
A2: Archbold (No Data) | E2: Avon Park | I2: Belle Glade | M2: Big Cypress | Q2: Clewiston | U2: Everglades | Y2: Fellsmere | AC2: Fort Drum (No Data) | AG2: Ft. Lauderdale | AK2: Ft. Myers | AO2: Ft. Pierce | AS2: Hialeah | AW2: Homestead | BA2: Hypoluxo | BE2: Immokalee (No Data) | BI2: Indiantown | BM2: Jupiter | BQ2: Kissimmee | BU2: La Belle | BY2: Lake Placid | CC2: Loxahatchee | CG2: Melbourne | CK2: Merritt Island | CO2: Miami | CS2: Moore Haven | CW2: Naples | DA2: Okeechobee | DE2: Orlando | DI2: Pompano Beach | DM2: Punta Gorda (No Data) | DQ2: Stuart | DU2: S-65 (No Data) | DY2: S 140 W (No Data) | EC2: Tamiami 4 | EG2: Titusville | EK2: Vero Beach | EO2: West Palm Beach
E3: Rain | G3: Temp | H3: Sun | I3: Rain | K3: Temp | L3: Sun | M3: Rain | O3: Temp | P3: Sun | Q3: Rain | S3: Temp | T3: Sun | U3: Rain | W3: Temp | X3: Sun | Y3: Rain | AA3: Temp | AB3: Sun | AG3: Rain | AI3: Temp | AJ3: Sun | AK3: Rain | AM3: Temp | AN3: Sun | AO3: Rain | AQ3: Temp | AR3: Sun | AS3: Rain | AU3: Temp | AV3: Sun | AW3: Rain | AY3: Temp | AZ3: Sun | BA3: Rain | BC3: Temp | BD3: Sun | BI3: Rain | BK3: Temp | BL3: Sun | BM3: Rain | BO3: Temp | BP3: Sun | BQ3: Rain | BS3: Temp | BT3: Sun | BU3: Rain | BW3: Temp | BX3: Sun | BY3: Rain | CA3: Temp | CB3: Sun | CC3: Rain | CE3: Temp | CF3: Sun | CG3: Rain | CI3: Temp | CJ3: Sun | CK3: Rain | CM3: Temp | CN3: Sun | CO3: Rain | CQ3: Temp | CR3: Sun | CS3: Rain | CU3: Temp | CV3: Sun | CW3: Rain | CY3: Temp | CZ3: Sun | DA3: Rain | DC3: Temp | DD3: Sun | DE3: Rain | DG3: Temp | DH3: Sun | DI3: Rain | DK3: Temp | DL3: Sun | DQ3: Rain | DS3: Temp | DT3: Sun | EC3: Rain | EE3: Temp | EF3: Sun | EG3: Rain | EI3: Temp | EJ3: Sun | EK3: Rain | EM3: Temp | EN3: Sun | EO3: Rain | EQ3: Temp | ER3: Sun
E4: 2.17 | G4: 63.46 | H4: 7.42 | I4: 1.88 | K4: 63.17 | L4: 7.46 | M4: 1.69 | O4: 62.74 | P4: 7.48 | Q4: 1.31 | S4: 63.45 | T4: 7.45 | U4: 1.63 | W4: 66.3 | X4: 7.49 | Y4: 2.2 | AA4: 62.96 | AB4: 7.41 | AG4: 2.54 | AI4: 67.74 | AJ4: 7.49 | AK4: 1.9 | AM4: 64.32 | AN4: 7.46 | AO4: 2.44 | AQ4: 64.7 | AR4: 7.42 | AS4: 2.1 | AU4: 65.91 | AV4: 7.49 | AW4: 1.67 | AY4: 65.8 | AZ4: 7.52 | BA4: 2.89 | BC4: 67.72 | BD4: 7.46 | BI4: 2.23 | BK4: 63.97 | BL4: 7.44 | BM4: 3.66 | BO4: 67.99 | BP4: 7.44 | BQ4: 2.35 | BS4: 61.07 | BT4: 7.39 | BU4: 1.62 | BW4: 63.79 | BX4: 7.45 | BY4: 1.83 | CA4: 62.83 | CB4: 7.43 | CC4: 2.44 | CE4: 64.15 | CF4: 7.46 | CG4: 2.04 | CI4: 61.55 | CJ4: 7.4 | CK4: 2.65 | CM4: 62.49 | CN4: 7.38 | CO4: 2.58 | CQ4: 67.51 | CR4: 7.5 | CS4: 1.54 | CU4: 63.43 | CV4: 7.44 | CW4: 1.81 | CY4: 65.56 | CZ4: 7.49 | DA4: 1.75 | DC4: 62.69 | DD4: 7.43 | DE4: 2.3 | DG4: 61.27 | DH4: 7.38 | DI4: 2.41 | DK4: 67.1 | DL4: 7.48 | DQ4: 2.34 | DS4: 65.49 | DT4: 7.44 | EC4: 1.44 | EE4: 67.12 | EF4: 7.5 | EG4: 2.14 | EI4: 61.26 | EJ4: 7.37 | EK4: 2.05 | EM4: 63.05 | EN4: 7.41 | EO4: 2.42 | EQ4: 66.33 | ER4: 7.47
E5: 2.71 | G5: 64.71 | H5: 7.08 | I5: 1.87 | K5: 64.15 | L5: 7.11 | M5: 2.59 | O5: 63.2 | P5: 7.12 | Q5: 1.89 | S5: 65.57 | T5: 7.1 | U5: 1.68 | W5: 67.41 | X5: 7.12 | Y5: 2.3 | AA5: 64.28 | AB5: 7.08 | AG5: 2.26 | AI5: 68.11 | AJ5: 7.12 | AK5: 2.16 | AM5: 65.36 | AN5: 7.11 | AO5: 2.66 | AQ5: 65.57 | AR5: 7.09 | AS5: 1.9 | AU5: 66.53 | AV5: 7.12 | AW5: 1.73 | AY5: 66.6 | AZ5: 7.13 | BA5: 2.72 | BC5: 68.09 | BD5: 7.11 | BI5: 3.08 | BK5: 65.41 | BL5: 7.1 | BM5: 2.49 | BO5: 67.77 | BP5: 7.1 | BQ5: 2.84 | BS5: 62.42 | BT5: 7.06 | BU5: 2.26 | BW5: 65.08 | BX5: 7.1 | BY5: 2.45 | CA5: 64.95 | CB5: 7.09 | CC5: 2.56 | CE5: 64.75 | CF5: 7.11 | CG5: 2.72 | CI5: 63.2 | CJ5: 7.07 | CK5: 2.54 | CM5: 63.68 | CN5: 7.06 | CO5: 2.14 | CQ5: 67.94 | CR5: 7.13 | CS5: 1.9 | CU5: 64.59 | CV5: 7.1 | CW5: 2.02 | CY5: 66.58 | CZ5: 7.12 | DA5: 2 | DC5: 64.18 | DD5: 7.09 | DE5: 2.43 | DG5: 63.12 | DH5: 7.06 | DI5: 2.34 | DK5: 67.46 | DL5: 7.12 | DQ5: 2.46 | DS5: 66.35 | DT5: 7.1 | EC5: 1.46 | EE5: 68.75 | EF5: 7.12 | EG5: 2.39 | EI5: 62.9 | EJ5: 7.06 | EK5: 2.45 | EM5: 64.63 | EN5: 7.08 | EO5: 2.54 | EQ5: 66.88 | ER5: 7.11
E6: 2.6 | G6: 68.12 | H6: 8.37 | I6: 2.89 | K6: 66.92 | L6: 8.38 | M6: 1.83 | O6: 67.07 | P6: 8.38 | Q6: 1.94 | S6: 69.4 | T6: 8.38 | U6: 2 | W6: 69.94 | X6: 8.38 | Y6: 3.05 | AA6: 67.27 | AB6: 8.37 | AG6: 2.62 | AI6: 70.44 | AJ6: 8.38 | AK6: 2.21 | AM6: 68.62 | AN6: 8.38 | AO6: 2.96 | AQ6: 68.31 | AR6: 8.38 | AS6: 2.05 | AU6: 70.07 | AV6: 8.38 | AW6: 2.36 | AY6: 69.36 | AZ6: 8.39 | BA6: 3.18 | BC6: 69.94 | BD6: 8.38 | BI6: 3.14 | BK6: 68.26 | BL6: 8.38 | BM6: 3.26 | BO6: 70.38 | BP6: 8.38 | BQ6: 3.11 | BS6: 66.43 | BT6: 8.37 | BU6: 2.74 | BW6: 68.57 | BX6: 8.38 | BY6: 2.65 | CA6: 68.67 | CB6: 8.38 | CC6: 3.18 | CE6: 68.17 | CF6: 8.38 | CG6: 3.17 | CI6: 66.89 | CJ6: 8.37 | CK6: 2.93 | CM6: 66.8 | CN6: 8.37 | CO6: 2.44 | CQ6: 70.88 | CR6: 8.38 | CS6: 2.4 | CU6: 67.98 | CV6: 8.38 | CW6: 2.11 | CY6: 69.81 | CZ6: 8.38 | DA6: 3.05 | DC6: 67.49 | DD6: 8.38 | DE6: 2.81 | DG6: 66.8 | DH6: 8.37 | DI6: 2.38 | DK6: 70.7 | DL6: 8.38 | DQ6: 2.98 | DS6: 69.87 | DT6: 8.38 | EC6: 1.89 | EE6: 70.82 | EF6: 8.38 | EG6: 3.15 | EI6: 65.92 | EJ6: 8.37 | EK6: 3.58 | EM6: 68.06 | EN6: 8.37 | EO6: 2.84 | EQ6: 70.19 | ER6: 8.38
E7: 2.89 | G7: 72.82 | H7: 8.67 | I7: 3.08 | K7: 70.73 | L7: 8.65 | M7: 2.06 | O7: 70.83 | P7: 8.64 | Q7: 2.84 | S7: 73.51 | T7: 8.66 | U7: 2.33 | W7: 73.92 | X7: 8.64 | Y7: 3.14 | AA7: 72.02 | AB7: 8.67 | AG7: 3.93 | AI7: 74.27 | AJ7: 8.64 | AK7: 2.37 | AM7: 73.07 | AN7: 8.65 | AO7: 3.27 | AQ7: 72.62 | AR7: 8.66 | AS7: 3.73 | AU7: 73.78 | AV7: 8.64 | AW7: 3.36 | AY7: 72.94 | AZ7: 8.63 | BA7: 3.55 | BC7: 73.62 | BD7: 8.65 | BI7: 4.11 | BK7: 72.13 | BL7: 8.66 | BM7: 2.82 | BO7: 74.09 | BP7: 8.66 | BQ7: 2.7 | BS7: 71.47 | BT7: 8.68 | BU7: 2.94 | BW7: 72.74 | BX7: 8.66 | BY7: 3.25 | CA7: 72.91 | CB7: 8.66 | CC7: 3.6 | CE7: 71.92 | CF7: 8.65 | CG7: 2.35 | CI7: 71.41 | CJ7: 8.67 | CK7: 2.81 | CM7: 71.51 | CN7: 8.68 | CO7: 3.42 | CQ7: 73.89 | CR7: 8.63 | CS7: 2.87 | CU7: 72.17 | CV7: 8.66 | CW7: 2.15 | CY7: 73.74 | CZ7: 8.64 | DA7: 3.09 | DC7: 71.74 | DD7: 8.66 | DE7: 2.99 | DG7: 71.5 | DH7: 8.68 | DI7: 3.65 | DK7: 74.19 | DL7: 8.64 | DQ7: 3.15 | DS7: 73.8 | DT7: 8.66 | EC7: 2.67 | EE7: 73.29 | EF7: 8.64 | EG7: 2.97 | EI7: 71.06 | EJ7: 8.68 | EK7: 3.07 | EM7: 72.16 | EN7: 8.67 | EO7: 3.64 | EQ7: 74.22 | ER7: 8.65
E8: 4.43 | G8: 77.45 | H8: 9.44 | I8: 4.46 | K8: 74.72 | L8: 9.4 | M8: 5.53 | O8: 75.12 | P8: 9.38 | Q8: 4.59 | S8: 77.18 | T8: 9.4 | U8: 4.96 | W8: 77.38 | X8: 9.37 | Y8: 4.36 | AA8: 75.92 | AB8: 9.44 | AG8: 5.78 | AI8: 77.4 | AJ8: 9.37 | AK8: 3.9 | AM8: 77.34 | AN8: 9.4 | AO8: 4.13 | AQ8: 76.57 | AR8: 9.43 | AS8: 5.95 | AU8: 76.93 | AV8: 9.37 | AW8: 6.48 | AY8: 76.2 | AZ8: 9.35 | BA8: 4.96 | BC8: 76.88 | BD8: 9.4 | BI8: 3.94 | BK8: 75.99 | BL8: 9.41 | BM8: 4.89 | BO8: 76.25 | BP8: 9.41 | BQ8: 3.98 | BS8: 76.43 | BT8: 9.47 | BU8: 4.11 | BW8: 76.98 | BX8: 9.4 | BY8: 3.9 | CA8: 77.72 | CB8: 9.42 | CC8: 4.59 | CE8: 75.94 | CF8: 9.4 | CG8: 3.36 | CI8: 75.66 | CJ8: 9.46 | CK8: 3.71 | CM8: 76.48 | CN8: 9.48 | CO8: 6.39 | CQ8: 77.41 | CR8: 9.36 | CS8: 4.65 | CU8: 76.28 | CV8: 9.41 | CW8: 3.93 | CY8: 77.41 | CZ8: 9.37 | DA8: 4.15 | DC8: 75.98 | DD8: 9.42 | DE8: 4.21 | DG8: 76.75 | DH8: 9.48 | DI8: 5.08 | DK8: 77.02 | DL8: 9.38 | DQ8: 4.48 | DS8: 77.34 | DT8: 9.42 | EC8: 6.21 | EE8: 76.93 | EF8: 9.36 | EG8: 4.08 | EI8: 76.1 | EJ8: 9.48 | EK8: 3.37 | EM8: 76.47 | EN8: 9.44 | EO8: 5.13 | EQ8: 77.7 | ER8: 9.39
E9: 8.74 | G9: 80.76 | H9: 9.37 | I9: 9.48 | K9: 78.41 | L9: 9.32 | M9: 8.8 | O9: 78.76 | P9: 9.3 | Q9: 6.73 | S9: 80.23 | T9: 9.33 | U9: 9.26 | W9: 80.71 | X9: 9.29 | Y9: 7.38 | AA9: 79.88 | AB9: 9.37 | AG9: 8.15 | AI9: 80.24 | AJ9: 9.29 | AK9: 9.09 | AM9: 80.6 | AN9: 9.32 | AO9: 6.4 | AQ9: 79.96 | AR9: 9.36 | AS9: 9.24 | AU9: 80.03 | AV9: 9.29 | AW9: 9.25 | AY9: 79.34 | AZ9: 9.26 | BA9: 7.61 | BC9: 79.96 | BD9: 9.32 | BI9: 9.7 | BK9: 78.88 | BL9: 9.34 | BM9: 6.37 | BO9: 79.86 | BP9: 9.34 | BQ9: 7.32 | BS9: 80.22 | BT9: 9.4 | BU9: 9.06 | BW9: 80.15 | BX9: 9.33 | BY9: 8.22 | CA9: 80.69 | CB9: 9.35 | CC9: 9.5 | CE9: 79.36 | CF9: 9.32 | CG9: 6.51 | CI9: 79.4 | CJ9: 9.39 | CK9: 6.65 | CM9: 80.03 | CN9: 9.41 | CO9: 6.85 | CQ9: 80.28 | CR9: 9.28 | CS9: 8.11 | CU9: 79.67 | CV9: 9.34 | CW9: 8.5 | CY9: 80.82 | CZ9: 9.29 | DA9: 7.39 | DC9: 79.46 | DD9: 9.35 | DE9: 6.61 | DG9: 80.68 | DH9: 9.41 | DI9: 7.93 | DK9: 79.95 | DL9: 9.3 | DQ9: 7.09 | DS9: 80.82 | DT9: 9.35 | EC9: 8.95 | EE9: 80.56 | EF9: 9.28 | EG9: 7.38 | EI9: 80.06 | EJ9: 9.42 | EK9: 4.88 | EM9: 79.85 | EN9: 9.37 | EO9: 7.81 | EQ9: 80.62 | ER9: 9.32
E10: 8.31 | G10: 81.93 | H10: 9.56 | I10: 7.86 | K10: 80.1 | L10: 9.52 | M10: 7.63 | O10: 81.63 | P10: 9.5 | Q10: 6.51 | S10: 81.72 | T10: 9.52 | U10: 8.37 | W10: 82.18 | X10: 9.49 | Y10: 7.11 | AA10: 81.44 | AB10: 9.56 | AG10: 6.11 | AI10: 81.76 | AJ10: 9.49 | AK10: 8.47 | AM10: 81.99 | AN10: 9.52 | AO10: 5.47 | AQ10: 81.59 | AR10: 9.55 | AS10: 7.23 | AU10: 81.2 | AV10: 9.49 | AW10: 8.22 | AY10: 80.45 | AZ10: 9.47 | BA10: 5.46 | BC10: 81.41 | BD10: 9.52 | BI10: 6.38 | BK10: 80.1 | BL10: 9.53 | BM10: 5.79 | BO10: 81.05 | BP10: 9.53 | BQ10: 7.52 | BS10: 81.54 | BT10: 9.59 | BU10: 8.18 | BW10: 81.45 | BX10: 9.52 | BY10: 7.85 | CA10: 81.78 | CB10: 9.54 | CC10: 8.22 | CE10: 80.76 | CF10: 9.52 | CG10: 6.35 | CI10: 81.05 | CJ10: 9.58 | CK10: 6.07 | CM10: 81.38 | CN10: 9.6 | CO10: 5.86 | CQ10: 81.56 | CR10: 9.48 | CS10: 7.58 | CU10: 81.01 | CV10: 9.53 | CW10: 8.35 | CY10: 82.34 | CZ10: 9.49 | DA10: 6.84 | DC10: 80.99 | DD10: 9.54 | DE10: 7.85 | DG10: 82.04 | DH10: 9.6 | DI10: 6.74 | DK10: 81.43 | DL10: 9.5 | DQ10: 6.49 | DS10: 82.16 | DT10: 9.54 | EC10: 8.37 | EE10: 82.41 | EF10: 9.48 | EG10: 8.06 | EI10: 81.58 | EJ10: 9.6 | EK10: 5.69 | EM10: 81.33 | EN10: 9.56 | EO10: 6.67 | EQ10: 82.47 | ER10: 9.51
E11: 7.54 | G11: 82.37 | H11: 9.16 | I11: 8.18 | K11: 80.55 | L11: 9.13 | M11: 6.87 | O11: 82.11 | P11: 9.12 | Q11: 6.74 | S11: 82.09 | T11: 9.13 | U11: 7.34 | W11: 82.82 | X11: 9.11 | Y11: 7.52 | AA11: 81.83 | AB11: 9.16 | AG11: 6.72 | AI11: 82.33 | AJ11: 9.11 | AK11: 8 | AM11: 82.41 | AN11: 9.13 | AO11: 5.68 | AQ11: 82.01 | AR11: 9.15 | AS11: 7.69 | AU11: 81.82 | AV11: 9.11 | AW11: 7.77 | AY11: 80.97 | AZ11: 9.09 | BA11: 5.63 | BC11: 82 | BD11: 9.13 | BI11: 7.08 | BK11: 81.39 | BL11: 9.14 | BM11: 6.26 | BO11: 82.15 | BP11: 9.14 | BQ11: 6.88 | BS11: 81.87 | BT11: 9.18 | BU11: 7.54 | BW11: 81.8 | BX11: 9.13 | BY11: 6.88 | CA11: 82.3 | CB11: 9.15 | CC11: 8.35 | CE11: 81.18 | CF11: 9.13 | CG11: 5.7 | CI11: 81.6 | CJ11: 9.17 | CK11: 5.52 | CM11: 81.77 | CN11: 9.18 | CO11: 6.27 | CQ11: 82.16 | CR11: 9.13 | CS11: 6.87 | CU11: 81.59 | CV11: 9.14 | CW11: 8.25 | CY11: 82.91 | CZ11: 9.11 | DA11: 6.22 | DC11: 81.52 | DD11: 9.15 | DE11: 7.04 | DG11: 82.31 | DH11: 9.18 | DI11: 7.07 | DK11: 81.82 | DL11: 9.12 | DQ11: 5.97 | DS11: 82.58 | DT11: 9.14 | EC11: 7.81 | EE11: 83.19 | EF11: 9.13 | EG11: 7.28 | EI11: 81.82 | EJ11: 9.18 | EK11: 6.04 | EM11: 81.68 | EN11: 9.16 | EO11: 6.85 | EQ11: 82.78 | ER11: 9.12
E12: 7.23 | G12: 80.81 | H12: 8.32 | I12: 8.76 | K12: 79.55 | L12: 8.32 | M12: 7.63 | O12: 80.11 | P12: 8.32 | Q12: 7.97 | S12: 81.21 | T12: 8.32 | U12: 10.14 | W12: 81.94 | X12: 8.32 | Y12: 9.13 | AA12: 80.23 | AB12: 8.32 | AG12: 8.56 | AI12: 81.34 | AJ12: 8.32 | AK12: 8.13 | AM12: 81.15 | AN12: 8.32 | AO12: 7.74 | AQ12: 80.76 | AR12: 8.32 | AS12: 9.35 | AU12: 80.63 | AV12: 8.32 | AW12: 9.98 | AY12: 80.15 | AZ12: 8.31 | BA12: 8.39 | BC12: 81.22 | BD12: 8.32 | BI12: 7.25 | BK12: 80.53 | BL12: 8.32 | BM12: 8.63 | BO12: 81.61 | BP12: 8.32 | BQ12: 6.44 | BS12: 80.06 | BT12: 8.32 | BU12: 7.69 | BW12: 80.67 | BX12: 8.32 | BY12: 7.15 | CA12: 80.78 | CB12: 8.32 | CC12: 9.78 | CE12: 80.3 | CF12: 8.32 | CG12: 7.93 | CI12: 79.99 | CJ12: 8.32 | CK12: 7.91 | CM12: 80.14 | CN12: 8.32 | CO12: 8.81 | CQ12: 81 | CR12: 8.32 | CS12: 7.58 | CU12: 80.47 | CV12: 8.32 | CW12: 9.51 | CY12: 81.97 | CZ12: 8.32 | DA12: 7.25 | DC12: 80.34 | DD12: 8.32 | DE12: 7.13 | DG12: 80.4 | DH12: 8.32 | DI12: 9.06 | DK12: 81 | DL12: 8.32 | DQ12: 8.65 | DS12: 81.35 | DT12: 8.32 | EC12: 9.66 | EE12: 82.56 | EF12: 8.32 | EG12: 8.56 | EI12: 80.15 | EJ12: 8.33 | EK12: 8.97 | EM12: 80.47 | EN12: 8.32 | EO12: 9.53 | EQ12: 81.72 | ER12: 8.32
E13: 3.88 | G13: 75.64 | H13: 8.03 | I13: 5.35 | K13: 74.95 | L13: 8.05 | M13: 5.11 | O13: 76.09 | P13: 8.06 | Q13: 3.72 | S13: 76.31 | T13: 8.04 | U13: 4.42 | W13: 77.88 | X13: 8.06 | Y13: 6.76 | AA13: 75.38 | AB13: 8.03 | AG13: 9.54 | AI13: 77.84 | AJ13: 8.06 | AK13: 3.88 | AM13: 76.26 | AN13: 8.05 | AO13: 7.21 | AQ13: 76.48 | AR13: 8.03 | AS13: 8.82 | AU13: 76.62 | AV13: 8.06 | AW13: 8.58 | AY13: 76.56 | AZ13: 8.07 | BA13: 8.75 | BC13: 77.78 | BD13: 8.05 | BI13: 5.47 | BK13: 75.33 | BL13: 8.04 | BM13: 10.37 | BO13: 78.14 | BP13: 8.04 | BQ13: 3.92 | BS13: 74.28 | BT13: 8.01 | BU13: 3.86 | BW13: 75.56 | BX13: 8.04 | BY13: 3.9 | CA13: 75.26 | CB13: 8.04 | CC13: 7.89 | CE13: 75.71 | CF13: 8.05 | CG13: 5.58 | CI13: 74.88 | CJ13: 8.02 | CK13: 6.05 | CM13: 75.3 | CN13: 8.01 | CO13: 8.86 | CQ13: 77.54 | CR13: 8.07 | CS13: 4.24 | CU13: 76 | CV13: 8.04 | CW13: 4.45 | CY13: 77 | CZ13: 8.06 | DA13: 4.81 | DC13: 75.69 | DD13: 8.04 | DE13: 4.62 | DG13: 74.34 | DH13: 8.01 | DI13: 10.46 | DK13: 77.2 | DL13: 8.06 | DQ13: 8.06 | DS13: 77.25 | DT13: 8.04 | EC13: 6.09 | EE13: 78.67 | EF13: 8.06 | EG13: 6.41 | EI13: 74.81 | EJ13: 8.01 | EK13: 6.87 | EM13: 75.66 | EN13: 8.03 | EO13: 8.7 | EQ13: 77.71 | ER13: 8.05
E14: 1.65 | G14: 68.67 | H14: 7.3 | I14: 2.02 | K14: 68.55 | L14: 7.33 | M14: 1.69 | O14: 69.5 | P14: 7.35 | Q14: 1.02 | S14: 69.77 | T14: 7.33 | U14: 1.4 | W14: 71.82 | X14: 7.36 | Y14: 2.21 | AA14: 68.53 | AB14: 7.29 | AG14: 3.4 | AI14: 72.59 | AJ14: 7.36 | AK14: 1.37 | AM14: 69.44 | AN14: 7.33 | AO14: 2.69 | AQ14: 70.14 | AR14: 7.3 | AS14: 2.96 | AU14: 71.3 | AV14: 7.36 | AW14: 2.14 | AY14: 70.68 | AZ14: 7.38 | BA14: 3.25 | BC14: 72.51 | BD14: 7.33 | BI14: 1.96 | BK14: 69.36 | BL14: 7.32 | BM14: 3.18 | BO14: 71.57 | BP14: 7.32 | BQ14: 1.95 | BS14: 66.69 | BT14: 7.27 | BU14: 1.31 | BW14: 68.9 | BX14: 7.33 | BY14: 1.74 | CA14: 68.49 | CB14: 7.31 | CC14: 2.29 | CE14: 69.58 | CF14: 7.33 | CG14: 2.57 | CI14: 67.91 | CJ14: 7.28 | CK14: 2.52 | CM14: 68.23 | CN14: 7.26 | CO14: 2.72 | CQ14: 72.18 | CR14: 7.37 | CS14: 1.42 | CU14: 69.13 | CV14: 7.32 | CW14: 1.36 | CY14: 71.26 | CZ14: 7.36 | DA14: 1.46 | DC14: 68.82 | DD14: 7.31 | DE14: 1.72 | DG14: 66.65 | DH14: 7.26 | DI14: 2.75 | DK14: 72.24 | DL14: 7.35 | DQ14: 2.31 | DS14: 71.52 | DT14: 7.32 | EC14: 1.51 | EE14: 72.95 | EF14: 7.37 | EG14: 2.18 | EI14: 67.21 | EJ14: 7.26 | EK14: 2.54 | EM14: 69.13 | EN14: 7.29 | EO14: 2.56 | EQ14: 71.98 | ER14: 7.34
E15: 1.74 | G15: 64.25 | H15: 7.29 | I15: 1.7 | K15: 64.19 | L15: 7.34 | M15: 1.01 | O15: 63.31 | P15: 7.36 | Q15: 1.61 | S15: 64.47 | T15: 7.33 | U15: 1.34 | W15: 67.1 | X15: 7.37 | Y15: 1.86 | AA15: 63.83 | AB15: 7.29 | AG15: 2.51 | AI15: 68.71 | AJ15: 7.37 | AK15: 1.51 | AM15: 65.5 | AN15: 7.34 | AO15: 2.08 | AQ15: 65.76 | AR15: 7.3 | AS15: 1.81 | AU15: 66.92 | AV15: 7.37 | AW15: 1.18 | AY15: 66.54 | AZ15: 7.4 | BA15: 2.44 | BC15: 68.75 | BD15: 7.34 | BI15: 1.49 | BK15: 64.15 | BL15: 7.32 | BM15: 2.38 | BO15: 69.29 | BP15: 7.32 | BQ15: 2.17 | BS15: 61.87 | BT15: 7.26 | BU15: 1.35 | BW15: 64.3 | BX15: 7.33 | BY15: 1.41 | CA15: 63.72 | CB15: 7.31 | CC15: 2.22 | CE15: 65.32 | CF15: 7.34 | CG15: 1.74 | CI15: 63.2 | CJ15: 7.27 | CK15: 2.12 | CM15: 63.55 | CN15: 7.25 | CO15: 2.01 | CQ15: 68.77 | CR15: 7.38 | CS15: 1.23 | CU15: 64.63 | CV15: 7.32 | CW15: 1.29 | CY15: 66.52 | CZ15: 7.37 | DA15: 1.4 | DC15: 63.77 | DD15: 7.31 | DE15: 2.33 | DG15: 61.87 | DH15: 7.25 | DI15: 2.49 | DK15: 68.08 | DL15: 7.36 | DQ15: 2.24 | DS15: 66.82 | DT15: 7.31 | EC15: 1.05 | EE15: 68.13 | EF15: 7.38 | EG15: 2.4 | EI15: 62.22 | EJ15: 7.24 | EK15: 1.72 | EM15: 64.11 | EN15: 7.29 | EO15: 2.31 | EQ15: 67.63 | ER15: 7.34
E17: 71 | G17: 0.86 | I17: 44 | K17: 0.87 | M17: 15 | O17: 0.85 | Q17: 22 | S17: 0.84 | U17: 43 | W17: 0.86 | Y17: 55 | AA17: 0.86 | AG17: 54 | AI17: 0.87 | AK17: 98 | AM17: 0.86 | AO17: 75 | AQ17: 0.86 | AS17: 28 | AU17: 0.87 | AW17: 55 | AY17: 0.87 | BA17: 67 | BC17: 0.87 | BI17: 13 | BK17: 0.86 | BM17: 32 | BO17: 0.87 | BQ17: 62 | BS17: 0.85 | BU17: 40 | BW17: 0.86 | BY17: 36 | CA17: 0.85 | CC17: 28 | CE17: 0.87 | CG17: 32 | CI17: 0.85 | CK17: 80 | CM17: 0.85 | CO17: 77 | CQ17: 0.87 | CS17: 51 | CU17: 0.85 | CW17: 27 | CY17: 0.86 | DA17: 48 | DC17: 0.85 | DE17: 56 | DG17: 0.85 | DI17: 28 | DK17: 0.87 | DQ17: 34 | DS17: 0.85 | EC17: 26 | EE17: 0.86 | EG17: 43 | EI17: 0.86 | EK17: 23 | EM17: 0.85 | EO17: 29 | EQ17: 0.87
A20: 1-in-10
A21: Archbold | E21: Avon Park | I21: Belle Glade | M21: Big Cypress (No Data) | Q21: Clewiston | U21: Everglades | Y21: Fellsmere (No Data) | AC21: Fort Drum | AG21: Ft. Lauderdale | AK21: Ft. Myers | AO21: Ft. Pierce | AS21: Hialeah | AW21: Homestead | BA21: Hypoluxo | BE21: Immokalee | BI21: Indiantown (No Data) | BM21: Jupiter | BQ21: Kissimmee | BU21: La Belle | BY21: Lake Placid (No Data) | CC21: Loxahatchee | CG21: Melbourne (No Data) | CK21: Merritt Island (No Data) | CO21: Miami | CS21: Moore Haven | CW21: Naples | DA21: Okeechobee | DE21: Orlando(No Data) | DI21: Pompano Beach | DM21: Punta Gorda(No Data) | DQ21: Stuart | DU21: S-65 | DY21: S 140 W | EC21: Tamiami 4 | EG21: Titusville (No Data) | EK21: Vero Beach (No Data) | EO21: West Palm Beach
A22: Rain | B22: 1-in-10 | C22: Temp | D22: Sun | E22: Rain | F22: 1-in-10 | G22: Temp | H22: Sun | I22: Rain | J22: 1-in-10 | K22: Temp | L22: Sun | M22: Rain | N22: 1-in-10 | O22: Temp | P22: Sun | Q22: Rain | R22: 1-in-10 | S22: Temp | T22: Sun | U22: Rain | V22: 1-in-10 | W22: Temp | X22: Sun | Y22: Rain | Z22: 1-in-10 | AA22: Temp | AB22: Sun | AC22: Rain | AD22: 1-in-10 | AE22: Temp | AF22: Sun | AG22: Rain | AH22: 1-in-10 | AI22: Temp | AJ22: Sun | AK22: Rain | AL22: 1-in-10 | AM22: Temp | AN22: Sun | AO22: Rain | AP22: 1-in-10 | AQ22: Temp | AR22: Sun | AS22: Rain | AT22: 1-in-10 | AU22: Temp | AV22: Sun | AW22: Rain | AX22: 1-in-10 | AY22: Temp | AZ22: Sun | BA22: Rain | BB22: 1-in-10 | BC22: Temp | BD22: Sun | BE22: Rain | BF22: 1-in-10 | BG22: Temp | BH22: Sun | BI22: Rain | BJ22: 1-in-10 | BK22: Temp | BL22: Sun | BM22: Rain | BN22: 1-in-10 | BO22: Temp | BP22: Sun | BQ22: Rain | BR22: 1-in-10 | BS22: Temp | BT22: Sun | BU22: Rain | BV22: 1-in-10 | BW22: Temp | BX22: Sun | BY22: Rain | BZ22: 1-in-10 | CA22: Temp | CB22: Sun | CC22: Rain | CD22: 1-in-10 | CE22: Temp | CF22: Sun | CG22: Rain | CH22: 1-in-10 | CI22: Temp | CJ22: Sun | CK22: Rain | CL22: 1-in-10 | CM22: Temp | CN22: Sun | CO22: Rain | CP22: 1-in-10 | CQ22: Temp | CR22: Sun | CS22: Rain | CT22: 1-in-10 | CU22: Temp | CV22: Sun | CW22: Rain | CX22: 1-in-10 | CY22: Temp | CZ22: Sun | DA22: Rain | DB22: 1-in-10 | DC22: Temp | DD22: Sun | DE22: Rain | DF22: 1-in-10 | DG22: Temp | DH22: Sun | DI22: Rain | DJ22: 1-in-10 | DK22: Temp | DL22: Sun | DM22: Rain | DN22: 1-in-10 | DO22: Temp | DP22: Sun | DQ22: Rain | DR22: 1-in-10 | DS22: Temp | DT22: Sun | DU22: Rain | DV22: 1-in-10 | DW22: Temp | DX22: Sun | DY22: Rain | DZ22: 1-in-10 | EA22: Temp | EB22: Sun | EC22: Rain | ED22: 1-in-10 | EE22: Temp | EF22: Sun | EG22: Rain | EH22: 1-in-10 | EI22: Temp | EJ22: Sun | EK22: Rain | EL22: 1-in-10 | EM22: Temp | EN22: Sun | EO22: Rain | EP22: 1-in-10 | EQ22: Temp | ER22: Sun
A23: 1.91 | C23: 60.61 | D23: 7.43 | E23: 2.24 | G23: 61.74 | H23: 7.42 | I23: 2.2 | K23: 63 | L23: 7.46 | Q23: 2.08 | S23: 63.52 | T23: 7.45 | U23: 1.69 | V23: 1.38 | W23: 65.1 | X23: 7.49 | AC23: 2.05 | AE23: 61.77 | AF23: 7.41 | AG23: 2.86 | AI23: 66.81 | AJ23: 7.49 | AK23: 1.9 | AM23: 64.03 | AN23: 7.46 | AO23: 2.48 | AQ23: 63.29 | AR23: 7.42 | AS23: 2.28 | AU23: 66.42 | AV23: 7.49 | AW23: 1.72 | AY23: 65.77 | AZ23: 7.52 | BA23: 3.1 | BC23: 65.84 | BD23: 7.46 | BE23: 2.14 | BG23: 64.03 | BH23: 7.48 | BM23: 3.41 | BO23: 64.84 | BP23: 7.44 | BQ23: 2.12 | BS23: 60.94 | BT23: 7.39 | BU23: 1.95 | BW23: 62.94 | BX23: 7.45 | CC23: 2.59 | CE23: 63 | CF23: 7.46 | CO23: 2.02 | CQ23: 67.35 | CR23: 7.5 | CS23: 1.82 | CU23: 62.71 | CV23: 7.44 | CW23: 1.88 | CY23: 64.97 | CZ23: 7.49 | DA23: 1.76 | DC23: 62.03 | DD23: 7.43 | DI23: 2.71 | DK23: 66.9 | DL23: 7.48 | DQ23: 2.4 | DS23: 64.84 | DT23: 7.44 | DU23: 2.18 | DW23: 61.03 | DX23: 7.41 | DY23: 2.03 | EA23: 66.71 | EB23: 7.5 | EC23: 1.67 | EE23: 66.94 | EF23: 7.5 | EO23: 2.77 | EQ23: 65.84 | ER23: 7.47
A24: 2.2 | C24: 61.97 | D24: 7.09 | E24: 2.51 | G24: 63.41 | H24: 7.08 | I24: 1.89 | K24: 63.83 | L24: 7.11 | Q24: 1.98 | S24: 65 | T24: 7.1 | U24: 1.63 | V24: 1.52 | W24: 66.03 | X24: 7.12 | AC24: 2.72 | AE24: 62.9 | AF24: 7.08 | AG24: 2.52 | AI24: 67.62 | AJ24: 7.12 | AK24: 2 | AM24: 65.1 | AN24: 7.11 | AO24: 2.77 | AQ24: 64.31 | AR24: 7.09 | AS24: 2.11 | AU24: 67.55 | AV24: 7.12 | AW24: 1.86 | AY24: 67.45 | AZ24: 7.13 | BA24: 2.73 | BC24: 66.69 | BD24: 7.11 | BE24: 2.26 | BG24: 65.24 | BH24: 7.12 | BM24: 2.94 | BO24: 65.69 | BP24: 7.1 | BQ24: 2.67 | BS24: 62.38 | BT24: 7.06 | BU24: 2.11 | BW24: 64.62 | BX24: 7.1 | CC24: 2.38 | CE24: 63.83 | CF24: 7.11 | CO24: 2.06 | CQ24: 68.48 | CR24: 7.13 | CS24: 2.04 | CU24: 63.86 | CV24: 7.1 | CW24: 1.93 | CY24: 65.93 | CZ24: 7.12 | DA24: 2.19 | DC24: 63.93 | DD24: 7.09 | DI24: 2.14 | DK24: 67.55 | DL24: 7.12 | DQ24: 2.72 | DS24: 65.69 | DT24: 7.1 | DU24: 2.91 | DW24: 62.72 | DX24: 7.08 | DY24: 1.67 | EA24: 68.34 | EB24: 7.12 | EC24: 1.56 | EE24: 67.72 | EF24: 7.12 | EO24: 2.54 | EQ24: 66.69 | ER24: 7.11
A25: 3.11 | C25: 66.39 | D25: 8.38 | E25: 2.82 | G25: 67.61 | H25: 8.37 | I25: 3.02 | K25: 67.55 | L25: 8.38 | Q25: 2.37 | S25: 69.1 | T25: 8.38 | U25: 0.95 | V25: 0.09 | W25: 69.39 | X25: 8.38 | AC25: 3.39 | AE25: 66.84 | AF25: 8.37 | AG25: 2.9 | AI25: 70.71 | AJ25: 8.38 | AK25: 1.5 | AM25: 68.87 | AN25: 8.38 | AO25: 3.23 | AQ25: 67.94 | AR25: 8.38 | AS25: 2.7 | AU25: 71.03 | AV25: 8.38 | AW25: 2.29 | AY25: 69.81 | AZ25: 8.39 | BA25: 3.46 | BC25: 70.1 | BD25: 8.38 | BE25: 3.09 | BG25: 68.77 | BH25: 8.38 | BM25: 4.27 | BO25: 69.26 | BP25: 8.38 | BQ25: 3.31 | BS25: 66.65 | BT25: 8.37 | BU25: 2.02 | BW25: 68.23 | BX25: 8.38 | CC25: 3.33 | CE25: 67.55 | CF25: 8.38 | CO25: 2.08 | CQ25: 71.65 | CR25: 8.38 | CS25: 1.9 | CU25: 67.81 | CV25: 8.38 | CW25: 0.96 | CY25: 69.39 | CZ25: 8.38 | DA25: 2.89 | DC25: 67.84 | DD25: 8.38 | DI25: 2.94 | DK25: 70.77 | DL25: 8.38 | DQ25: 3.57 | DS25: 69.26 | DT25: 8.38 | DU25: 3.05 | DW25: 67 | DX25: 8.37 | DY25: 2.36 | EA25: 70.45 | EB25: 8.38 | EC25: 1.99 | EE25: 70.65 | EF25: 8.38 | EO25: 3.38 | EQ25: 70.1 | ER25: 8.38
A26: 2.33 | C26: 70.4 | D26: 8.66 | E26: 2.52 | G26: 72.2 | H26: 8.67 | I26: 2.85 | K26: 70.6 | L26: 8.65 | Q26: 2.39 | S26: 73.2 | T26: 8.66 | U26: 2.26 | V26: 0.98 | W26: 73.17 | X26: 8.64 | AC26: 2.16 | AE26: 70.77 | AF26: 8.67 | AG26: 4.12 | AI26: 74.27 | AJ26: 8.64 | AK26: 1.9 | AM26: 73.13 | AN26: 8.65 | AO26: 3.08 | AQ26: 72 | AR26: 8.66 | AS26: 3.7 | AU26: 74.3 | AV26: 8.64 | AW26: 3.18 | AY26: 72.5 | AZ26: 8.63 | BA26: 3.45 | BC26: 73.63 | BD26: 8.65 | BE26: 2.23 | BG26: 71.87 | BH26: 8.64 | BM26: 3.07 | BO26: 72.97 | BP26: 8.66 | BQ26: 2.49 | BS26: 71.2 | BT26: 8.68 | BU26: 2.54 | BW26: 72.27 | BX26: 8.66 | CC26: 2.99 | CE26: 70.6 | CF26: 8.65 | CO26: 3.13 | CQ26: 75.13 | CR26: 8.63 | CS26: 2.38 | CU26: 71.87 | CV26: 8.66 | CW26: 2.05 | CY26: 73 | CZ26: 8.64 | DA26: 2.78 | DC26: 72.13 | DD26: 8.66 | DI26: 3.6 | DK26: 74.3 | DL26: 8.64 | DQ26: 2.76 | DS26: 72.97 | DT26: 8.66 | DU26: 2.2 | DW26: 71.6 | DX26: 8.67 | DY26: 2.33 | EA26: 73.73 | EB26: 8.64 | EC26: 2.73 | EE26: 73.53 | EF26: 8.64 | EO26: 3.52 | EQ26: 73.63 | ER26: 8.65
A27: 4.27 | C27: 75.65 | D27: 9.42 | E27: 4.12 | G27: 77.06 | H27: 9.44 | I27: 4.85 | K27: 75.29 | L27: 9.4 | Q27: 4.27 | S27: 77.29 | T27: 9.4 | U27: 4.41 | V27: 2.83 | W27: 76.94 | X27: 9.37 | AC27: 4.67 | AE27: 75.48 | AF27: 9.44 | AG27: 6.28 | AI27: 77.94 | AJ27: 9.37 | AK27: 4.1 | AM27: 77.97 | AN27: 9.4 | AO27: 4.29 | AQ27: 76.42 | AR27: 9.43 | AS27: 6.37 | AU27: 77.97 | AV27: 9.37 | AW27: 6.73 | AY27: 76.52 | AZ27: 9.35 | BA27: 5.26 | BC27: 77.81 | BD27: 9.4 | BE27: 4.23 | BG27: 76.74 | BH27: 9.38 | BM27: 5.55 | BO27: 76.97 | BP27: 9.41 | BQ27: 3.9 | BS27: 76.19 | BT27: 9.47 | BU27: 4.57 | BW27: 77.1 | BX27: 9.4 | CC27: 5.52 | CE27: 75.29 | CF27: 9.4 | CO27: 6.35 | CQ27: 78.74 | CR27: 9.36 | CS27: 4.33 | CU27: 76.48 | CV27: 9.41 | CW27: 4.42 | CY27: 77.26 | CZ27: 9.37 | DA27: 4.29 | DC27: 76.81 | DD27: 9.42 | DI27: 5.98 | DK27: 77.68 | DL27: 9.38 | DQ27: 4.95 | DS27: 76.97 | DT27: 9.42 | DU27: 4.39 | DW27: 76.77 | DX27: 9.44 | DY27: 4.27 | EA27: 78.16 | EB27: 9.36 | EC27: 5.44 | EE27: 77.48 | EF27: 9.36 | EO27: 5.65 | EQ27: 77.81 | ER27: 9.39
A28: 7.8 | C28: 79.37 | D28: 9.35 | E28: 8.27 | G28: 80.63 | H28: 9.37 | I28: 8.65 | K28: 78.93 | L28: 9.32 | Q28: 7.2 | S28: 80.43 | T28: 9.33 | U28: 9.75 | V28: 7.07 | W28: 80.3 | X28: 9.29 | AC28: 7.52 | AE28: 79.23 | AF28: 9.37 | AG28: 9.02 | AI28: 80.9 | AJ28: 9.29 | AK28: 9.4 | AM28: 81.23 | AN28: 9.32 | AO28: 5.98 | AQ28: 79.77 | AR28: 9.36 | AS28: 9.31 | AU28: 80.8 | AV28: 9.29 | AW28: 9.39 | AY28: 80.03 | AZ28: 9.26 | BA28: 8.29 | BC28: 80.77 | BD28: 9.32 | BE28: 8.61 | BG28: 80.1 | BH28: 9.3 | BM28: 7.59 | BO28: 80.17 | BP28: 9.34 | BQ28: 6.97 | BS28: 80.3 | BT28: 9.4 | BU28: 9.38 | BW28: 80.33 | BX28: 9.33 | CC28: 8.95 | CE28: 78.93 | CF28: 9.32 | CO28: 7.84 | CQ28: 81.23 | CR28: 9.28 | CS28: 7.57 | CU28: 80 | CV28: 9.34 | CW28: 8.17 | CY28: 80.57 | CZ28: 9.29 | DA28: 7.35 | DC28: 80.17 | DD28: 9.35 | DI28: 7.75 | DK28: 80.53 | DL28: 9.3 | DQ28: 6.58 | DS28: 80.17 | DT28: 9.35 | DU28: 7.9 | DW28: 80.23 | DX28: 9.37 | DY28: 8.38 | EA28: 82.07 | EB28: 9.28 | EC28: 9.35 | EE28: 80.93 | EF28: 9.28 | EO28: 7.97 | EQ28: 80.77 | ER28: 9.32
A29: 6.94 | C29: 80.42 | D29: 9.54 | E29: 8.03 | G29: 81.9 | H29: 9.56 | I29: 7.81 | K29: 80.32 | L29: 9.52 | Q29: 6.28 | S29: 81.84 | T29: 9.52 | U29: 8.21 | V29: 6.93 | W29: 81.77 | X29: 9.49 | AC29: 7.46 | AE29: 81 | AF29: 9.56 | AG29: 6.39 | AI29: 82 | AJ29: 9.49 | AK29: 8.7 | AM29: 82.53 | AN29: 9.52 | AO29: 5.66 | AQ29: 81 | AR29: 9.55 | AS29: 7.07 | AU29: 82 | AV29: 9.49 | AW29: 7.95 | AY29: 81.45 | AZ29: 9.47 | BA29: 5.75 | BC29: 82.29 | BD29: 9.52 | BE29: 7.48 | BG29: 81.26 | BH29: 9.5 | BM29: 5.41 | BO29: 81.68 | BP29: 9.53 | BQ29: 7.46 | BS29: 81.65 | BT29: 9.59 | BU29: 8.19 | BW29: 81.16 | BX29: 9.52 | CC29: 7.94 | CE29: 80.32 | CF29: 9.52 | CO29: 5.44 | CQ29: 82.68 | CR29: 9.48 | CS29: 7.04 | CU29: 81.32 | CV29: 9.53 | CW29: 8.36 | CY29: 81.87 | CZ29: 9.49 | DA29: 6.55 | DC29: 81.61 | DD29: 9.54 | DI29: 6.41 | DK29: 82.03 | DL29: 9.5 | DQ29: 6.53 | DS29: 81.68 | DT29: 9.54 | DU29: 7.7 | DW29: 81.16 | DX29: 9.56 | DY29: 5.72 | EA29: 83.9 | EB29: 9.48 | EC29: 8.06 | EE29: 82.77 | EF29: 9.48 | EO29: 6.32 | EQ29: 82.29 | ER29: 9.51
A30: 7.15 | C30: 80.94 | D30: 9.15 | E30: 7.5 | G30: 82 | H30: 9.16 | I30: 7.95 | K30: 80.68 | L30: 9.13 | Q30: 6.38 | S30: 82 | T30: 9.13 | U30: 7.79 | V30: 6.93 | W30: 82 | X30: 9.11 | AC30: 6.8 | AE30: 81 | AF30: 9.16 | AG30: 6.9 | AI30: 82.26 | AJ30: 9.11 | AK30: 8.6 | AM30: 82.9 | AN30: 9.13 | AO30: 5.82 | AQ30: 81.35 | AR30: 9.15 | AS30: 8.25 | AU30: 82.16 | AV30: 9.11 | AW30: 8.27 | AY30: 82 | AZ30: 9.09 | BA30: 6.57 | BC30: 82.55 | BD30: 9.13 | BE30: 7.35 | BG30: 81.74 | BH30: 9.12 | BM30: 6.78 | BO30: 82.06 | BP30: 9.14 | BQ30: 6.76 | BS30: 81.84 | BT30: 9.18 | BU30: 7.85 | BW30: 81.77 | BX30: 9.13 | CC30: 7.32 | CE30: 80.68 | CF30: 9.13 | CO30: 6.29 | CQ30: 82.84 | CR30: 9.13 | CS30: 6.73 | CU30: 81.71 | CV30: 9.14 | CW30: 8.18 | CY30: 82 | CZ30: 9.11 | DA30: 6.65 | DC30: 81.71 | DD30: 9.15 | DI30: 6.73 | DK30: 82.42 | DL30: 9.12 | DQ30: 5.71 | DS30: 82.06 | DT30: 9.14 | DU30: 6.58 | DW30: 81.48 | DX30: 9.16 | DY30: 6.71 | EA30: 84 | EB30: 9.13 | EC30: 7.26 | EE30: 83.06 | EF30: 9.13 | EO30: 6.73 | EQ30: 82.55 | ER30: 9.12
A31: 6.8 | C31: 79.6 | D31: 8.32 | E31: 7.15 | G31: 80.47 | H31: 8.32 | I31: 7.98 | K31: 79.43 | L31: 8.32 | Q31: 5.92 | S31: 81.17 | T31: 8.32 | U31: 9.07 | V31: 7.85 | W31: 81.5 | X31: 8.32 | AC31: 6.48 | AE31: 79.63 | AF31: 8.32 | AG31: 8.21 | AI31: 81.37 | AJ31: 8.32 | AK31: 8.4 | AM31: 81.6 | AN31: 8.32 | AO31: 8.03 | AQ31: 80.3 | AR31: 8.32 | AS31: 8.98 | AU31: 81.3 | AV31: 8.32 | AW31: 10.27 | AY31: 81.07 | AZ31: 8.31 | BA31: 7.78 | BC31: 81.3 | BD31: 8.32 | BE31: 6.71 | BG31: 80.67 | BH31: 9.32 | BM31: 8.44 | BO31: 81.2 | BP31: 8.32 | BQ31: 6.49 | BS31: 80.07 | BT31: 8.32 | BU31: 6.82 | BW31: 80.43 | BX31: 8.32 | CC31: 9.71 | CE31: 79.43 | CF31: 8.32 | CO31: 8.3 | CQ31: 81.67 | CR31: 8.32 | CS31: 6.97 | CU31: 80.5 | CV31: 8.32 | CW31: 8.69 | CY31: 81.53 | CZ31: 8.32 | DA31: 6.37 | DC31: 80.47 | DD31: 8.32 | DI31: 7.99 | DK31: 81.1 | DL31: 8.32 | DQ31: 8.05 | DS31: 81.2 | DT31: 8.32 | DU31: 6.3 | DW31: 79.97 | DX31: 8.32 | DY31: 5.48 | EA31: 83.37 | EB31: 8.32 | EC31: 8.2 | EE31: 82.23 | EF31: 8.32 | EO31: 8.81 | EQ31: 81.3 | ER31: 8.32
A32: 3.24 | C32: 74.37 | D32: 8.04 | E32: 3.59 | G32: 74.97 | H32: 8.03 | I32: 4.34 | K32: 74.94 | L32: 8.05 | Q32: 3.46 | S32: 76.58 | T32: 8.04 | U32: 4.12 | V32: 3.13 | W32: 77.29 | X32: 8.06 | AC32: 3.92 | AE32: 74.61 | AF32: 8.03 | AG32: 8.4 | AI32: 77.77 | AJ32: 8.06 | AK32: 3.5 | AM32: 76.58 | AN32: 8.05 | AO32: 6.72 | AQ32: 75.97 | AR32: 8.03 | AS32: 7.39 | AU32: 77.39 | AV32: 8.06 | AW32: 7.18 | AY32: 77.45 | AZ32: 8.07 | BA32: 7.73 | BC32: 77.45 | BD32: 8.05 | BE32: 2.9 | BG32: 76 | BH32: 8.06 | BM32: 8.42 | BO32: 76.9 | BP32: 8.04 | BQ32: 3.27 | BS32: 74.77 | BT32: 8.01 | BU32: 3.8 | BW32: 75.42 | BX32: 8.04 | CC32: 6.44 | CE32: 74.94 | CF32: 8.05 | CO32: 8.38 | CQ32: 78.1 | CR32: 8.07 | CS32: 3.47 | CU32: 75.61 | CV32: 8.04 | CW32: 4.09 | CY32: 77.03 | CZ32: 8.06 | DA32: 4.1 | DC32: 75.35 | DD32: 8.04 | DI32: 7.71 | DK32: 77.39 | DL32: 8.06 | DQ32: 6.69 | DS32: 76.9 | DT32: 8.04 | DU32: 3.3 | DW32: 74.1 | DX32: 8.03 | DY32: 2.47 | EA32: 79.23 | EB32: 8.06 | EC32: 4.72 | EE32: 78.55 | EF32: 8.06 | EO32: 6.86 | EQ32: 77.45 | ER32: 8.05
A33: 1.63 | C33: 68.4 | D33: 7.31 | E33: 1.71 | G33: 68.17 | H33: 7.3 | I33: 2.22 | K33: 68.87 | L33: 7.33 | Q33: 1.93 | S33: 70.57 | T33: 7.33 | U33: 1.46 | V33: 1.18 | W33: 71.23 | X33: 7.36 | AC33: 1.79 | AE33: 68.57 | AF33: 7.29 | AG33: 3.96 | AI33: 72.63 | AJ33: 7.36 | AK33: 1.5 | AM33: 69.83 | AN33: 7.33 | AO33: 2.95 | AQ33: 69.8 | AR33: 7.3 | AS33: 3.52 | AU33: 72.2 | AV33: 7.36 | AW33: 2.15 | AY33: 71.93 | AZ33: 7.38 | BA33: 3.81 | BC33: 71.87 | BD33: 7.33 | BE33: 1.95 | BG33: 67.2 | BH33: 7.35 | BM33: 3.61 | BO33: 71.1 | BP33: 7.32 | BQ33: 1.96 | BS33: 67.93 | BT33: 7.27 | BU33: 1.73 | BW33: 68.97 | BX33: 7.33 | CC33: 3.18 | CE33: 68.87 | CF33: 7.33 | CO33: 2.8 | CQ33: 73.13 | CR33: 7.37 | CS33: 1.73 | CU33: 69 | CV33: 7.32 | CW33: 1.56 | CY33: 71.2 | CZ33: 7.36 | DA33: 1.91 | DC33: 69.13 | DD33: 7.31 | DI33: 3.6 | DK33: 72.4 | DL33: 7.35 | DQ33: 2.83 | DS33: 71.1 | DT33: 7.32 | DU33: 2.14 | DW33: 67.17 | DX33: 7.29 | DY33: 1.93 | EA33: 74 | EB33: 7.37 | EC33: 2.02 | EE33: 73 | EF33: 7.37 | EO33: 3.9 | EQ33: 71.87 | ER33: 7.34
A34: 1.64 | C34: 62.65 | D34: 7.31 | E34: 1.76 | G34: 63.29 | H34: 7.29 | I34: 1.72 | K34: 64.32 | L34: 7.34 | Q34: 1.67 | S34: 65.26 | T34: 7.33 | U34: 1.45 | V34: 1.09 | W34: 66.74 | X34: 7.37 | AC34: 1.78 | AE34: 63 | AF34: 7.29 | AG34: 2.52 | AI34: 68.42 | AJ34: 7.37 | AK34: 1.5 | AM34: 65.29 | AN34: 7.34 | AO34: 2.07 | AQ34: 64.94 | AR34: 7.3 | AS34: 1.85 | AU34: 67.77 | AV34: 7.37 | AW34: 1.35 | AY34: 67.29 | AZ34: 7.4 | BA34: 2.61 | BC34: 67.35 | BD34: 7.34 | BE34: 1.51 | BG34: 65.45 | BH34: 7.36 | BM34: 2.47 | BO34: 66.61 | BP34: 7.32 | BQ34: 2.08 | BS34: 62.48 | BT34: 7.26 | BU34: 1.72 | BW34: 64.65 | BX34: 7.33 | CC34: 2.21 | CE34: 64.32 | CF34: 7.34 | CO34: 2.05 | CQ34: 68.87 | CR34: 7.38 | CS34: 1.62 | CU34: 64.26 | CV34: 7.32 | CW34: 1.32 | CY34: 66.55 | CZ34: 7.37 | DA34: 1.58 | DC34: 63.65 | DD34: 7.31 | DI34: 2.3 | DK34: 68.03 | DL34: 7.36 | DQ34: 2.56 | DS34: 66.61 | DT34: 7.31 | DU34: 1.84 | DW34: 62.16 | DX34: 7.29 | DY34: 1.38 | EA34: 68.65 | EB34: 7.38 | EC34: 1.19 | EE34: 68.23 | EF34: 7.38 | EO34: 2.52 | EQ34: 67.35 | ER34: 7.34
C35: 29 | G35: 67 | K35: 68 | S35: 50 | W35: 67 | AE35: 50 | AI35: 50 | AM35: 50 | AQ35: 67 | AU35: 50 | AY35: 72 | BC35: 97 | BG35: 28 | BO35: 50 | BS35: 50 | BW35: 57 | CE35: 68 | CQ35: 50 | CU35: 67 | CY35: 50 | DC35: 50 | DK35: 50 | DS35: 50 | DW35: 50 | EA35: 20 | EE35: 50 | EQ35: 50
A36: 68 | C36: 0.83 | E36: 93 | G36: 0.84 | I36: 72 | K36: 0.84 | Q36: 46 | S36: 0.83 | U36: 57 | W36: 0.83 | AC36: 50 | AE36: 0.85 | AG36: 83 | AI36: 0.82 | AK36: 57 | AM36: 0.84 | AO36: 96 | AQ36: 0.83 | AS36: 56 | AU36: 0.81 | AW36: 72 | AY36: 0.84 | BA36: 97 | BC36: 0.81 | BE36: 37 | BG36: 0.82 | BM36: 97 | BO36: 0.81 | BQ36: 94 | BS36: 0.83 | BU36: 57 | BW36: 0.86 | CC36: 47 | CE36: 0.83 | CO36: 79 | CQ36: 0.78 | CS36: 58 | CU36: 0.83 | CW36: 55 | CY36: 0.83 | DA36: 73 | DC36: 0.82 | DI36: 55 | DK36: 0.82 | DQ36: 60 | DS36: 0.81 | DU36: 30 | DW36: 0.85 | DY36: 23 | EA36: 0.83 | EC36: 56 | EE36: 0.83 | EO36: 58 | EQ36: 0.8
A40: Mean Rainfall | C40: = | D40: Rain
A41: 2-in-10 Year Rainfall | C41: = | D41: 2-in-10
A42: 1-in-10 Year Rainfall | C42: = | D42: 1-in-10
A43: Mean Temperature (F) | C43: = | D43: Temp
A44: Annual Daylight (%) | C44: = | D44: Sun

Sheet crop k's (hidden)
A1: Perennials
A2: a | B2: 5 | C2: 10 | D2: 11 | E2: 12 | F2: 13 | G2: 14 | H2: 15 | I2: 18 | J2: 20 | K2: 21 | L2: 22 | M2: 23 | N2: 24 | O2: 25
A3: b | B3: Nursery | C3: Sugarcane | D3: Alfalfa | E3: Avocado | F3: Citrus | G3: Grapes | H3: Turf Grass | I3: Blueberries | J3: Pasture | K3: Papaya | L3: Carambola | M3: Tropical Fruit | N3: Mangoes | O3: Palm Trees
A4: a | B4: 0.49 | C4: 0.39 | D4: 0.63 | E4: 0.27 | F4: 0.63 | G4: 0.2 | H4: 0.49 | I4: 0.63 | J4: 0.46 | K4: 0.63 | L4: 0.63 | M4: 0.63 | N4: 0.27 | O4: 0.49
A5: b | B5: 0.57 | C5: 0.3 | D5: 0.73 | E5: 0.42 | F5: 0.66 | G5: 0.24 | H5: 0.57 | I5: 0.66 | J5: 0.6 | K5: 0.66 | L5: 0.66 | M5: 0.66 | N5: 0.42 | O5: 0.57
A6: c | B6: 0.73 | C6: 0.53 | D6: 0.86 | E6: 0.58 | F6: 0.68 | G6: 0.38 | H6: 0.73 | I6: 0.68 | J6: 0.63 | K6: 0.68 | L6: 0.68 | M6: 0.68 | N6: 0.58 | O6: 0.73
A7: d | B7: 0.85 | C7: 0.61 | D7: 0.99 | E7: 0.7 | F7: 0.7 | G7: 0.6 | H7: 0.85 | I7: 0.7 | J7: 0.68 | K7: 0.7 | L7: 0.7 | M7: 0.7 | N7: 0.7 | O7: 0.85
A8: e | B8: 0.9 | C8: 0.7 | D8: 1.08 | E8: 0.78 | F8: 0.71 | G8: 0.71 | H8: 0.9 | I8: 0.71 | J8: 0.7 | K8: 0.71 | L8: 0.71 | M8: 0.71 | N8: 0.78 | O8: 0.9
A9: f | B9: 0.92 | C9: 0.79 | D9: 1.13 | E9: 0.81 | F9: 0.71 | G9: 0.8 | H9: 0.92 | I9: 0.71 | J9: 0.53 | K9: 0.71 | L9: 0.71 | M9: 0.71 | N9: 0.81 | O9: 0.92
A10: g | B10: 0.92 | C10: 0.79 | D10: 1.11 | E10: 0.77 | F10: 0.71 | G10: 0.8 | H10: 0.92 | I10: 0.71 | J10: 0.56 | K10: 0.71 | L10: 0.71 | M10: 0.71 | N10: 0.77 | O10: 0.92
A11: h | B11: 0.91 | C11: 0.84 | D11: 1.06 | E11: 0.71 | F11: 0.71 | G11: 0.76 | H11: 0.91 | I11: 0.71 | J11: 0.58 | K11: 0.71 | L11: 0.71 | M11: 0.71 | N11: 0.71 | O11: 0.91
A12: I | B12: 0.87 | C12: 0.73 | D12: 0.99 | E12: 0.63 | F12: 0.7 | G12: 0.61 | H12: 0.87 | I12: 0.7 | J12: 0.52 | K12: 0.7 | L12: 0.7 | M12: 0.7 | N12: 0.63 | O12: 0.87
A13: j | B13: 0.79 | C13: 0.88 | D13: 0.91 | E13: 0.54 | F13: 0.68 | G13: 0.5 | H13: 0.79 | I13: 0.68 | J13: 0.53 | K13: 0.68 | L13: 0.68 | M13: 0.68 | N13: 0.54 | O13: 0.79
A14: k | B14: 0.67 | C14: 0.72 | D14: 0.78 | E14: 0.43 | F14: 0.67 | G14: 0.35 | H14: 0.67 | I14: 0.67 | J14: 0.49 | K14: 0.67 | L14: 0.67 | M14: 0.67 | N14: 0.43 | O14: 0.67
A15: l | B15: 0.55 | C15: 0.69 | D15: 0.64 | E15: 0.3 | F15: 0.64 | G15: 0.23 | H15: 0.55 | I15: 0.64 | J15: 0.44 | K15: 0.64 | L15: 0.64 | M15: 0.64 | N15: 0.3 | O15: 0.55
B16: Y | C16: Y | D16: Y | E16: Y | F16: Y | G16: Y | H16: Y | I16: Y | J16: Y | K16: Y | L16: Y | M16: Y | N16: Y | O16: Y
A17: Annuals
A18: a | B18: 51 | C18: 52 | D18: 53 | E18: 54 | F18: 55 | G18: 56 | H18: 57 | I18: 58 | J18: 59 | K18: 60 | L18: 61 | M18: 62 | N18: 64 | O18: 65 | P18: 66 | Q18: 69
A19: b | B19: Dry Beans | C19: Green Bean | D19: Grain Corn | E19: Silage Corn | F19: Sweet Corn | G19: Melons | H19: Peas | I19: Potato | J19: Soybeans | K19: Tomato | L19: Small Vegetables | M19: Winter Wheat | N19: Peppers | O19: Hay | P19: Strawberries | Q19: Sorghum
A20: a | B20: 0.54 | C20: 0.53 | D20: 0.46 | E20: 0.45 | F20: 0.47 | G20: 0.45 | H20: 0.54 | I20: 0.36 | J20: 0.22 | K20: 0.45 | L20: 0.33 | M20: 0.28 | N20: 0.5 | O20: 0.45 | P20: 0.5 | Q20: 0.3 | S20: 62 | T20: rice
A21: b | B21: 0.59 | C21: 0.55 | D21: 0.5 | E21: 0.47 | F21: 0.5 | G21: 0.48 | H21: 0.59 | I21: 0.41 | J21: 0.26 | K21: 0.46 | L21: 0.39 | M21: 0.3 | N21: 0.51 | O21: 0.48 | P21: 0.61 | Q21: 0.32 | T21: no winter wheat
A22: c | B22: 0.65 | C22: 0.58 | D22: 0.53 | E22: 0.5 | F22: 0.54 | G22: 0.52 | H22: 0.65 | I22: 0.45 | J22: 0.3 | K22: 0.47 | L22: 0.47 | M22: 0.34 | N22: 0.52 | O22: 0.52 | P22: 0.73 | Q22: 0.35
A23: d | B23: 0.72 | C23: 0.61 | D23: 0.58 | E23: 0.54 | F23: 0.58 | G23: 0.56 | H23: 0.72 | I23: 0.51 | J23: 0.33 | K23: 0.48 | L23: 0.56 | M23: 0.39 | N23: 0.54 | O23: 0.56 | P23: 0.82 | Q23: 0.47
A24: e | B24: 0.81 | C24: 0.64 | D24: 0.64 | E24: 0.59 | F24: 0.64 | G24: 0.61 | H24: 0.8 | I24: 0.59 | J24: 0.37 | K24: 0.51 | L24: 0.64 | M24: 0.44 | N24: 0.55 | O24: 0.61 | P24: 0.92 | Q24: 0.72
A25: f | B25: 0.9 | C25: 0.68 | D25: 0.71 | E25: 0.64 | F25: 0.72 | G25: 0.66 | H25: 0.88 | I25: 0.72 | J25: 0.41 | K25: 0.56 | L25: 0.69 | M25: 0.52 | N25: 0.6 | O25: 0.66 | P25: 0.98 | Q25: 0.83
A26: g | B26: 0.96 | C26: 0.73 | D26: 0.82 | E26: 0.71 | F26: 0.82 | G26: 0.71 | H26: 0.97 | I26: 0.85 | J26: 0.48 | K26: 0.65 | L26: 0.74 | M26: 0.58 | N26: 0.65 | O26: 0.71 | P26: 1.04 | Q26: 0.93
A27: h | B27: 1.03 | C27: 0.79 | D27: 0.92 | E27: 0.8 | F27: 0.91 | G27: 0.75 | H27: 1.03 | I27: 0.97 | J27: 0.55 | K27: 0.76 | L27: 0.78 | M27: 0.65 | N27: 0.74 | O27: 0.75 | P27: 1.06 | Q27: 1.02
A28: I | B28: 1.08 | C28: 0.84 | D28: 1 | E28: 0.9 | F28: 0.99 | G28: 0.8 | H28: 1.07 | I28: 1.08 | J28: 0.63 | K28: 0.87 | L28: 0.8 | M28: 0.72 | N28: 0.83 | O28: 0.8 | P28: 1.09 | Q28: 1.08
A29: j | B29: 1.11 | C29: 0.89 | D29: 1.05 | E29: 0.98 | F29: 1.05 | G29: 0.82 | H29: 1.11 | I29: 1.17 | J29: 0.72 | K29: 0.95 | L29: 0.82 | M29: 0.78 | N29: 0.9 | O29: 0.82 | P29: 1.11 | Q29: 1.08
A30: k | B30: 1.12 | C30: 0.94 | D30: 1.07 | E30: 1.03 | F30: 1.07 | G30: 0.82 | H30: 1.12 | I30: 1.25 | J30: 0.84 | K30: 1.01 | L30: 0.83 | M30: 0.85 | N30: 0.95 | O30: 0.82 | P30: 1.12 | Q30: 1.04
A31: l | B31: 1.11 | C31: 0.98 | D31: 1.08 | E31: 1.06 | F31: 1.08 | G31: 0.8 | H31: 1.12 | I31: 1.31 | J31: 0.92 | K31: 1.03 | L31: 0.83 | M31: 0.91 | N31: 0.93 | O31: 0.8 | P31: 1.13 | Q31: 1
A32: m | B32: 1.08 | C32: 1.02 | D32: 1.07 | E32: 1.07 | F32: 1.08 | G32: 0.79 | H32: 1.11 | I32: 1.35 | J32: 0.98 | K32: 1.02 | L32: 0.82 | M32: 0.97 | N32: 0.91 | O32: 0.79 | P32: 1.15 | Q32: 0.93
A33: n | B33: 1.03 | C33: 1.05 | D33: 1.06 | E33: 1.08 | F33: 1.07 | G33: 0.77 | H33: 1.1 | I33: 1.37 | J33: 1.02 | K33: 0.98 | L33: 0.8 | M33: 1.02 | N33: 0.9 | O33: 0.77 | P33: 1.14 | Q33: 0.88
A34: o | B34: 0.96 | C34: 1.08 | D34: 1.03 | E34: 1.07 | F34: 1.07 | G34: 0.76 | H34: 1.08 | I34: 1.37 | J34: 1.02 | K34: 0.95 | L34: 0.76 | M34: 1.08 | N34: 0.88 | O34: 0.76 | P34: 1.12 | Q34: 0.82
A35: p | B35: 0.9 | C35: 1.1 | D35: 1 | E35: 1.06 | F35: 1.06 | G35: 0.75 | H35: 1.06 | I35: 1.36 | J35: 0.93 | K35: 0.9 | L35: 0.73 | M35: 1.13 | N35: 0.86 | O35: 0.75 | P35: 1.11 | Q35: 0.76
A36: q | B36: 0.83 | C36: 1.11 | D36: 0.97 | E36: 1.04 | F36: 1.05 | G36: 0.73 | H36: 1.04 | I36: 1.34 | J36: 0.83 | K36: 0.85 | L36: 0.66 | M36: 1.18 | N36: 0.85 | O36: 0.73 | P36: 1.08 | Q36: 0.7
A37: r | B37: 0.75 | C37: 1.12 | D37: 0.93 | E37: 1.02 | F37: 1.03 | G37: 0.71 | H37: 1.01 | I37: 1.3 | J37: 0.77 | K37: 0.8 | L37: 0.58 | M37: 1.22 | N37: 0.83 | O37: 0.71 | P37: 1.02 | Q37: 0.64
A38: s | B38: 0.67 | C38: 1.12 | D38: 0.89 | E38: 1 | F38: 1.02 | G38: 0.69 | H38: 0.97 | I38: 1.27 | J38: 0.72 | K38: 0.75 | L38: 0.48 | M38: 1.24 | N38: 0.81 | O38: 0.69 | P38: 0.96 | Q38: 0.6
A39: t | B39: 0.6 | C39: 1.11 | D39: 0.85 | E39: 0.96 | F39: 1 | G39: 0.67 | H39: 0.96 | I39: 1.23 | J39: 0.68 | K39: 0.7 | L39: 0.38 | M39: 1.32 | N39: 0.8 | O39: 0.67 | P39: 0.8 | Q39: 0.55
B40: Y | C40: Y | D40: Y | E40: Y | F40: Y | G40: Y | H40: Y | I40: Y | J40: Y | K40: Y | L40: Y | N40: N | O40: Y | P40: N | Q40: Y | R40: ASR Database active or in-active
A41: Annual Crop being calculated/Growing Season Length
A43: a | B43: =IF(InputControl!$B$57>=51,VLOOKUP("a",$A$18:U$19,$D$104,FALSE),"Not an Annual Crop") -> Not an Annual Crop
A44: b | B44: =IF(InputControl!$B$57>=51,VLOOKUP("b",$A$18:U$19,$D$104,FALSE),"No Crop ---") -> No Crop --- | D44: 1 month season | E44: 2 month season | F44: 3 month season | G44: 4 month season | H44: 5 month season | I44: 6 month season | J44: 7 month season | K44: 8 month season | L44: 9 month season | M44: 10 month season | N44: 11 month season | O44: 12 month season
A45: a | B45: =IF(InputControl!$B$57>=51,VLOOKUP("a",$A$20:$U$39,$D$104,FALSE),0) -> 0 | C45: a | D45: =(SUM($B$45:$B$64))/(20/1) -> 0 | E45: =(SUM($B$45:$B$54))/(20/2) -> 0 | F45: =(SUM($B$45:$B$50)+($B$51*2/3))/(20/3) -> 0 | G45: =(SUM($B$45:$B$49))/(20/4) -> 0 | H45: =(SUM($B$45:$B$48))/(20/5) -> 0 | I45: =(SUM($B$45:$B$47)+($B$48*1/3))/(20/6) -> 0 | J45: =(SUM($B$45:$B$46)+($B$47*6/7))/(20/7) -> 0 | K45: =(SUM($B$45:$B$46)+($B$47*4/8))/(20/8) -> 0 | L45: =(SUM($B$45:$B$46)+($B$47*2/9))/(20/9) -> 0 | M45: =(SUM($B$45:$B$46))/(20/10) -> 0 | N45: =(($B$45)+($B$46*9/11))/(20/11) -> 0 | O45: =(($B$45)+($B$46*8/12))/(20/12) -> 0 | P45: a | Q45: =IF(InputControl!$B$57>=51,VLOOKUP("a",$C$45:$O$56,InputControl!$C$113,FALSE),0) -> 0
A46: b | B46: =IF(InputControl!$B$57>=51,VLOOKUP("b",$A$20:$U$39,$D$104,FALSE),0) -> 0 | C46: b | D46: 0 | E46: =(SUM($B$55:$B$64))/(20/2) -> 0 | F46: =(($B$51*1/3)+SUM($B$52:$B$57)+($B$58*1/3))/(20/3) -> 0 | G46: =(SUM($B$50:$B$54))/(20/4) -> 0 | H46: =(SUM($B$49:$B$52))/(20/5) -> 0 | I46: =(($B$48*2/3)+SUM($B$49:$B$50)+($B$51*2/3))/(20/6) -> 0 | J46: =(($B$47*1/7)+SUM($B$48:$B$49)+($B$50*5/7))/(20/7) -> 0 | K46: =(($B$47*4/8)+SUM($B$48:$B$49))/(20/8) -> 0 | L46: =(($B$47*7/9)+($B$48)+($B$49*4/9))/(20/9) -> 0 | M46: =(SUM($B$47:$B$48))/(20/10) -> 0 | N46: =(($B$46*2/11)+($B$47)+($B$48*7/11))/(20/11) -> 0 | O46: =(($B$46*4/12)+($B$47)+($B$48*4/12))/(20/12) -> 0 | P46: b | Q46: =IF(InputControl!$B$57>=51,VLOOKUP("b",$C$45:$O$56,InputControl!$C$113,FALSE),0) -> 0
A47: c | B47: =IF(InputControl!$B$57>=51,VLOOKUP("c",$A$20:$U$39,$D$104,FALSE),0) -> 0 | C47: c | D47: 0 | E47: 0 | F47: =(($B$58*2/3)+SUM($B$59:$B$64))/(20/3) -> 0 | G47: =(SUM($B$55:$B$59))/(20/4) -> 0 | H47: =(SUM($B$53:$B$56))/(20/5) -> 0 | I47: =(($B$51*1/3)+SUM($B$52:$B$54))/(20/6) -> 0 | J47: =(($B$50*2/7)+SUM($B$51:$B$52)+($B$53*4/7))/(20/7) -> 0 | K47: =(SUM($B$50:$B$51)+($B$52*4/8))/(20/8) -> 0 | L47: =(($B$49*5/9)+($B$50)+($B$51*6/9))/(20/9) -> 0 | M47: =(SUM($B$49:$B$50))/(20/10) -> 0 | N47: =(($B$48*4/11)+($B$49)+($B$50*5/11))/(20/11) -> 0 | O47: =(($B$48*8/12)+($B$49))/(20/12) -> 0 | P47: c | Q47: =IF(InputControl!$B$57>=51,VLOOKUP("c",$C$45:$O$56,InputControl!$C$113,FALSE),0) -> 0
A48: d | B48: =IF(InputControl!$B$57>=51,VLOOKUP("d",$A$20:$U$39,$D$104,FALSE),0) -> 0 | C48: d | D48: 0 | E48: 0 | F48: 0 | G48: =(SUM($B$60:$B$64))/(20/4) -> 0 | H48: =(SUM($B$57:$B$60))/(20/5) -> 0 | I48: =(SUM($B$55:$B$57)+($B$58*1/3))/(20/6) -> 0 | J48: =(($B$53*3/7)+SUM($B$54:$B$55)+($B$56*3/7))/(20/7) -> 0 | K48: =(($B$52*4/8)+SUM($B$53:$B$54))/(20/8) -> 0 | L48: =(($B$51*3/9)+($B$52)+($B$53*8/9))/(20/9) -> 0 | M48: =(SUM($B$51:$B$52))/(20/10) -> 0 | N48: =(($B$50*6/11)+($B$51)+($B$52*3/11))/(20/11) -> 0 | O48: =(($B$50)+($B$51*8/12))/(20/12) -> 0 | P48: d | Q48: =IF(InputControl!$B$57>=51,VLOOKUP("d",$C$45:$O$56,InputControl!$C$113,FALSE),0) -> 0
A49: e | B49: =IF(InputControl!$B$57>=51,VLOOKUP("e",$A$20:$U$39,$D$104,FALSE),0) -> 0 | C49: e | D49: 0 | E49: 0 | F49: 0 | G49: 0 | H49: =(SUM($B$61:$B$64))/(20/5) -> 0 | I49: =(($B$58*2/3)+SUM($B$59:$B$60)+($B$61*2/3))/(20/6) -> 0 | J49: =(($B$56*4/7)+SUM($B$57:$B$58)+($B$59*2/7))/(20/7) -> 0 | K49: =(SUM($B$55:$B$56)+($B$57*4/8))/(20/8) -> 0 | L49: =(($B$53*1/9)+SUM($B$54:$B$55)+($B$56*1/9))/(20/9) -> 0 | M49: =(SUM($B$53:$B$54))/(20/10) -> 0 | N49: =(($B$52*8/11)+($B$53)+($B$54*1/11))/(20/11) -> 0 | O49: =(($B$51*4/12)+($B$52)+($B$53*4/12))/(20/12) -> 0 | P49: e | Q49: =IF(InputControl!$B$57>=51,VLOOKUP("e",$C$45:$O$56,InputControl!$C$113,FALSE),0) -> 0
A50: f | B50: =IF(InputControl!$B$57>=51,VLOOKUP("f",$A$20:$U$39,$D$104,FALSE),0) -> 0 | C50: f | D50: 0 | E50: 0 | F50: 0 | G50: 0 | H50: 0 | I50: =(($B$61*1/3)+SUM($B$62:$B$64))/(20/6) -> 0 | J50: =(($B$59*5/7)+SUM($B$60:$B$61)+($B$62*1/7))/(20/7) -> 0 | K50: =(($B$57*4/8)+SUM($B$58:$B$59))/(20/8) -> 0 | L50: =(($B$56*8/9)+($B$57)+($B$58*3/9))/(20/9) -> 0 | M50: =(SUM($B$55:$B$56))/(20/10) -> 0 | N50: =(($B$54*10/11)+($B$55*10/11))/(20/11) -> 0 | O50: =(($B$53*8/12)+($B$54))/(20/12) -> 0 | P50: f | Q50: =IF(InputControl!$B$57>=51,VLOOKUP("f",$C$45:$O$56,InputControl!$C$113,FALSE),0) -> 0
A51: g | B51: =IF(InputControl!$B$57>=51,VLOOKUP("g",$A$20:$U$39,$D$104,FALSE),0) -> 0 | C51: g | D51: 0 | E51: 0 | F51: 0 | G51: 0 | H51: 0 | I51: 0 | J51: =(($B$62*6/7)+SUM($B$63:$B$64))/(20/7) -> 0 | K51: =(SUM($B$60:$B$61)+($B$62*4/8))/(20/8) -> 0 | L51: =(($B$58*6/9)+($B$59)+($B$60*5/9))/(20/9) -> 0 | M51: =(SUM($B$57:$B$58))/(20/10) -> 0 | N51: =(($B$55*1/11)+($B$56)+($B$57*8/11))/(20/11) -> 0 | O51: =(($B$55)+($B$56*8/12))/(20/12) -> 0 | P51: g | Q51: =IF(InputControl!$B$57>=51,VLOOKUP("g",$C$45:$O$56,InputControl!$C$113,FALSE),0) -> 0
A52: h | B52: =IF(InputControl!$B$57>=51,VLOOKUP("h",$A$20:$U$39,$D$104,FALSE),0) -> 0 | C52: h | D52: 0 | E52: 0 | F52: 0 | G52: 0 | H52: 0 | I52: 0 | J52: 0 | K52: =(($B$62*4/8)+SUM($B$63:$B$64))/(20/8) -> 0 | L52: =(($B$60*4/9)+($B$61)+($B$62*7/9))/(20/9) -> 0 | M52: =(SUM($B$59:$B$60))/(20/10) -> 0 | N52: =(($B$57*3/11)+($B$58)+($B$59*6/11))/(20/11) -> 0 | O52: =(($B$56*4/12)+($B$57)+($B$58*4/12))/(20/12) -> 0 | P52: h | Q52: =IF(InputControl!$B$57>=51,VLOOKUP("h",$C$45:$O$56,InputControl!$C$113,FALSE),0) -> 0
A53: I | B53: =IF(InputControl!$B$57>=51,VLOOKUP("i",$A$20:$U$39,$D$104,FALSE),0) -> 0 | C53: I | D53: 0 | E53: 0 | F53: 0 | G53: 0 | H53: 0 | I53: 0 | J53: 0 | K53: 0 | L53: =(($B$62*2/9)+SUM($B$63:$B$64))/(20/9) -> 0 | M53: =(SUM($B$61:$B$62))/(20/10) -> 0 | N53: =(($B$59*5/11)+($B$60)+($B$61*4/11))/(20/11) -> 0 | O53: =(($B$58*8/12)+($B$59))/(20/12) -> 0 | P53: I | Q53: =IF(InputControl!$B$57>=51,VLOOKUP("i",$C$45:$O$56,InputControl!$C$113,FALSE),0) -> 0
A54: j | B54: =IF(InputControl!$B$57>=51,VLOOKUP("j",$A$20:$U$39,$D$104,FALSE),0) -> 0 | C54: j | D54: 0 | E54: 0 | F54: 0 | G54: 0 | H54: 0 | I54: 0 | J54: 0 | K54: 0 | L54: 0 | M54: =(SUM($B$63:$B$64))/(20/10) -> 0 | N54: =(($B$61*7/11)+($B$62)+($B$63*2/11))/(20/11) -> 0 | O54: =(($B$60)+($B$61*8/12))/(20/12) -> 0 | P54: j | Q54: =IF(InputControl!$B$57>=51,VLOOKUP("j",$C$45:$O$56,InputControl!$C$113,FALSE),0) -> 0
A55: k | B55: =IF(InputControl!$B$57>=51,VLOOKUP("k",$A$20:$U$39,$D$104,FALSE),0) -> 0 | C55: k | D55: 0 | E55: 0 | F55: 0 | G55: 0 | H55: 0 | I55: 0 | J55: 0 | K55: 0 | L55: 0 | M55: 0 | N55: =(($B$63*9/11)+($B$64))/(20/11) -> 0 | O55: =(($B$61*4/12)+($B$62)+($B$63*4/12))/(20/12) -> 0 | P55: k | Q55: =IF(InputControl!$B$57>=51,VLOOKUP("k",$C$45:$O$56,InputControl!$C$113,FALSE),0) -> 0
A56: l | B56: =IF(InputControl!$B$57>=51,VLOOKUP("l",$A$20:$U$39,$D$104,FALSE),0) -> 0 | C56: l | D56: 0 | E56: 0 | F56: 0 | G56: 0 | H56: 0 | I56: 0 | J56: 0 | K56: 0 | L56: 0 | M56: 0 | N56: 0 | O56: =(($B$63*8/12)+($B$64))/(20/12) -> 0 | P56: l | Q56: =IF(InputControl!$B$57>=51,VLOOKUP("l",$C$45:$O$56,InputControl!$C$113,FALSE),0) -> 0
A57: m | B57: =IF(InputControl!$B$57>=51,VLOOKUP("m",$A$20:$U$39,$D$104,FALSE),0) -> 0
A58: n | B58: =IF(InputControl!$B$57>=51,VLOOKUP("n",$A$20:$U$39,$D$104,FALSE),0) -> 0
A59: o | B59: =IF(InputControl!$B$57>=51,VLOOKUP("o",$A$20:$U$39,$D$104,FALSE),0) -> 0
A60: p | B60: =IF(InputControl!$B$57>=51,VLOOKUP("p",$A$20:$U$39,$D$104,FALSE),0) -> 0
A61: q | B61: =IF(InputControl!$B$57>=51,VLOOKUP("q",$A$20:$U$39,$D$104,FALSE),0) -> 0
A62: r | B62: =IF(InputControl!$B$57>=51,VLOOKUP("r",$A$20:$U$39,$D$104,FALSE),0) -> 0
A63: s | B63: =IF(InputControl!$B$57>=51,VLOOKUP("s",$A$20:$U$39,$D$104,FALSE),0) -> 0 | R63: ERROR | S63: =IF(OR(AND(InputControl!$B$57>50,S67<>""),AND(InputControl!$B$57>50,S68<>""),S69<>"",S70<>"",S71<>"",S72<>""),S73,"") -> 
A64: t | B64: =IF(InputControl!$B$57>=51,VLOOKUP("t",$A$20:$U$39,$D$104,FALSE),0) -> 0 | R64: ANNUAL GOOD | S64: =IF(OR(S67<>"",S68<>"",S69<>"",S70<>"",S71<>"",S72<>""),S68,S84) -> 
R65: PERENNIAL GOOD | S65: =IF(OR(S69<>"",S70<>"",S71<>"",S72<>""),"",S84) -> CALCULATION GOOD
A66: Monthly Coefficients Being Used for Annual Crops
R67: Annual Answer | S67: =IF(OR(C99>1,D99>1,E99>1,F99>1,G99>1,H99>1,I99>1,J99>1,K99>1,L99>1,M99>1,N99>1),S79,"") -> The selected crops plantings overlap with the selected crop's growing season length
C68: Jan | D68: Feb | E68: Mar | F68: Apr | G68: May | H68: Jun | I68: Jul | J68: Aug | K68: Sep | L68: Oct | M68: Nov | N68: Dec | O68: Totals | P68: Totals | R68: Annual Answer | S68: =IF(AA99>12,S80,"") -> 
C69: =IF(InputControl!$A$141=TRUE,$Q$45,0) -> 0 | D69: =IF(InputControl!$A$142=TRUE,$Q$56,0) -> 0 | E69: =IF(InputControl!$A$143=TRUE,$Q$55,0) -> 0 | F69: =IF(InputControl!$A$144=TRUE,$Q$54,0) -> 0 | G69: =IF(InputControl!$A$145=TRUE,$Q$53,0) -> 0 | H69: =IF(InputControl!$A$146=TRUE,$Q$52,0) -> 0 | I69: =IF(InputControl!$A$147=TRUE,$Q$51,0) -> 0 | J69: =IF(InputControl!$A$148=TRUE,$Q$50,0) -> 0 | K69: =IF(InputControl!$A$149=TRUE,$Q$49,0) -> 0 | L69: =IF(InputControl!$A$150=TRUE,$Q$48,0) -> 0 | M69: =IF(InputControl!$A$151=TRUE,$Q$47,0) -> 0 | N69: =IF(InputControl!$A$152=TRUE,$Q$46,0) -> 0 | O69: =SUM(C69:N69) -> 0 | P69: =IF(OR(C99>1,D99>1,E99>1,F99>1,G99>1,H99>1,I99>1,J99>1,K99>1,L99>1,M99>1,N99>1,AA99>12),S77,SUM(C69:N69)) -> 0 | R69: Not Annual Answer | S69: =IF(D159<>0,"",S81) -> 
C70: =IF(InputControl!$A$141=TRUE,$Q$46,0) -> 0 | D70: =IF(InputControl!$A$142=TRUE,$Q$45,0) -> 0 | E70: =IF(InputControl!$A$143=TRUE,$Q$56,0) -> 0 | F70: =IF(InputControl!$A$144=TRUE,$Q$55,0) -> 0 | G70: =IF(InputControl!$A$145=TRUE,$Q$54,0) -> 0 | H70: =IF(InputControl!$A$146=TRUE,$Q$53,0) -> 0 | I70: =IF(InputControl!$A$147=TRUE,$Q$52,0) -> 0 | J70: =IF(InputControl!$A$148=TRUE,$Q$51,0) -> 0 | K70: =IF(InputControl!$A$149=TRUE,$Q$50,0) -> 0 | L70: =IF(InputControl!$A$150=TRUE,$Q$49,0) -> 0 | M70: =IF(InputControl!$A$151=TRUE,$Q$48,0) -> 0 | N70: =IF(InputControl!$A$152=TRUE,$Q$47,0) -> 0 | O70: =SUM(C70:N70) -> 0 | P70: =IF(OR(C99>1,D99>1,E99>1,F99>1,G99>1,H99>1,I99>1,J99>1,K99>1,L99>1,M99>1,N99>1,AA99>12),S77,SUM(C70:N70)) -> 0 | R70: Not Annual Answer | S70: =IF(X71<>0,"",S82) -> 
C71: =IF(InputControl!$A$141=TRUE,$Q$47,0) -> 0 | D71: =IF(InputControl!$A$142=TRUE,$Q$46,0) -> 0 | E71: =IF(InputControl!$A$143=TRUE,$Q$45,0) -> 0 | F71: =IF(InputControl!$A$144=TRUE,$Q$56,0) -> 0 | G71: =IF(InputControl!$A$145=TRUE,$Q$55,0) -> 0 | H71: =IF(InputControl!$A$146=TRUE,$Q$54,0) -> 0 | I71: =IF(InputControl!$A$147=TRUE,$Q$53,0) -> 0 | J71: =IF(InputControl!$A$148=TRUE,$Q$52,0) -> 0 | K71: =IF(InputControl!$A$149=TRUE,$Q$51,0) -> 0 | L71: =IF(InputControl!$A$150=TRUE,$Q$50,0) -> 0 | M71: =IF(InputControl!$A$151=TRUE,$Q$49,0) -> 0 | N71: =IF(InputControl!$A$152=TRUE,$Q$48,0) -> 0 | O71: 0 | P71: =IF(OR(C99>1,D99>1,E99>1,F99>1,G99>1,H99>1,I99>1,J99>1,K99>1,L99>1,M99>1,N99>1,AA99>12),S77,SUM(C71:N71)) -> 0 | R71: Not Annual Answer | S71: =IF(X71="NO DATA",S78,"") ->  | X71: =IFERROR('Blaney Calc'!$C$4,"NO DATA") -> 62.03
C72: =IF(InputControl!$A$141=TRUE,$Q$48,0) -> 0 | D72: =IF(InputControl!$A$142=TRUE,$Q$47,0) -> 0 | E72: =IF(InputControl!$A$143=TRUE,$Q$46,0) -> 0 | F72: =IF(InputControl!$A$144=TRUE,$Q$45,0) -> 0 | G72: =IF(InputControl!$A$145=TRUE,$Q$56,0) -> 0 | H72: =IF(InputControl!$A$146=TRUE,$Q$55,0) -> 0 | I72: =IF(InputControl!$A$147=TRUE,$Q$54,0) -> 0 | J72: =IF(InputControl!$A$148=TRUE,$Q$53,0) -> 0 | K72: =IF(InputControl!$A$149=TRUE,$Q$52,0) -> 0 | L72: =IF(InputControl!$A$150=TRUE,$Q$51,0) -> 0 | M72: =IF(InputControl!$A$151=TRUE,$Q$50,0) -> 0 | N72: =IF(InputControl!$A$152=TRUE,$Q$49,0) -> 0 | O72: 0 | P72: =IF(OR(C99>1,D99>1,E99>1,F99>1,G99>1,H99>1,I99>1,J99>1,K99>1,L99>1,M99>1,N99>1,AA99>12),S77,SUM(C72:N72)) -> 0 | R72: Not Annual Answer
C73: =IF(InputControl!$A$141=TRUE,$Q$49,0) -> 0 | D73: =IF(InputControl!$A$142=TRUE,$Q$48,0) -> 0 | E73: =IF(InputControl!$A$143=TRUE,$Q$47,0) -> 0 | F73: =IF(InputControl!$A$144=TRUE,$Q$46,0) -> 0 | G73: =IF(InputControl!$A$145=TRUE,$Q$45,0) -> 0 | H73: =IF(InputControl!$A$146=TRUE,$Q$56,0) -> 0 | I73: =IF(InputControl!$A$147=TRUE,$Q$55,0) -> 0 | J73: =IF(InputControl!$A$148=TRUE,$Q$54,0) -> 0 | K73: =IF(InputControl!$A$149=TRUE,$Q$53,0) -> 0 | L73: =IF(InputControl!$A$150=TRUE,$Q$52,0) -> 0 | M73: =IF(InputControl!$A$151=TRUE,$Q$51,0) -> 0 | N73: =IF(InputControl!$A$152=TRUE,$Q$50,0) -> 0 | O73: 0 | P73: =IF(OR(C99>1,D99>1,E99>1,F99>1,G99>1,H99>1,I99>1,J99>1,K99>1,L99>1,M99>1,N99>1,AA99>12),S77,SUM(C73:N73)) -> 0 | R73: DATA | S73: ERROR
C74: =IF(InputControl!$A$141=TRUE,$Q$50,0) -> 0 | D74: =IF(InputControl!$A$142=TRUE,$Q$49,0) -> 0 | E74: =IF(InputControl!$A$143=TRUE,$Q$48,0) -> 0 | F74: =IF(InputControl!$A$144=TRUE,$Q$47,0) -> 0 | G74: =IF(InputControl!$A$145=TRUE,$Q$46,0) -> 0 | H74: =IF(InputControl!$A$146=TRUE,$Q$45,0) -> 0 | I74: =IF(InputControl!$A$147=TRUE,$Q$56,0) -> 0 | J74: =IF(InputControl!$A$148=TRUE,$Q$55,0) -> 0 | K74: =IF(InputControl!$A$149=TRUE,$Q$54,0) -> 0 | L74: =IF(InputControl!$A$150=TRUE,$Q$53,0) -> 0 | M74: =IF(InputControl!$A$151=TRUE,$Q$52,0) -> 0 | N74: =IF(InputControl!$A$152=TRUE,$Q$51,0) -> 0 | O74: 0 | P74: =IF(OR(C99>1,D99>1,E99>1,F99>1,G99>1,H99>1,I99>1,J99>1,K99>1,L99>1,M99>1,N99>1,AA99>12),S77,SUM(C74:N74)) -> 0
C75: =IF(InputControl!$A$141=TRUE,$Q$51,0) -> 0 | D75: =IF(InputControl!$A$142=TRUE,$Q$50,0) -> 0 | E75: =IF(InputControl!$A$143=TRUE,$Q$49,0) -> 0 | F75: =IF(InputControl!$A$144=TRUE,$Q$48,0) -> 0 | G75: =IF(InputControl!$A$145=TRUE,$Q$47,0) -> 0 | H75: =IF(InputControl!$A$146=TRUE,$Q$46,0) -> 0 | I75: =IF(InputControl!$A$147=TRUE,$Q$45,0) -> 0 | J75: =IF(InputControl!$A$148=TRUE,$Q$56,0) -> 0 | K75: =IF(InputControl!$A$149=TRUE,$Q$55,0) -> 0 | L75: =IF(InputControl!$A$150=TRUE,$Q$54,0) -> 0 | M75: =IF(InputControl!$A$151=TRUE,$Q$53,0) -> 0 | N75: =IF(InputControl!$A$152=TRUE,$Q$52,0) -> 0 | O75: 0 | P75: =IF(OR(C99>1,D99>1,E99>1,F99>1,G99>1,H99>1,I99>1,J99>1,K99>1,L99>1,M99>1,N99>1,AA99>12),S77,SUM(C75:N75)) -> 0
C76: =IF(InputControl!$A$141=TRUE,$Q$52,0) -> 0 | D76: =IF(InputControl!$A$142=TRUE,$Q$51,0) -> 0 | E76: =IF(InputControl!$A$143=TRUE,$Q$50,0) -> 0 | F76: =IF(InputControl!$A$144=TRUE,$Q$49,0) -> 0 | G76: =IF(InputControl!$A$145=TRUE,$Q$48,0) -> 0 | H76: =IF(InputControl!$A$146=TRUE,$Q$47,0) -> 0 | I76: =IF(InputControl!$A$147=TRUE,$Q$46,0) -> 0 | J76: =IF(InputControl!$A$148=TRUE,$Q$45,0) -> 0 | K76: =IF(InputControl!$A$149=TRUE,$Q$56,0) -> 0 | L76: =IF(InputControl!$A$150=TRUE,$Q$55,0) -> 0 | M76: =IF(InputControl!$A$151=TRUE,$Q$54,0) -> 0 | N76: =IF(InputControl!$A$152=TRUE,$Q$53,0) -> 0 | O76: 0 | P76: =IF(OR(C99>1,D99>1,E99>1,F99>1,G99>1,H99>1,I99>1,J99>1,K99>1,L99>1,M99>1,N99>1,AA99>12),S77,SUM(C76:N76)) -> 0 | AB76: =IF(AND(J174<>0,J174<=20),"",AB83) -> 0
C77: =IF(InputControl!$A$141=TRUE,$Q$53,0) -> 0 | D77: =IF(InputControl!$A$142=TRUE,$Q$52,0) -> 0 | E77: =IF(InputControl!$A$143=TRUE,$Q$51,0) -> 0 | F77: =IF(InputControl!$A$144=TRUE,$Q$50,0) -> 0 | G77: =IF(InputControl!$A$145=TRUE,$Q$49,0) -> 0 | H77: =IF(InputControl!$A$146=TRUE,$Q$48,0) -> 0 | I77: =IF(InputControl!$A$147=TRUE,$Q$47,0) -> 0 | J77: =IF(InputControl!$A$148=TRUE,$Q$46,0) -> 0 | K77: =IF(InputControl!$A$149=TRUE,$Q$45,0) -> 0 | L77: =IF(InputControl!$A$150=TRUE,$Q$56,0) -> 0 | M77: =IF(InputControl!$A$151=TRUE,$Q$55,0) -> 0 | N77: =IF(InputControl!$A$152=TRUE,$Q$54,0) -> 0 | O77: 0 | P77: =IF(OR(C99>1,D99>1,E99>1,F99>1,G99>1,H99>1,I99>1,J99>1,K99>1,L99>1,M99>1,N99>1,AA99>12),S77,SUM(C77:N77)) -> 0 | R77: DATA | AB77: Old
C78: =IF(InputControl!$A$141=TRUE,$Q$54,0) -> 0 | D78: =IF(InputControl!$A$142=TRUE,$Q$53,0) -> 0 | E78: =IF(InputControl!$A$143=TRUE,$Q$52,0) -> 0 | F78: =IF(InputControl!$A$144=TRUE,$Q$51,0) -> 0 | G78: =IF(InputControl!$A$145=TRUE,$Q$50,0) -> 0 | H78: =IF(InputControl!$A$146=TRUE,$Q$49,0) -> 0 | I78: =IF(InputControl!$A$147=TRUE,$Q$48,0) -> 0 | J78: =IF(InputControl!$A$148=TRUE,$Q$47,0) -> 0 | K78: =IF(InputControl!$A$149=TRUE,$Q$46,0) -> 0 | L78: =IF(InputControl!$A$150=TRUE,$Q$45,0) -> 0 | M78: =IF(InputControl!$A$151=TRUE,$Q$56,0) -> 0 | N78: =IF(InputControl!$A$152=TRUE,$Q$55,0) -> 0 | O78: 0 | P78: =IF(OR(C99>1,D99>1,E99>1,F99>1,G99>1,H99>1,I99>1,J99>1,K99>1,L99>1,M99>1,N99>1,AA99>12),S77,SUM(C78:N78)) -> 0 | R78: DATA | S78: 2-in10 or 1-in-10 rainfall data not matching with rainfall event
C79: =IF(InputControl!$A$141=TRUE,$Q$55,0) -> 0 | D79: =IF(InputControl!$A$142=TRUE,$Q$54,0) -> 0 | E79: =IF(InputControl!$A$143=TRUE,$Q$53,0) -> 0 | F79: =IF(InputControl!$A$144=TRUE,$Q$52,0) -> 0 | G79: =IF(InputControl!$A$145=TRUE,$Q$51,0) -> 0 | H79: =IF(InputControl!$A$146=TRUE,$Q$50,0) -> 0 | I79: =IF(InputControl!$A$147=TRUE,$Q$49,0) -> 0 | J79: =IF(InputControl!$A$148=TRUE,$Q$48,0) -> 0 | K79: =IF(InputControl!$A$149=TRUE,$Q$47,0) -> 0 | L79: =IF(InputControl!$A$150=TRUE,$Q$46,0) -> 0 | M79: =IF(InputControl!$A$151=TRUE,$Q$45,0) -> 0 | N79: =IF(InputControl!$A$152=TRUE,$Q$56,0) -> 0 | O79: 0 | P79: =IF(OR(C99>1,D99>1,E99>1,F99>1,G99>1,H99>1,I99>1,J99>1,K99>1,L99>1,M99>1,N99>1,AA99>12),S77,SUM(C79:N79)) -> 0 | R79: DATA | S79: The selected crops plantings overlap with the selected crop's growing season length
C80: =IF(InputControl!$A$141=TRUE,$Q$56,0) -> 0 | D80: =IF(InputControl!$A$142=TRUE,$Q$55,0) -> 0 | E80: =IF(InputControl!$A$143=TRUE,$Q$54,0) -> 0 | F80: =IF(InputControl!$A$144=TRUE,$Q$53,0) -> 0 | G80: =IF(InputControl!$A$145=TRUE,$Q$52,0) -> 0 | H80: =IF(InputControl!$A$146=TRUE,$Q$51,0) -> 0 | I80: =IF(InputControl!$A$147=TRUE,$Q$50,0) -> 0 | J80: =IF(InputControl!$A$148=TRUE,$Q$49,0) -> 0 | K80: =IF(InputControl!$A$149=TRUE,$Q$48,0) -> 0 | L80: =IF(InputControl!$A$150=TRUE,$Q$47,0) -> 0 | M80: =IF(InputControl!$A$151=TRUE,$Q$46,0) -> 0 | N80: =IF(InputControl!$A$152=TRUE,$Q$45,0) -> 0 | O80: 0 | P80: =IF(OR(C99>1,D99>1,E99>1,F99>1,G99>1,H99>1,I99>1,J99>1,K99>1,L99>1,M99>1,N99>1,AA99>12),S77,SUM(C80:N80)) -> 0 | R80: DATA | S80: The total months planted by the crop exceeds one year
R81: DATA | S81: The irrigated acreage is 0.00
B82: Total | C82: =SUM(C69:C80) -> 0 | D82: =SUM(D69:D80) -> 0 | E82: 0 | F82: 0 | G82: 0 | H82: 0 | I82: 0 | J82: 0 | K82: 0 | L82: 0 | M82: 0 | N82: 0 | R82: DATA | S82: No rainfall station data
R83: DATA | S83: Either no parcel data or total parcels exceed 20
R84: DATA | S84: CALCULATION GOOD
C85: Jan | D85: Feb | E85: Mar | F85: Apr | G85: May | H85: Jun | I85: Jul | J85: Aug | K85: Sep | L85: Oct | M85: Nov | N85: Dec | O85: Jan | P85: Feb | Q85: Mar | R85: Apr | S85: May | T85: Jun | U85: Jul | V85: Aug | W85: Sep | X85: Oct | Y85: Nov | AA85: Totals
B86: Jan | C86: =IF(AND(InputControl!$A$141=TRUE,InputControl!$C$113-1>=1),1,0) -> 0 | D86: =IF(AND(InputControl!$A$141=TRUE,InputControl!$C$113-2>=1),1,0) -> 0 | E86: =IF(AND(InputControl!$A$141=TRUE,InputControl!$C$113-3>=1),1,0) -> 0 | F86: =IF(AND(InputControl!$A$141=TRUE,InputControl!$C$113-4>=1),1,0) -> 0 | G86: =IF(AND(InputControl!$A$141=TRUE,InputControl!$C$113-5>=1),1,0) -> 0 | H86: =IF(AND(InputControl!$A$141=TRUE,InputControl!$C$113-6>=1),1,0) -> 0 | I86: =IF(AND(InputControl!$A$141=TRUE,InputControl!$C$113-7>=1),1,0) -> 0 | J86: =IF(AND(InputControl!$A$141=TRUE,InputControl!$C$113-8>=1),1,0) -> 0 | K86: =IF(AND(InputControl!$A$141=TRUE,InputControl!$C$113-9>=1),1,0) -> 0 | L86: =IF(AND(InputControl!$A$141=TRUE,InputControl!$C$113-10>=1),1,0) -> 0 | M86: =IF(AND(InputControl!$A$141=TRUE,InputControl!$C$113-11>=1),1,0) -> 0 | N86: =IF(AND(InputControl!$A$141=TRUE,InputControl!$C$113-12>=1),1,0) -> 0 | O86: =IF(AND(InputControl!$A$141=TRUE,InputControl!$C$113-13>=1),1,0) -> 0 | P86: =IF(AND(InputControl!$A$141=TRUE,InputControl!$C$113-14>=1),1,0) -> 0 | Q86: =IF(AND(InputControl!$A$141=TRUE,InputControl!$C$113-15>=1),1,0) -> 0 | R86: =IF(AND(InputControl!$A$141=TRUE,InputControl!$C$113-16>=1),1,0) -> 0 | S86: =IF(AND(InputControl!$A$141=TRUE,InputControl!$C$113-17>=1),1,0) -> 0 | T86: =IF(AND(InputControl!$A$141=TRUE,InputControl!$C$113-18>=1),1,0) -> 0 | U86: =IF(AND(InputControl!$A$141=TRUE,InputControl!$C$113-19>=1),1,0) -> 0 | V86: =IF(AND(InputControl!$A$141=TRUE,InputControl!$C$113-20>=1),1,0) -> 0 | W86: =IF(AND(InputControl!$A$141=TRUE,InputControl!$C$113-21>=1),1,0) -> 0 | X86: =IF(AND(InputControl!$A$141=TRUE,InputControl!$C$113-22>=1),1,0) -> 0 | Y86: =IF(AND(InputControl!$A$141=TRUE,InputControl!$C$113-23>=1),1,0) -> 0 | AA86: =SUM(C86:Y86) -> 0
B87: Feb | C87: 0 | D87: =IF(AND(InputControl!$A$142=TRUE,InputControl!$C$113-1>=1),1,0) -> 0 | E87: =IF(AND(InputControl!$A$142=TRUE,InputControl!$C$113-2>=1),1,0) -> 0 | F87: =IF(AND(InputControl!$A$142=TRUE,InputControl!$C$113-3>=1),1,0) -> 0 | G87: =IF(AND(InputControl!$A$142=TRUE,InputControl!$C$113-4>=1),1,0) -> 0 | H87: =IF(AND(InputControl!$A$142=TRUE,InputControl!$C$113-5>=1),1,0) -> 0 | I87: =IF(AND(InputControl!$A$142=TRUE,InputControl!$C$113-6>=1),1,0) -> 0 | J87: =IF(AND(InputControl!$A$142=TRUE,InputControl!$C$113-7>=1),1,0) -> 0 | K87: =IF(AND(InputControl!$A$142=TRUE,InputControl!$C$113-8>=1),1,0) -> 0 | L87: =IF(AND(InputControl!$A$142=TRUE,InputControl!$C$113-9>=1),1,0) -> 0 | M87: =IF(AND(InputControl!$A$142=TRUE,InputControl!$C$113-10>=1),1,0) -> 0 | N87: =IF(AND(InputControl!$A$142=TRUE,InputControl!$C$113-11>=1),1,0) -> 0 | O87: =IF(AND(InputControl!$A$142=TRUE,InputControl!$C$113-12>=1),1,0) -> 0 | P87: =IF(AND(InputControl!$A$142=TRUE,InputControl!$C$113-13>=1),1,0) -> 0 | Q87: =IF(AND(InputControl!$A$142=TRUE,InputControl!$C$113-14>=1),1,0) -> 0 | R87: =IF(AND(InputControl!$A$142=TRUE,InputControl!$C$113-15>=1),1,0) -> 0 | S87: =IF(AND(InputControl!$A$142=TRUE,InputControl!$C$113-16>=1),1,0) -> 0 | T87: =IF(AND(InputControl!$A$142=TRUE,InputControl!$C$113-17>=1),1,0) -> 0 | U87: =IF(AND(InputControl!$A$142=TRUE,InputControl!$C$113-18>=1),1,0) -> 0 | V87: =IF(AND(InputControl!$A$142=TRUE,InputControl!$C$113-19>=1),1,0) -> 0 | W87: =IF(AND(InputControl!$A$142=TRUE,InputControl!$C$113-20>=1),1,0) -> 0 | X87: =IF(AND(InputControl!$A$142=TRUE,InputControl!$C$113-21>=1),1,0) -> 0 | Y87: =IF(AND(InputControl!$A$142=TRUE,InputControl!$C$113-22>=1),1,0) -> 0 | AA87: =SUM(C87:Y87) -> 0
B88: Mar | C88: 0 | D88: 0 | E88: =IF(AND(InputControl!$A$143=TRUE,InputControl!$C$113-1>=1),1,0) -> 0 | F88: =IF(AND(InputControl!$A$143=TRUE,InputControl!$C$113-2>=1),1,0) -> 0 | G88: =IF(AND(InputControl!$A$143=TRUE,InputControl!$C$113-3>=1),1,0) -> 0 | H88: =IF(AND(InputControl!$A$143=TRUE,InputControl!$C$113-4>=1),1,0) -> 0 | I88: =IF(AND(InputControl!$A$143=TRUE,InputControl!$C$113-5>=1),1,0) -> 0 | J88: =IF(AND(InputControl!$A$143=TRUE,InputControl!$C$113-6>=1),1,0) -> 0 | K88: =IF(AND(InputControl!$A$143=TRUE,InputControl!$C$113-7>=1),1,0) -> 0 | L88: =IF(AND(InputControl!$A$143=TRUE,InputControl!$C$113-8>=1),1,0) -> 0 | M88: =IF(AND(InputControl!$A$143=TRUE,InputControl!$C$113-9>=1),1,0) -> 0 | N88: =IF(AND(InputControl!$A$143=TRUE,InputControl!$C$113-10>=1),1,0) -> 0 | O88: =IF(AND(InputControl!$A$143=TRUE,InputControl!$C$113-11>=1),1,0) -> 0 | P88: =IF(AND(InputControl!$A$143=TRUE,InputControl!$C$113-12>=1),1,0) -> 0 | Q88: =IF(AND(InputControl!$A$143=TRUE,InputControl!$C$113-13>=1),1,0) -> 0 | R88: =IF(AND(InputControl!$A$143=TRUE,InputControl!$C$113-14>=1),1,0) -> 0 | S88: =IF(AND(InputControl!$A$143=TRUE,InputControl!$C$113-15>=1),1,0) -> 0 | T88: =IF(AND(InputControl!$A$143=TRUE,InputControl!$C$113-16>=1),1,0) -> 0 | U88: =IF(AND(InputControl!$A$143=TRUE,InputControl!$C$113-17>=1),1,0) -> 0 | V88: =IF(AND(InputControl!$A$143=TRUE,InputControl!$C$113-18>=1),1,0) -> 0 | W88: =IF(AND(InputControl!$A$143=TRUE,InputControl!$C$113-19>=1),1,0) -> 0 | X88: =IF(AND(InputControl!$A$143=TRUE,InputControl!$C$113-20>=1),1,0) -> 0 | Y88: =IF(AND(InputControl!$A$143=TRUE,InputControl!$C$113-21>=1),1,0) -> 0 | AA88: 0
B89: Apr | C89: 0 | D89: 0 | E89: 0 | F89: =IF(AND(InputControl!$A$144=TRUE,InputControl!$C$113-1>=1),1,0) -> 1 | G89: =IF(AND(InputControl!$A$144=TRUE,InputControl!$C$113-2>=1),1,0) -> 1 | H89: =IF(AND(InputControl!$A$144=TRUE,InputControl!$C$113-3>=1),1,0) -> 1 | I89: =IF(AND(InputControl!$A$144=TRUE,InputControl!$C$113-4>=1),1,0) -> 1 | J89: =IF(AND(InputControl!$A$144=TRUE,InputControl!$C$113-5>=1),1,0) -> 0 | K89: =IF(AND(InputControl!$A$144=TRUE,InputControl!$C$113-6>=1),1,0) -> 0 | L89: =IF(AND(InputControl!$A$144=TRUE,InputControl!$C$113-7>=1),1,0) -> 0 | M89: =IF(AND(InputControl!$A$144=TRUE,InputControl!$C$113-8>=1),1,0) -> 0 | N89: =IF(AND(InputControl!$A$144=TRUE,InputControl!$C$113-9>=1),1,0) -> 0 | O89: =IF(AND(InputControl!$A$144=TRUE,InputControl!$C$113-10>=1),1,0) -> 0 | P89: =IF(AND(InputControl!$A$144=TRUE,InputControl!$C$113-11>=1),1,0) -> 0 | Q89: =IF(AND(InputControl!$A$144=TRUE,InputControl!$C$113-12>=1),1,0) -> 0 | R89: =IF(AND(InputControl!$A$144=TRUE,InputControl!$C$113-13>=1),1,0) -> 0 | S89: =IF(AND(InputControl!$A$144=TRUE,InputControl!$C$113-14>=1),1,0) -> 0 | T89: =IF(AND(InputControl!$A$144=TRUE,InputControl!$C$113-15>=1),1,0) -> 0 | U89: =IF(AND(InputControl!$A$144=TRUE,InputControl!$C$113-16>=1),1,0) -> 0 | V89: =IF(AND(InputControl!$A$144=TRUE,InputControl!$C$113-17>=1),1,0) -> 0 | W89: =IF(AND(InputControl!$A$144=TRUE,InputControl!$C$113-18>=1),1,0) -> 0 | X89: =IF(AND(InputControl!$A$144=TRUE,InputControl!$C$113-19>=1),1,0) -> 0 | Y89: =IF(AND(InputControl!$A$144=TRUE,InputControl!$C$113-20>=1),1,0) -> 0 | AA89: 4
B90: May | C90: 0 | D90: 0 | E90: 0 | F90: 0 | G90: =IF(AND(InputControl!$A$145=TRUE,InputControl!$C$113-1>=1),1,0) -> 0 | H90: =IF(AND(InputControl!$A$145=TRUE,InputControl!$C$113-2>=1),1,0) -> 0 | I90: =IF(AND(InputControl!$A$145=TRUE,InputControl!$C$113-3>=1),1,0) -> 0 | J90: =IF(AND(InputControl!$A$145=TRUE,InputControl!$C$113-4>=1),1,0) -> 0 | K90: =IF(AND(InputControl!$A$145=TRUE,InputControl!$C$113-5>=1),1,0) -> 0 | L90: =IF(AND(InputControl!$A$145=TRUE,InputControl!$C$113-6>=1),1,0) -> 0 | M90: =IF(AND(InputControl!$A$145=TRUE,InputControl!$C$113-7>=1),1,0) -> 0 | N90: =IF(AND(InputControl!$A$145=TRUE,InputControl!$C$113-8>=1),1,0) -> 0 | O90: =IF(AND(InputControl!$A$145=TRUE,InputControl!$C$113-9>=1),1,0) -> 0 | P90: =IF(AND(InputControl!$A$145=TRUE,InputControl!$C$113-10>=1),1,0) -> 0 | Q90: =IF(AND(InputControl!$A$145=TRUE,InputControl!$C$113-11>=1),1,0) -> 0 | R90: =IF(AND(InputControl!$A$145=TRUE,InputControl!$C$113-12>=1),1,0) -> 0 | S90: =IF(AND(InputControl!$A$145=TRUE,InputControl!$C$113-13>=1),1,0) -> 0 | T90: =IF(AND(InputControl!$A$145=TRUE,InputControl!$C$113-14>=1),1,0) -> 0 | U90: =IF(AND(InputControl!$A$145=TRUE,InputControl!$C$113-15>=1),1,0) -> 0 | V90: =IF(AND(InputControl!$A$145=TRUE,InputControl!$C$113-16>=1),1,0) -> 0 | W90: =IF(AND(InputControl!$A$145=TRUE,InputControl!$C$113-17>=1),1,0) -> 0 | X90: =IF(AND(InputControl!$A$145=TRUE,InputControl!$C$113-18>=1),1,0) -> 0 | Y90: =IF(AND(InputControl!$A$145=TRUE,InputControl!$C$113-19>=1),1,0) -> 0 | AA90: 0
B91: Jun | C91: 0 | D91: 0 | E91: 0 | F91: 0 | G91: 0 | H91: =IF(AND(InputControl!$A$146=TRUE,InputControl!$C$113-1>=1),1,0) -> 0 | I91: =IF(AND(InputControl!$A$146=TRUE,InputControl!$C$113-2>=1),1,0) -> 0 | J91: =IF(AND(InputControl!$A$146=TRUE,InputControl!$C$113-3>=1),1,0) -> 0 | K91: =IF(AND(InputControl!$A$146=TRUE,InputControl!$C$113-4>=1),1,0) -> 0 | L91: =IF(AND(InputControl!$A$146=TRUE,InputControl!$C$113-5>=1),1,0) -> 0 | M91: =IF(AND(InputControl!$A$146=TRUE,InputControl!$C$113-6>=1),1,0) -> 0 | N91: =IF(AND(InputControl!$A$146=TRUE,InputControl!$C$113-7>=1),1,0) -> 0 | O91: =IF(AND(InputControl!$A$146=TRUE,InputControl!$C$113-8>=1),1,0) -> 0 | P91: =IF(AND(InputControl!$A$146=TRUE,InputControl!$C$113-9>=1),1,0) -> 0 | Q91: =IF(AND(InputControl!$A$146=TRUE,InputControl!$C$113-10>=1),1,0) -> 0 | R91: =IF(AND(InputControl!$A$146=TRUE,InputControl!$C$113-11>=1),1,0) -> 0 | S91: =IF(AND(InputControl!$A$146=TRUE,InputControl!$C$113-12>=1),1,0) -> 0 | T91: =IF(AND(InputControl!$A$146=TRUE,InputControl!$C$113-13>=1),1,0) -> 0 | U91: =IF(AND(InputControl!$A$146=TRUE,InputControl!$C$113-14>=1),1,0) -> 0 | V91: =IF(AND(InputControl!$A$146=TRUE,InputControl!$C$113-15>=1),1,0) -> 0 | W91: =IF(AND(InputControl!$A$146=TRUE,InputControl!$C$113-16>=1),1,0) -> 0 | X91: =IF(AND(InputControl!$A$146=TRUE,InputControl!$C$113-17>=1),1,0) -> 0 | Y91: =IF(AND(InputControl!$A$146=TRUE,InputControl!$C$113-18>=1),1,0) -> 0 | AA91: 0
B92: Jul | C92: 0 | D92: 0 | E92: 0 | F92: 0 | G92: 0 | H92: 0 | I92: =IF(AND(InputControl!$A$147=TRUE,InputControl!$C$113-1>=1),1,0) -> 0 | J92: =IF(AND(InputControl!$A$147=TRUE,InputControl!$C$113-2>=1),1,0) -> 0 | K92: =IF(AND(InputControl!$A$147=TRUE,InputControl!$C$113-3>=1),1,0) -> 0 | L92: =IF(AND(InputControl!$A$147=TRUE,InputControl!$C$113-4>=1),1,0) -> 0 | M92: =IF(AND(InputControl!$A$147=TRUE,InputControl!$C$113-5>=1),1,0) -> 0 | N92: =IF(AND(InputControl!$A$147=TRUE,InputControl!$C$113-6>=1),1,0) -> 0 | O92: =IF(AND(InputControl!$A$147=TRUE,InputControl!$C$113-7>=1),1,0) -> 0 | P92: =IF(AND(InputControl!$A$147=TRUE,InputControl!$C$113-8>=1),1,0) -> 0 | Q92: =IF(AND(InputControl!$A$147=TRUE,InputControl!$C$113-9>=1),1,0) -> 0 | R92: =IF(AND(InputControl!$A$147=TRUE,InputControl!$C$113-10>=1),1,0) -> 0 | S92: =IF(AND(InputControl!$A$147=TRUE,InputControl!$C$113-11>=1),1,0) -> 0 | T92: =IF(AND(InputControl!$A$147=TRUE,InputControl!$C$113-12>=1),1,0) -> 0 | U92: =IF(AND(InputControl!$A$147=TRUE,InputControl!$C$113-13>=1),1,0) -> 0 | V92: =IF(AND(InputControl!$A$147=TRUE,InputControl!$C$113-14>=1),1,0) -> 0 | W92: =IF(AND(InputControl!$A$147=TRUE,InputControl!$C$113-15>=1),1,0) -> 0 | X92: =IF(AND(InputControl!$A$147=TRUE,InputControl!$C$113-16>=1),1,0) -> 0 | Y92: =IF(AND(InputControl!$A$147=TRUE,InputControl!$C$113-17>=1),1,0) -> 0 | AA92: 0
B93: Aug | C93: 0 | D93: 0 | E93: 0 | F93: 0 | G93: 0 | H93: 0 | I93: 0 | J93: =IF(AND(InputControl!$A$148=TRUE,InputControl!$C$113-1>=1),1,0) -> 1 | K93: =IF(AND(InputControl!$A$148=TRUE,InputControl!$C$113-2>=1),1,0) -> 1 | L93: =IF(AND(InputControl!$A$148=TRUE,InputControl!$C$113-3>=1),1,0) -> 1 | M93: =IF(AND(InputControl!$A$148=TRUE,InputControl!$C$113-4>=1),1,0) -> 1 | N93: =IF(AND(InputControl!$A$148=TRUE,InputControl!$C$113-5>=1),1,0) -> 0 | O93: =IF(AND(InputControl!$A$148=TRUE,InputControl!$C$113-6>=1),1,0) -> 0 | P93: =IF(AND(InputControl!$A$148=TRUE,InputControl!$C$113-7>=1),1,0) -> 0 | Q93: =IF(AND(InputControl!$A$148=TRUE,InputControl!$C$113-8>=1),1,0) -> 0 | R93: =IF(AND(InputControl!$A$148=TRUE,InputControl!$C$113-9>=1),1,0) -> 0 | S93: =IF(AND(InputControl!$A$148=TRUE,InputControl!$C$113-10>=1),1,0) -> 0 | T93: =IF(AND(InputControl!$A$148=TRUE,InputControl!$C$113-11>=1),1,0) -> 0 | U93: =IF(AND(InputControl!$A$148=TRUE,InputControl!$C$113-12>=1),1,0) -> 0 | V93: =IF(AND(InputControl!$A$148=TRUE,InputControl!$C$113-13>=1),1,0) -> 0 | W93: =IF(AND(InputControl!$A$148=TRUE,InputControl!$C$113-14>=1),1,0) -> 0 | X93: =IF(AND(InputControl!$A$148=TRUE,InputControl!$C$113-15>=1),1,0) -> 0 | Y93: =IF(AND(InputControl!$A$148=TRUE,InputControl!$C$113-16>=1),1,0) -> 0 | AA93: 4
B94: Sep | C94: 0 | D94: 0 | E94: 0 | F94: 0 | G94: 0 | H94: 0 | I94: 0 | J94: 0 | K94: =IF(AND(InputControl!$A$149=TRUE,InputControl!$C$113-1>=1),1,0) -> 0 | L94: =IF(AND(InputControl!$A$149=TRUE,InputControl!$C$113-2>=1),1,0) -> 0 | M94: =IF(AND(InputControl!$A$149=TRUE,InputControl!$C$113-3>=1),1,0) -> 0 | N94: =IF(AND(InputControl!$A$149=TRUE,InputControl!$C$113-4>=1),1,0) -> 0 | O94: =IF(AND(InputControl!$A$149=TRUE,InputControl!$C$113-5>=1),1,0) -> 0 | P94: =IF(AND(InputControl!$A$149=TRUE,InputControl!$C$113-6>=1),1,0) -> 0 | Q94: =IF(AND(InputControl!$A$149=TRUE,InputControl!$C$113-7>=1),1,0) -> 0 | R94: =IF(AND(InputControl!$A$149=TRUE,InputControl!$C$113-8>=1),1,0) -> 0 | S94: =IF(AND(InputControl!$A$149=TRUE,InputControl!$C$113-9>=1),1,0) -> 0 | T94: =IF(AND(InputControl!$A$149=TRUE,InputControl!$C$113-10>=1),1,0) -> 0 | U94: =IF(AND(InputControl!$A$149=TRUE,InputControl!$C$113-11>=1),1,0) -> 0 | V94: =IF(AND(InputControl!$A$149=TRUE,InputControl!$C$113-12>=1),1,0) -> 0 | W94: =IF(AND(InputControl!$A$149=TRUE,InputControl!$C$113-13>=1),1,0) -> 0 | X94: =IF(AND(InputControl!$A$149=TRUE,InputControl!$C$113-14>=1),1,0) -> 0 | Y94: =IF(AND(InputControl!$A$149=TRUE,InputControl!$C$113-15>=1),1,0) -> 0 | AA94: 0
B95: Oct | C95: 0 | D95: 0 | E95: 0 | F95: 0 | G95: 0 | H95: 0 | I95: 0 | J95: 0 | K95: 0 | L95: =IF(AND(InputControl!$A$150=TRUE,InputControl!$C$113-1>=1),1,0) -> 1 | M95: =IF(AND(InputControl!$A$150=TRUE,InputControl!$C$113-2>=1),1,0) -> 1 | N95: =IF(AND(InputControl!$A$150=TRUE,InputControl!$C$113-3>=1),1,0) -> 1 | O95: =IF(AND(InputControl!$A$150=TRUE,InputControl!$C$113-4>=1),1,0) -> 1 | P95: =IF(AND(InputControl!$A$150=TRUE,InputControl!$C$113-5>=1),1,0) -> 0 | Q95: =IF(AND(InputControl!$A$150=TRUE,InputControl!$C$113-6>=1),1,0) -> 0 | R95: =IF(AND(InputControl!$A$150=TRUE,InputControl!$C$113-7>=1),1,0) -> 0 | S95: =IF(AND(InputControl!$A$150=TRUE,InputControl!$C$113-8>=1),1,0) -> 0 | T95: =IF(AND(InputControl!$A$150=TRUE,InputControl!$C$113-9>=1),1,0) -> 0 | U95: =IF(AND(InputControl!$A$150=TRUE,InputControl!$C$113-10>=1),1,0) -> 0 | V95: =IF(AND(InputControl!$A$150=TRUE,InputControl!$C$113-11>=1),1,0) -> 0 | W95: =IF(AND(InputControl!$A$150=TRUE,InputControl!$C$113-12>=1),1,0) -> 0 | X95: =IF(AND(InputControl!$A$150=TRUE,InputControl!$C$113-13>=1),1,0) -> 0 | Y95: =IF(AND(InputControl!$A$150=TRUE,InputControl!$C$113-14>=1),1,0) -> 0 | AA95: 4
B96: Nov | C96: 0 | D96: 0 | E96: 0 | F96: 0 | G96: 0 | H96: 0 | I96: 0 | J96: 0 | K96: 0 | L96: 0 | M96: =IF(AND(InputControl!$A$151=TRUE,InputControl!$C$113-1>=1),1,0) -> 0 | N96: =IF(AND(InputControl!$A$151=TRUE,InputControl!$C$113-2>=1),1,0) -> 0 | O96: =IF(AND(InputControl!$A$151=TRUE,InputControl!$C$113-3>=1),1,0) -> 0 | P96: =IF(AND(InputControl!$A$151=TRUE,InputControl!$C$113-4>=1),1,0) -> 0 | Q96: =IF(AND(InputControl!$A$151=TRUE,InputControl!$C$113-5>=1),1,0) -> 0 | R96: =IF(AND(InputControl!$A$151=TRUE,InputControl!$C$113-6>=1),1,0) -> 0 | S96: =IF(AND(InputControl!$A$151=TRUE,InputControl!$C$113-7>=1),1,0) -> 0 | T96: =IF(AND(InputControl!$A$151=TRUE,InputControl!$C$113-8>=1),1,0) -> 0 | U96: =IF(AND(InputControl!$A$151=TRUE,InputControl!$C$113-9>=1),1,0) -> 0 | V96: =IF(AND(InputControl!$A$151=TRUE,InputControl!$C$113-10>=1),1,0) -> 0 | W96: =IF(AND(InputControl!$A$151=TRUE,InputControl!$C$113-11>=1),1,0) -> 0 | X96: =IF(AND(InputControl!$A$151=TRUE,InputControl!$C$113-12>=1),1,0) -> 0 | Y96: =IF(AND(InputControl!$A$151=TRUE,InputControl!$C$113-13>=1),1,0) -> 0 | AA96: 0
B97: Dec | C97: 0 | D97: 0 | E97: 0 | F97: 0 | G97: 0 | H97: 0 | I97: 0 | J97: 0 | K97: 0 | L97: 0 | M97: 0 | N97: =IF(AND(InputControl!$A$152=TRUE,InputControl!$C$113-1>=1),1,0) -> 0 | O97: =IF(AND(InputControl!$A$152=TRUE,InputControl!$C$113-2>=1),1,0) -> 0 | P97: =IF(AND(InputControl!$A$152=TRUE,InputControl!$C$113-3>=1),1,0) -> 0 | Q97: =IF(AND(InputControl!$A$152=TRUE,InputControl!$C$113-4>=1),1,0) -> 0 | R97: =IF(AND(InputControl!$A$152=TRUE,InputControl!$C$113-5>=1),1,0) -> 0 | S97: =IF(AND(InputControl!$A$152=TRUE,InputControl!$C$113-6>=1),1,0) -> 0 | T97: =IF(AND(InputControl!$A$152=TRUE,InputControl!$C$113-7>=1),1,0) -> 0 | U97: =IF(AND(InputControl!$A$152=TRUE,InputControl!$C$113-8>=1),1,0) -> 0 | V97: =IF(AND(InputControl!$A$152=TRUE,InputControl!$C$113-9>=1),1,0) -> 0 | W97: =IF(AND(InputControl!$A$152=TRUE,InputControl!$C$113-10>=1),1,0) -> 0 | X97: =IF(AND(InputControl!$A$152=TRUE,InputControl!$C$113-11>=1),1,0) -> 0 | Y97: =IF(AND(InputControl!$A$152=TRUE,InputControl!$C$113-12>=1),1,0) -> 0 | AA97: 0
B99: Total | C99: =SUM(C86:C97)+SUM(O86:O97) -> 1 | D99: =SUM(D86:D97)+SUM(P86:P97) -> 0 | E99: 0 | F99: 1 | G99: 1 | H99: 1 | I99: 1 | J99: 1 | K99: 1 | L99: 2 | M99: 2 | N99: =SUM(N86:N97) -> 1 | AA99: =SUM(AA86:AA97) -> 12
A102: Converting Crop Code Numbers to Column Numbers
A104: 5 | B104: 1 | D104: =VLOOKUP(InputControl!$B$57,$A$104:$B$140,2,FALSE)+1 -> 2
A105: 10 | B105: 2
A106: 11 | B106: 3
A107: 12 | B107: 4
A108: 13 | B108: 5
A109: 14 | B109: 6
A110: 15 | B110: 7
A111: 16 | B111: 0
A112: 17 | B112: 0
A113: 18 | B113: 8
A114: 19 | B114: 0
A115: 20 | B115: 9
A116: 21 | B116: 10
A117: 22 | B117: 11
A118: 23 | B118: 12
A119: 24 | B119: 13
A120: 25 | B120: 14
A121: 51 | B121: 1
A122: 52 | B122: 2
A123: 53 | B123: 3
A124: 54 | B124: 4
A125: 55 | B125: 5
A126: 56 | B126: 6
A127: 57 | B127: 7
A128: 58 | B128: 8
A129: 59 | B129: 9
A130: 60 | B130: 10
A131: 61 | B131: 11
A132: 62 | B132: 12
A133: 64 | B133: 13
A134: 65 | B134: 14
A135: 66 | B135: 15
A136: 69 | B136: 16
A137: 67 | B137: 0
A138: 68 | B138: 0
A139: 69 | B139: 0
A140: 70 | B140: 0
A143: Adding Crop Plantings
D144: =SUM(B145:B156) -> 3 | E144: =IF(D144=1,"Planting","Plantings") -> Plantings | G144: =CONCATENATE("Growing season length of annual crop type = ",InputControl!A113) -> Growing season length of annual crop type = 4 months
A145: =IF(InputControl!$A$141=TRUE,InputControl!$B$141,0) -> 0 | B145: =IF(InputControl!$A$141=TRUE,1,0) -> 0 | G145: =CONCATENATE(D144," ",E144) -> 3 Plantings
A146: =IF(InputControl!$A$142=TRUE,InputControl!$B$142,0) -> 0 | B146: =IF(InputControl!$A$142=TRUE,1,0) -> 0 | G146: =CONCATENATE("Initial ", IF(D144>1,"plantings","planting"), " occurs in : ") -> Initial plantings occurs in :
A147: =IF(InputControl!$A$143=TRUE,InputControl!$B$143,0) -> 0 | B147: =IF(InputControl!$A$143=TRUE,1,0) -> 0 | G147: =CONCATENATE(IF(A144<>0,CONCATENATE(A144," "),""),IF(A145<>0,CONCATENATE(A145," "),""),IF(A146<>0,CONCATENATE(A146," "),""),IF(A147<>0,CONCATENATE(A147," "),""),IF(A148<>0,CONCATENATE(A148," "),""),IF(A149<>0,CONCATENATE(A149," "),""),IF(A150<>0,CONCATENATE(A150," "),""),IF(A151<>0,CONCATENATE(A151," "),""),IF(A152<>0,CONCATENATE(A152," "),""),IF(A153<>0,CONCATENATE(A153," "),""),IF(A154<>0,CONCATENATE(A154," "),""),IF(A155<>0,CONCATENATE(A155," "),""),IF(A156<>0,CONCATENATE(A156,""),"")) -> April August October
A148: =IF(InputControl!$A$144=TRUE,InputControl!$B$144,0) -> April | B148: =IF(InputControl!$A$144=TRUE,1,0) -> 1 | G148: =CONCATENATE("Total months planted: ",AA99) -> Total months planted: 12
A149: =IF(InputControl!$A$145=TRUE,InputControl!$B$145,0) -> 0 | B149: =IF(InputControl!$A$145=TRUE,1,0) -> 0
A150: =IF(InputControl!$A$146=TRUE,InputControl!$B$146,0) -> 0 | B150: =IF(InputControl!$A$146=TRUE,1,0) -> 0
A151: =IF(InputControl!$A$147=TRUE,InputControl!$B$147,0) -> 0 | B151: =IF(InputControl!$A$147=TRUE,1,0) -> 0
A152: =IF(InputControl!$A$148=TRUE,InputControl!$B$148,0) -> August | B152: =IF(InputControl!$A$148=TRUE,1,0) -> 1
A153: =IF(InputControl!$A$149=TRUE,InputControl!$B$149,0) -> 0 | B153: =IF(InputControl!$A$149=TRUE,1,0) -> 0
A154: =IF(InputControl!$A$150=TRUE,InputControl!$B$150,0) -> October | B154: =IF(InputControl!$A$150=TRUE,1,0) -> 1
A155: =IF(InputControl!$A$151=TRUE,InputControl!$B$151,0) -> 0 | B155: =IF(InputControl!$A$151=TRUE,1,0) -> 0
A156: =IF(InputControl!$A$152=TRUE,InputControl!$B$152,0) -> 0 | B156: =IF(InputControl!$A$152=TRUE,1,0) -> 0
A158: Irrigated Acreage
D159: =IF(A160 = 0,0,A160) -> 1
A160: =Input2!C13 -> 1
A163: Average Day
A165: =SUM('Blaney Calc'!K19) -> 3234.42 | C165: =IF(A165>100000, C167,IF(A165=100000,C168,IF(A165<10000,C170,C169))) -> 1-in-10 Annual Average Day < 10,000 Gallons
C167: 1-in-10 Annual Average Day is > 100,000 Gallons
C168: 1-in-10 Annual Average Day is = 100,000 Gallons
C169: 1-in-10 Annual Average Day < 100,000 Gallons
C170: 1-in-10 Annual Average Day < 10,000 Gallons
A172: Multiple Crops in Parcel
A174: =Input2!P4 -> 1
A175: =C99 -> 1 | B175: =D99 -> 0 | C175: 0 | D175: 1 | E175: 1 | F175: 1 | G175: 1 | H175: 1 | I175: 1 | J175: 2 | K175: 2 | L175: 1 | M175: Crop 5
M176: Crop 4
M177: Crop 3
M178: Crop 2
M179: Crop 1
A180: =SUM(A175:A179) -> 1 | B180: 0 | C180: 0 | D180: 1 | E180: 1 | F180: 1 | G180: 1 | H180: 1 | I180: 1 | J180: 2 | K180: 2 | L180: 1
A181: Jan | B181: Feb | C181: Mar | D181: Apr | E181: May | F181: Jun | G181: Jul | H181: Aug | I181: Sep | J181: Oct | K181: Nov | L181: Dec
A182: =IF('crop k''s'!A180>1,"JAN","") ->  | B182: =IF('crop k''s'!B180>1,"FEB","") ->  | C182: =IF( 'crop k''s'!C180>1,"MAR","") ->  | D182: =IF( 'crop k''s'!D180>1,"APR","") ->  | E182: =IF( 'crop k''s'!E180>1,"MAY","") ->  | F182: =IF('crop k''s'!F180>1,"JUN","") ->  | G182: =IF('crop k''s'!G180>1,"JUL","") ->  | H182: =IF( 'crop k''s'!H180>1,"AUG","") ->  | I182: =IF( 'crop k''s'!I180>1,"SEP","") ->  | J182: =IF( 'crop k''s'!J180>1,"OCT","") -> OCT | K182: =IF( 'crop k''s'!K180>1,"NOV","") -> NOV | L182: =IF( 'crop k''s'!L180>1,"DEC","") -> 
A183: 0 | B183: OVERLAP | D183: =IF(AND(A180=0,B180=0,C180=0,D180=0,E180=0,F180=0,G180=0,H180=0,I180=0,J180=0,K180=0,L180=0),"YES",0) -> 0 | E183: NO MONTHS SELECTED
A184: ERROR
A185: =CONCATENATE(IF(A182<>0,CONCATENATE(A182," "),""),IF(B182<>0,CONCATENATE(B182," "),""),IF(C182<>0,CONCATENATE(C182," "),""),IF(D182<>0,CONCATENATE(D182," "),""),IF(E182<>0,CONCATENATE(E182," "),""),IF(F182<>0,CONCATENATE(F182," "),""),IF(G182<>0,CONCATENATE(G182," "),""),IF(H182<>0,CONCATENATE(H182," "),""),IF(I182<>0,CONCATENATE(I182," "),""),IF(J182<>0,CONCATENATE(J182," "),""),IF(K182<>0,CONCATENATE(K182," "),""),IF(L182<>0,CONCATENATE(L182," "),""),"") -> OCT NOV
A187: =SUM(A176:A179) -> 0 | B187: =SUM(B176:B179) -> 0 | C187: 0 | D187: 0 | E187: 0 | F187: 0 | G187: 0 | H187: 0 | I187: 0 | J187: 0 | K187: 0 | L187: 0 | N187: Months planted
A188: =IF('crop k''s'!A187=1,"JAN","") ->  | B188: =IF('crop k''s'!B187=1,"FEB","") ->  | C188: =IF('crop k''s'!C187=1,"MAR","") ->  | D188: =IF('crop k''s'!D187=1,"APR","") ->  | E188: =IF('crop k''s'!E187=1,"MAY","") ->  | F188: =IF('crop k''s'!F187=1,"JUN","") ->  | G188: =IF('crop k''s'!G187=1,"JUL","") ->  | H188: =IF('crop k''s'!H187=1,"AUG","") ->  | I188: =IF('crop k''s'!I187=1,"SEP","") ->  | J188: =IF('crop k''s'!J187=1,"OCT","") ->  | K188: =IF('crop k''s'!K187=1,"NOV","") ->  | L188: =IF('crop k''s'!L187=1,"DEC","") -> 
A190: ERROR
A191: =CONCATENATE(IF(A188<>0,CONCATENATE(A188," "),""),IF(B188<>0,CONCATENATE(B188," "),""),IF(C188<>0,CONCATENATE(C188," "),""),IF(D188<>0,CONCATENATE(D188," "),""),IF(E188<>0,CONCATENATE(E188," "),""),IF(F188<>0,CONCATENATE(F188," "),""),IF(G188<>0,CONCATENATE(G188," "),""),IF(H188<>0,CONCATENATE(H188," "),""),IF(I188<>0,CONCATENATE(I188," "),""),IF(J188<>0,CONCATENATE(J188," "),""),IF(K188<>0,CONCATENATE(K188," "),""),IF(L188<>0,CONCATENATE(L188," "),""),"") -> 
A192: =IF(AND( A188="JAN",B188="FEB",C188="MAR",D188="APR",E188="MAY",F188="JUN",G188="JUL",H188="AUG",I188="SEP",J188="OCT",K188="NOV",L188="DEC"),"YES",0) -> 0 | B192: 12 MONTHS PLANTED

Sheet Irr System (hidden)
A1: 2-in-10
D2: With SWM | E2: Without SWM
A3: 01 | B3: 1 | C3: Micro-sprinkler | D3: 1.18 | E3: 1.18
A4: 02 | B4: 2 | C4: Overhead Drip | D4: 1.18 | E4: 1.18
A5: 03 | B5: 13 | C5: Seepage/Furrow | D5: 2.5 | E5: 1.67
A6: 12 | B6: 4 | C6: Low Volume | D6: 1.18 | E6: 1.18
A7: 05 | B7: 15 | C7: Crown Flooding | D7: 2.5 | E7: 1.67
A8: 06 | B8: 16 | C8: Sub-irrigation | D8: 2.5 | E8: 1.67
A9: 07 | B9: 7 | C9: Sprinkler | D9: 1.33 | E9: 1.25
A10: 08 | B10: 8 | C10: Portable Gun | D10: 1.54 | E10: 1.43
A11: 09 | B11: 9 | C11: Traveling Gun | D11: 1.43 | E11: 1.33
A12: 10 | B12: 10 | C12: Overhead | D12: 1.33 | E12: 1.25
A13: 11 | B13: 3 | C13: Nursery Container | D13: 5 | E13: 2.86
A14: 04 | B14: 14 | C14: Semi-Closed Flow-Through | D14: 2.5 | E14: 1.67
A15: 13 | B15: 5 | C15: Drip | D15: 1.18 | E15: 1.18
A16: 14 | B16: 17 | C16: Surface Gravity | D16: 2.5 | E16: 1.67
A17: 18 | B17: 18 | C17: Flood/Seepage | D17: 2.5 | E17: 1.67
A18: 90 | B18: 6 | C18: Container | D18: 5 | E18: 2.86
A19: 92 | B19: 11 | C19: Volume Gun | D19: 1.43 | E19: 1.33
A20: 93 | B20: 12 | C20: Walking Gun | D20: 1.43 | E20: 1.33
A21: 19 | B21: 19 | C21: E.A.A. Flood/Seepage | D21: 0 | E21: 0
A22: 20 | B22: 20 | C22: Center pivot/Linear Move | D22: 0 | E22: 0
A23: 94 | B23: 21 | C23: Low Volume/Canal Seepage Loss | D23: 0 | E23: 0
A24: 95 | B24: 22 | C24: Flood/Canal Seepage Loss | D24: 0 | E24: 0
A26: 1-in-10
D27: With SWM | E27: Without SWM
A28: 01 | B28: 1 | C28: Micro-sprinkler | D28: 1.18 | E28: 1.18
A29: 02 | B29: 2 | C29: Overhead Drip | D29: 1.18 | E29: 1.18
A30: 03 | B30: 13 | C30: Seepage/Furrow | D30: 2 | E30: 2
A31: 12 | B31: 4 | C31: Low Volume | D31: 1.18 | E31: 1.18
A32: 05 | B32: 15 | C32: Crown Flooding | D32: 2 | E32: 2
A33: 06 | B33: 16 | C33: Sub-irrigation | D33: 2 | E33: 2
A34: 07 | B34: 7 | C34: Sprinkler | D34: 1.3 | E34: 1.3
A35: 08 | B35: 8 | C35: Portable Gun | D35: 1.5 | E35: 1.5
A36: 09 | B36: 9 | C36: Traveling Gun | D36: 1.4 | E36: 1.4
A37: 10 | B37: 10 | C37: Overhead | D37: 1.3 | E37: 1.3
A38: 11 | B38: 3 | C38: Nursery Container | D38: 3.6 | E38: 3.6
A39: 04 | B39: 14 | C39: Semi-Closed Flow-Through | D39: 2 | E39: 2
A40: 13 | B40: 5 | C40: Drip | D40: 1.18 | E40: 1.18
A41: 14 | B41: 17 | C41: Surface Gravity | D41: 2 | E41: 2
A42: 18 | B42: 18 | C42: Flood/Seepage | D42: 2 | E42: 2
A43: 90 | B43: 6 | C43: Container | D43: 3.6 | E43: 3.6
A44: 92 | B44: 11 | C44: Volume Gun | D44: 1.5 | E44: 1.5
A45: 93 | B45: 12 | C45: Walking Gun | D45: 1.4 | E45: 1.4
A46: 19 | B46: 19 | C46: E.A.A. Flood/Seepage | D46: 1.33 | E46: 1.33
A47: 20 | B47: 20 | C47: Center pivot/Linear Move | D47: 1.33 | E47: 1.33
A48: 94 | B48: 21 | C48: Low Volume/Canal Seepage Loss | D48: 1.77 | E48: 1.77
A49: 95 | B49: 22 | C49: Flood/Canal Seepage Loss | D49: 3 | E49: 3

Sheet InputControl (hidden)
A11: Return | B11: Storm Event
A12: =Input2!C2 -> 1-in-10 | B12: =VLOOKUP(A12,A13:B14,2,FALSE) -> 1
A13: 1-in-10 | B13: 1
A14: 2-in-10 | B14: 2
A16: Return | B16: Station Number
A17: =Input2!C3 -> Okeechobee 1-in-10 | B17: =VLOOKUP(A17,A18:B54,2,FALSE) -> 27
A18: =IF(InputControl!$B$12=2,OFFSET('climo data'!$A$2,0,(InputControl!B18*4)-4)&" "&$A$12,OFFSET('climo data'!$A$21,0,(InputControl!B18*4)-4)&" "&$A$12) -> Archbold 1-in-10 | B18: 1
A19: =IF(InputControl!$B$12=2,OFFSET('climo data'!$A$2,0,(InputControl!B19*4)-4)&" "&$A$12,OFFSET('climo data'!$A$21,0,(InputControl!B19*4)-4)&" "&$A$12) -> Avon Park 1-in-10 | B19: 2
A20: =IF(InputControl!$B$12=2,OFFSET('climo data'!$A$2,0,(InputControl!B20*4)-4)&" "&$A$12,OFFSET('climo data'!$A$21,0,(InputControl!B20*4)-4)&" "&$A$12) -> Belle Glade 1-in-10 | B20: 3
A21: =IF(InputControl!$B$12=2,OFFSET('climo data'!$A$2,0,(InputControl!B21*4)-4)&" "&$A$12,OFFSET('climo data'!$A$21,0,(InputControl!B21*4)-4)&" "&$A$12) -> Big Cypress (No Data) 1-in-10 | B21: 4
A22: =IF(InputControl!$B$12=2,OFFSET('climo data'!$A$2,0,(InputControl!B22*4)-4)&" "&$A$12,OFFSET('climo data'!$A$21,0,(InputControl!B22*4)-4)&" "&$A$12) -> Clewiston 1-in-10 | B22: 5
A23: =IF(InputControl!$B$12=2,OFFSET('climo data'!$A$2,0,(InputControl!B23*4)-4)&" "&$A$12,OFFSET('climo data'!$A$21,0,(InputControl!B23*4)-4)&" "&$A$12) -> Everglades 1-in-10 | B23: 6
A24: =IF(InputControl!$B$12=2,OFFSET('climo data'!$A$2,0,(InputControl!B24*4)-4)&" "&$A$12,OFFSET('climo data'!$A$21,0,(InputControl!B24*4)-4)&" "&$A$12) -> Fellsmere (No Data) 1-in-10 | B24: 7
A25: =IF(InputControl!$B$12=2,OFFSET('climo data'!$A$2,0,(InputControl!B25*4)-4)&" "&$A$12,OFFSET('climo data'!$A$21,0,(InputControl!B25*4)-4)&" "&$A$12) -> Fort Drum 1-in-10 | B25: 8
A26: =IF(InputControl!$B$12=2,OFFSET('climo data'!$A$2,0,(InputControl!B26*4)-4)&" "&$A$12,OFFSET('climo data'!$A$21,0,(InputControl!B26*4)-4)&" "&$A$12) -> Ft. Lauderdale 1-in-10 | B26: 9
A27: =IF(InputControl!$B$12=2,OFFSET('climo data'!$A$2,0,(InputControl!B27*4)-4)&" "&$A$12,OFFSET('climo data'!$A$21,0,(InputControl!B27*4)-4)&" "&$A$12) -> Ft. Myers 1-in-10 | B27: 10
A28: =IF(InputControl!$B$12=2,OFFSET('climo data'!$A$2,0,(InputControl!B28*4)-4)&" "&$A$12,OFFSET('climo data'!$A$21,0,(InputControl!B28*4)-4)&" "&$A$12) -> Ft. Pierce 1-in-10 | B28: 11
A29: =IF(InputControl!$B$12=2,OFFSET('climo data'!$A$2,0,(InputControl!B29*4)-4)&" "&$A$12,OFFSET('climo data'!$A$21,0,(InputControl!B29*4)-4)&" "&$A$12) -> Hialeah 1-in-10 | B29: 12
A30: =IF(InputControl!$B$12=2,OFFSET('climo data'!$A$2,0,(InputControl!B30*4)-4)&" "&$A$12,OFFSET('climo data'!$A$21,0,(InputControl!B30*4)-4)&" "&$A$12) -> Homestead 1-in-10 | B30: 13
A31: =IF(InputControl!$B$12=2,OFFSET('climo data'!$A$2,0,(InputControl!B31*4)-4)&" "&$A$12,OFFSET('climo data'!$A$21,0,(InputControl!B31*4)-4)&" "&$A$12) -> Hypoluxo 1-in-10 | B31: 14
A32: =IF(InputControl!$B$12=2,OFFSET('climo data'!$A$2,0,(InputControl!B32*4)-4)&" "&$A$12,OFFSET('climo data'!$A$21,0,(InputControl!B32*4)-4)&" "&$A$12) -> Immokalee 1-in-10 | B32: 15
A33: =IF(InputControl!$B$12=2,OFFSET('climo data'!$A$2,0,(InputControl!B33*4)-4)&" "&$A$12,OFFSET('climo data'!$A$21,0,(InputControl!B33*4)-4)&" "&$A$12) -> Indiantown (No Data) 1-in-10 | B33: 16
A34: =IF(InputControl!$B$12=2,OFFSET('climo data'!$A$2,0,(InputControl!B34*4)-4)&" "&$A$12,OFFSET('climo data'!$A$21,0,(InputControl!B34*4)-4)&" "&$A$12) -> Jupiter 1-in-10 | B34: 17
A35: =IF(InputControl!$B$12=2,OFFSET('climo data'!$A$2,0,(InputControl!B35*4)-4)&" "&$A$12,OFFSET('climo data'!$A$21,0,(InputControl!B35*4)-4)&" "&$A$12) -> Kissimmee 1-in-10 | B35: 18
A36: =IF(InputControl!$B$12=2,OFFSET('climo data'!$A$2,0,(InputControl!B36*4)-4)&" "&$A$12,OFFSET('climo data'!$A$21,0,(InputControl!B36*4)-4)&" "&$A$12) -> La Belle 1-in-10 | B36: 19
A37: =IF(InputControl!$B$12=2,OFFSET('climo data'!$A$2,0,(InputControl!B37*4)-4)&" "&$A$12,OFFSET('climo data'!$A$21,0,(InputControl!B37*4)-4)&" "&$A$12) -> Lake Placid (No Data) 1-in-10 | B37: 20
A38: =IF(InputControl!$B$12=2,OFFSET('climo data'!$A$2,0,(InputControl!B38*4)-4)&" "&$A$12,OFFSET('climo data'!$A$21,0,(InputControl!B38*4)-4)&" "&$A$12) -> Loxahatchee 1-in-10 | B38: 21
A39: =IF(InputControl!$B$12=2,OFFSET('climo data'!$A$2,0,(InputControl!B39*4)-4)&" "&$A$12,OFFSET('climo data'!$A$21,0,(InputControl!B39*4)-4)&" "&$A$12) -> Melbourne (No Data) 1-in-10 | B39: 22
A40: =IF(InputControl!$B$12=2,OFFSET('climo data'!$A$2,0,(InputControl!B40*4)-4)&" "&$A$12,OFFSET('climo data'!$A$21,0,(InputControl!B40*4)-4)&" "&$A$12) -> Merritt Island (No Data) 1-in-10 | B40: 23
A41: =IF(InputControl!$B$12=2,OFFSET('climo data'!$A$2,0,(InputControl!B41*4)-4)&" "&$A$12,OFFSET('climo data'!$A$21,0,(InputControl!B41*4)-4)&" "&$A$12) -> Miami 1-in-10 | B41: 24
A42: =IF(InputControl!$B$12=2,OFFSET('climo data'!$A$2,0,(InputControl!B42*4)-4)&" "&$A$12,OFFSET('climo data'!$A$21,0,(InputControl!B42*4)-4)&" "&$A$12) -> Moore Haven 1-in-10 | B42: 25
A43: =IF(InputControl!$B$12=2,OFFSET('climo data'!$A$2,0,(InputControl!B43*4)-4)&" "&$A$12,OFFSET('climo data'!$A$21,0,(InputControl!B43*4)-4)&" "&$A$12) -> Naples 1-in-10 | B43: 26
A44: =IF(InputControl!$B$12=2,OFFSET('climo data'!$A$2,0,(InputControl!B44*4)-4)&" "&$A$12,OFFSET('climo data'!$A$21,0,(InputControl!B44*4)-4)&" "&$A$12) -> Okeechobee 1-in-10 | B44: 27
A45: =IF(InputControl!$B$12=2,OFFSET('climo data'!$A$2,0,(InputControl!B45*4)-4)&" "&$A$12,OFFSET('climo data'!$A$21,0,(InputControl!B45*4)-4)&" "&$A$12) -> Orlando(No Data) 1-in-10 | B45: 28
A46: =IF(InputControl!$B$12=2,OFFSET('climo data'!$A$2,0,(InputControl!B46*4)-4)&" "&$A$12,OFFSET('climo data'!$A$21,0,(InputControl!B46*4)-4)&" "&$A$12) -> Pompano Beach 1-in-10 | B46: 29
A47: =IF(InputControl!$B$12=2,OFFSET('climo data'!$A$2,0,(InputControl!B47*4)-4)&" "&$A$12,OFFSET('climo data'!$A$21,0,(InputControl!B47*4)-4)&" "&$A$12) -> Punta Gorda(No Data) 1-in-10 | B47: 30
A48: =IF(InputControl!$B$12=2,OFFSET('climo data'!$A$2,0,(InputControl!B48*4)-4)&" "&$A$12,OFFSET('climo data'!$A$21,0,(InputControl!B48*4)-4)&" "&$A$12) -> Stuart 1-in-10 | B48: 31
A49: =IF(InputControl!$B$12=2,OFFSET('climo data'!$A$2,0,(InputControl!B49*4)-4)&" "&$A$12,OFFSET('climo data'!$A$21,0,(InputControl!B49*4)-4)&" "&$A$12) -> S-65 1-in-10 | B49: 32
A50: =IF(InputControl!$B$12=2,OFFSET('climo data'!$A$2,0,(InputControl!B50*4)-4)&" "&$A$12,OFFSET('climo data'!$A$21,0,(InputControl!B50*4)-4)&" "&$A$12) -> S 140 W 1-in-10 | B50: 33
A51: =IF(InputControl!$B$12=2,OFFSET('climo data'!$A$2,0,(InputControl!B51*4)-4)&" "&$A$12,OFFSET('climo data'!$A$21,0,(InputControl!B51*4)-4)&" "&$A$12) -> Tamiami 4 1-in-10 | B51: 34
A52: =IF(InputControl!$B$12=2,OFFSET('climo data'!$A$2,0,(InputControl!B52*4)-4)&" "&$A$12,OFFSET('climo data'!$A$21,0,(InputControl!B52*4)-4)&" "&$A$12) -> Titusville (No Data) 1-in-10 | B52: 35
A53: =IF(InputControl!$B$12=2,OFFSET('climo data'!$A$2,0,(InputControl!B53*4)-4)&" "&$A$12,OFFSET('climo data'!$A$21,0,(InputControl!B53*4)-4)&" "&$A$12) -> Vero Beach (No Data) 1-in-10 | B53: 36
A54: =IF(InputControl!$B$12=2,OFFSET('climo data'!$A$2,0,(InputControl!B54*4)-4)&" "&$A$12,OFFSET('climo data'!$A$21,0,(InputControl!B54*4)-4)&" "&$A$12) -> West Palm Beach 1-in-10 | B54: 37
A56: Return | B56: Crop Type
A57: =Input2!C4 -> Perennial-Nursery | B57: =VLOOKUP(A57,A58:B87,2,FALSE) -> 5 | C57: =VLOOKUP(B57,B58:C87,2,FALSE) -> Nursery
A58: Perennial-Nursery | B58: 5 | C58: Nursery
A59: Perennial-Sugarcane | B59: 10 | C59: Sugarcane
A60: Perennial-Alfalfa | B60: 11 | C60: Alfalfa
A61: Perennial-Avocado | B61: 12 | C61: Avocado
A62: Perennial-Citrus | B62: 13 | C62: Citrus
A63: Perennial-Grapes | B63: 14 | C63: Grapes
A64: Perennial-Turf Grass | B64: 15 | C64: Turf Grass
A65: Perennial-Blueberries | B65: 18 | C65: Blueberries
A66: Perennial-Pasture | B66: 20 | C66: Pasture
A67: Perennial-Papaya | B67: 21 | C67: Papaya
A68: Perennial-Carambola | B68: 22 | C68: Carambola
A69: Perennial-Tropical Fruit | B69: 23 | C69: Tropical Fruit
A70: Perennial-Mangoes | B70: 24 | C70: Mangoes
A71: Perennial-Palm Trees | B71: 25 | C71: Palm Trees
A72: Annual-Dry Beans | B72: 51 | C72: Dry Beans
A73: Annual-Green Bean | B73: 52 | C73: Green Bean
A74: Annual-Grain Corn | B74: 53 | C74: Grain Corn
A75: Annual-Silage Corn | B75: 54 | C75: Silage Corn
A76: Annual-Sweet Corn | B76: 55 | C76: Sweet Corn
A77: Annual-Melons | B77: 56 | C77: Melons
A78: Annual-Peas | B78: 57 | C78: Peas
A79: Annual-Potato | B79: 58 | C79: Potato
A80: Annual-Soybeans | B80: 59 | C80: Soybeans
A81: Annual-Tomato | B81: 60 | C81: Tomato
A82: Annual-Small Vegetables | B82: 61 | C82: Small Vegetables
A83: Annual-Winter Wheat | B83: 70 | C83: Winter Wheat
A84: Annual-Peppers | B84: 64 | C84: Peppers
A85: Annual-Hay | B85: 65 | C85: Hay
A86: Annual-Strawberries | B86: 66 | C86: Strawberries
A87: Annual-Sorghum | B87: 69 | C87: Sorghum
A89: =Input2!C11 -> Drip | B89: =VLOOKUP(A89,irrsystable,2,FALSE) -> 13 | E89: Micro Irrigation- | F89: Sprinkler Systems- | G89: Sub Irrigation-
A90: Micro-sprinkler | B90: 01 | E90: =E$89&A90 -> Micro Irrigation-Micro-sprinkler
A91: Overhead Drip | B91: 02 | E91: =E$89&A91 -> Micro Irrigation-Overhead Drip
A92: Drip | B92: 13 | E92: =E$89&A92 -> Micro Irrigation-Drip
A93: Low Volume | B93: 12 | E93: =E$89&A93 -> Micro Irrigation-Low Volume
A94: Container | B94: 90 | E94: =F$89&A94 -> Sprinkler Systems-Container
A95: Nursery Container | B95: 11 | E95: =F$89&A95 -> Sprinkler Systems-Nursery Container
A96: Sprinkler | B96: 07 | E96: Sprinkler Systems-Sprinkler
A97: Portable Gun | B97: 08 | E97: Sprinkler Systems-Portable Gun
A98: Traveling Gun | B98: 09 | E98: Sprinkler Systems-Traveling Gun
A99: Overhead | B99: 10 | E99: Sprinkler Systems-Overhead
A100: Volume Gun | B100: 92 | E100: Sprinkler Systems-Volume Gun
A101: Walking Gun | B101: 93 | E101: Sprinkler Systems-Walking Gun
A102: Seepage/Furrow | B102: 03 | E102: =G$89&A102 -> Sub Irrigation-Seepage/Furrow
A103: Semi-Closed Flow-Through | B103: 04 | E103: Sub Irrigation-Semi-Closed Flow-Through
A104: Crown Flooding | B104: 05 | E104: Sub Irrigation-Crown Flooding
A105: Sub-irrigation | B105: 06 | E105: Sub Irrigation-Sub-irrigation
A106: Surface Gravity | B106: 14 | E106: Sub Irrigation-Surface Gravity
A107: Flood/Seepage | B107: 18 | E107: Sub Irrigation-Flood/Seepage
A108: E.A.A. Flood/Seepage | B108: 19 | E108: Sub Irrigation-E.A.A. Flood/Seepage
A109: Center pivot/Linear Move | B109: 20 | E109: Sub Irrigation-Center pivot/Linear Move
A110: Low Volume/Canal Seepage Loss | B110: 94 | E110: Sub Irrigation-Low Volume/Canal Seepage Loss
A111: Flood/Canal Seepage Loss | B111: 95 | E111: Sub Irrigation-Flood/Canal Seepage Loss
A113: =Input2!C7 -> 4 months | B113: =VLOOKUP(A113,A114:B125,1,FALSE) -> 4 months | C113: =VLOOKUP(A113,A114:C125,2,FALSE)+1 -> 5 | D113: Col
A114: 1 month | B114: 1
A115: 2 months | B115: 2
A116: 3 months | B116: 3
A117: 4 months | B117: 4
A118: 5 months | B118: 5
A119: 6 months | B119: 6
A120: 7 months | B120: 7
A121: 8 months | B121: 8
A122: 9 months | B122: 9
A123: 10 months | B123: 10
A124: 11 months | B124: 11
A125: 12 months | B125: 12
A127: =Input2!C10 -> 0.8 | B127: =VLOOKUP(A127,ST,1,FALSE) -> 0.8
A128: 0.2 | B128: 1
A129: 0.4 | B129: 2
A130: 0.8 | B130: 3
A131: 1.5 | B131: 4
A132: 3.6 | B132: 5
E135: Salt Flush
B136: Yes | E136: Yes
B137: No | E137: No
A141: FALSE | B141: January
A142: FALSE | B142: February
A143: FALSE | B143: March
A144: TRUE | B144: April
A145: FALSE | B145: May
A146: FALSE | B146: June
A147: FALSE | B147: July
A148: TRUE | B148: August
A149: FALSE | B149: September
A150: TRUE | B150: October
A151: FALSE | B151: November
A152: FALSE | B152: December
A155: 1-in-10 Citrus using Microjet Systems (Maximum Full ET for the Months Mar,Apr,May)
A156: =IF((InputControl!$B$57=13)*AND(OR(InputControl!$B$89="01",InputControl!$B$89="02",InputControl!$B$89="13",InputControl!$B$89="12"))*AND($B$12=1),MAX(Exhibit!E21:G21),0) -> 0 | B156: =IF(A156<>0, MATCH(MAX(Exhibit!E21:'Exhibit'!G21),Exhibit!E21:'Exhibit'!G21,0),"") ->  | C156: =IF(B156=1, "MAR",IF(B156=2,"APR",IF(B156=3,"MAY",""))) -> 
A157: 2-in-10 Citrus | B157: Location | C157: Month
A158: =IF((InputControl!$B$57=13)*AND(InputControl!$B$12=2),MAX(Exhibit!C21:N21),0) -> 0
A159: If Citrus
A160: =IF((InputControl!$B$57=13)*AND(InputControl!$A$156=0),InputControl!$A$158,InputControl!$A$156) -> 0
